Service Area,Service Division,Expense Type,Expense Code,Detailed Expense Type,Payment Date,Transaction Number,Amount Exc VAT,Supplier Name
Children and Young Peoples Services,Head of Childrens Social Care,Employees,080025,Agency Staff,01/07/2020,3754840-2439746,"115,989.18",GEOMETRIC RESULTS INTERNATIONAL.
Resources BK0010,Legal & Democratic Services,Supplies and Services,338042,Services,01/07/2020,3755014-281920/INVFP502,500.00,TRINITY CHAMBERS.
"Regeneration, Economy and Growth",Culture Sport and Tourism,Premises,145023,Cleaning and Domestic Supplies,01/07/2020,3754848-06/071008,821.28,GREENHAM TRADING LTD.
Children and Young Peoples Services,Head of Early Help Inclusion & Vulnerable Children.,Supplies and Services,342051,Computers and Communications,01/07/2020,3754867-200604,"1,103.00",I2N LTD.
"Regeneration, Economy and Growth",Development and Housing,Supplies and Services,342051,Computers and Communications,01/07/2020,3754869-7029696,"7,410.00",IDOX SOFTWARE LTD.
Neighbourhoods and Climate Change,Technical Services CM0300,Supplies and Services,342051,Computers and Communications,01/07/2020,3754995-SINV-2020001072,"1,720.00",SYMOLOGY LTD.
Resources BK0010,Digital and Customer Services,Supplies and Services,342051,Computers and Communications,01/07/2020,3755046-IN0107604,"2,145.00",ZELLIS UK LTD.
"Regeneration, Economy and Growth",Business Durham CL0850,Construction work A908,908105,Construction work,01/07/2020,3754747-169106,728.00,ALBANY OFFICE EQUIPMENT (WHOLESALE) LTD.
Children and Young Peoples Services,Head of Education and Skills,Construction work A908,908105,Construction work,01/07/2020,3754945-900887875,"22,847.75",PORTAKABIN LTD.
Children and Young Peoples Services,Head of Education and Skills,Construction work A908,908105,Construction work,01/07/2020,3754969-5633,"3,180.00",SAFE STRIP UK LTD.
Children and Young Peoples Services,Head of Education and Skills,Supplies and Services,338027,Services,01/07/2020,3754907-DCC4001,570.00,MIKE REDSHAW EDUCATION CONSULTANT.
Children and Young Peoples Services,Head of Education and Skills,Supplies and Services,338027,Services,01/07/2020,3754907-DCC4002,"1,425.00",MIKE REDSHAW EDUCATION CONSULTANT.
Children and Young Peoples Services,Head of Education and Skills,Supplies and Services,338027,Services,01/07/2020,3754907-DCC4003,"1,425.00",MIKE REDSHAW EDUCATION CONSULTANT.
Neighbourhoods and Climate Change,Environmental Services,Supplies and Services,338027,Services,01/07/2020,3754982-0000826666,"1,703.60",SOCOTEC UK LTD.
"Regeneration, Economy and Growth",Development and Housing,Fees,901002,Consultants fees 901002,01/07/2020,3754768-SIN016375,"46,355.48",BLOOM PROCUREMENT SERVICES LTD (FORMERLY NEPRO LTD).
Neighbourhoods and Climate Change,Environmental Services,Third Party Payments,430113,Rendered by Private Contractors,01/07/2020,3754975-169534,"7,042.39",SHOWSEC INTERNATIONAL LTD.
Neighbourhoods and Climate Change,Environmental Services,Third Party Payments,430113,Rendered by Private Contractors,01/07/2020,3754975-169537,"7,032.25",SHOWSEC INTERNATIONAL LTD.
Neighbourhoods and Climate Change,Environmental Services,Third Party Payments,430113,Rendered by Private Contractors,01/07/2020,3754975-169540,"2,699.57",SHOWSEC INTERNATIONAL LTD.
Neighbourhoods and Climate Change,Technical Services CM0300,Third Party Payments,430127,Rendered by Private Contractors,01/07/2020,3754843-10282,"5,747.50",GJ CONTRACTORS.
Neighbourhoods and Climate Change,Technical Services CM0300,Third Party Payments,430127,Rendered by Private Contractors,01/07/2020,3754843-10284,"4,370.00",GJ CONTRACTORS.
Resources BK0010,Digital and Customer Services,Supplies and Services,344131,Telephones,01/07/2020,3754896-12501684,"20,410.00",MAINTEL EUROPE LTD.
Adult and Health Services,Head of Adults,Third Party Payments,473101,Purchase of Care,01/07/2020,3754812-STABILITYPAYMENT2BACKDATED/1,"35,592.90",DURHAM ALLIANCE FOR COMMUNITY CARE.
Adult and Health Services,Head of Adults,Third Party Payments,473101,Purchase of Care,01/07/2020,3754865-STABILITYPAYMENT2BACKDATED/2,"20,973.76",HUMANKIND CHARITY.
Adult and Health Services,Head of Adults,Third Party Payments,473101,Purchase of Care,01/07/2020,3754957-STABILITYPAYMENT2BACKDATED/3,"2,464.40",RIDING CENTRE FOR SPECIAL PEOPLE LTD..
Neighbourhoods and Climate Change,Environmental Services,Supplies and Services,304221,Equipment and Materials,01/07/2020,3754850-264480,"4,950.00",GREENLAY T/A THOMAS SHERRIFF & CO LTD.
Neighbourhoods and Climate Change,Environmental Services,Supplies and Services,304221,Equipment and Materials,01/07/2020,3754850-264482,"1,306.25",GREENLAY T/A THOMAS SHERRIFF & CO LTD.
Neighbourhoods and Climate Change,Technical Services CM0300,Supplies and Services,304221,Equipment and Materials,01/07/2020,3754874-00182573,"4,170.00",JAMES A JOBLING & CO LTD T/A JOBLING PURSER LTD.
"Regeneration, Economy and Growth",Corporate Property and Land,Supplies and Services,304221,Equipment and Materials,01/07/2020,3754881-0213/00109198,"4,907.42",JT DOVE LTD.
Neighbourhoods and Climate Change,Technical Services CM0300,Supplies and Services,304221,Equipment and Materials,01/07/2020,3754924-0000090042,"3,910.92",NAL LTD.
Neighbourhoods and Climate Change,Technical Services CM0300,Supplies and Services,304221,Equipment and Materials,01/07/2020,3754924-0000090136,798.68,NAL LTD.
Neighbourhoods and Climate Change,Environmental Services,Supplies and Services,304221,Equipment and Materials,01/07/2020,3754926-064959,892.80,NEW ROW FARM NURSERIES.
"Regeneration, Economy and Growth",Corporate Property and Land,Supplies and Services,304221,Equipment and Materials,01/07/2020,3754958-0000056775,"4,603.60",RINNAI UK LTD.
Neighbourhoods and Climate Change,Technical Services CM0300,Supplies and Services,304221,Equipment and Materials,01/07/2020,3754996-9041893022,500.10,TARMAC TRADING LTD.
Neighbourhoods and Climate Change,Technical Services CM0300,Supplies and Services,304221,Equipment and Materials,01/07/2020,3754996-9041897190,926.16,TARMAC TRADING LTD.
Neighbourhoods and Climate Change,Technical Services CM0300,Supplies and Services,304221,Equipment and Materials,01/07/2020,3754996-9041902245,538.98,TARMAC TRADING LTD.
Neighbourhoods and Climate Change,Environmental Services,Supplies and Services,304221,Equipment and Materials,01/07/2020,3755010-NSIN00037577,"1,179.36",THOMAS OWEN & SONS (NEWCASTLE) LTD.
"Regeneration, Economy and Growth",Corporate Property and Land,Supplies and Services,304221,Equipment and Materials,01/07/2020,3755017-04021648,546.62,UK ELECTRIC LTD.
"Regeneration, Economy and Growth",Corporate Property and Land,Supplies and Services,304221,Equipment and Materials,01/07/2020,3755023-6890339758,"2,348.86",VIESSMANN LTD.
"Regeneration, Economy and Growth",Corporate Property and Land,Supplies and Services,304221,Equipment and Materials,01/07/2020,3755035-2385997,627.70,WILKIES.
Children and Young Peoples Services,Head of Childrens Social Care,Third Party Payments,425028,Rendered by Voluntary Organisations,01/07/2020,3754814-002-2020-21,"10,000.00",DURHAM AREA DISABILITY LEISURE GROUP (DADLG).
"Regeneration, Economy and Growth",Culture Sport and Tourism,Supplies and Services,304259,Equipment and Materials,01/07/2020,3755000-INV-6912,520.00,TEVALIS LTD.
Neighbourhoods and Climate Change,Environmental Services,Supplies and Services,304259,Equipment and Materials,01/07/2020,3755037-43901,"4,690.00",WIRELESS CCTV LTD.
Resources BK0010,Legal & Democratic Services,Premises,120021,Energy Costs,01/07/2020,3754773-20243,"1,540.33",BRADLEY HALL LTD.
Neighbourhoods and Climate Change,Environmental Services,Transport,215022,Running Costs of Vehicles,01/07/2020,3754935-612453,521.28,OIL NRG LTD.
Adult and Health Services,Commissioning inc Supporting People,Third Party Payments,441001,Supporting People E441,01/07/2020,3754811-1970506,"25,243.12",DURHAM ACTION ON SINGLE HOUSING LTD.
Adult and Health Services,Commissioning inc Supporting People,Third Party Payments,441001,Supporting People E441,01/07/2020,3754819-1970478,"5,483.40",EAST DURHAM COMMUNITY INITIATIVES LTD.
Adult and Health Services,Commissioning inc Supporting People,Third Party Payments,441001,Supporting People E441,01/07/2020,3754854-1970473,"18,082.80",HARBOUR SUPPORT SERVICES.
Adult and Health Services,Commissioning inc Supporting People,Third Party Payments,441001,Supporting People E441,01/07/2020,3754860-1970521,"26,849.32",HOME GROUP LTD FORMERLY STONHAM HOUSING ASSOCIATION LTD.
Adult and Health Services,Commissioning inc Supporting People,Third Party Payments,441001,Supporting People E441,01/07/2020,3754860-1970516,"54,465.72",HOME GROUP LTD FORMERLY STONHAM HOUSING ASSOCIATION LTD.
Adult and Health Services,Commissioning inc Supporting People,Third Party Payments,441001,Supporting People E441,01/07/2020,3754956-1970477,"9,423.88",RICHMOND FELLOWSHIP.
Adult and Health Services,Commissioning inc Supporting People,Third Party Payments,441001,Supporting People E441,01/07/2020,3755004-1970480,"19,231.20",THE CYRENIANS LTD T/A CHANGING LIVES.
Adult and Health Services,Commissioning inc Supporting People,Third Party Payments,441001,Supporting People E441,01/07/2020,3755009-1970499,"11,136.08",THIRTEEN HOUSING GROUP LTD.
Adult and Health Services,Commissioning inc Supporting People,Third Party Payments,441001,Supporting People E441,01/07/2020,3755009-1970498,"7,776.68",THIRTEEN HOUSING GROUP LTD.
Adult and Health Services,Commissioning inc Supporting People,Third Party Payments,441001,Supporting People E441,01/07/2020,3755009-1970525,"11,797.88",THIRTEEN HOUSING GROUP LTD.
Adult and Health Services,Commissioning inc Supporting People,Third Party Payments,441001,Supporting People E441,01/07/2020,3755029-1970470,"2,367.20",WADDINGTON STREET CENTRE LTD.
Adult and Health Services,Commissioning inc Supporting People,Third Party Payments,441001,Supporting People E441,01/07/2020,3755031-1970475,"7,157.00",WEAR VALLEY WOMENS AID LTD.
Adult and Health Services,Commissioning inc Supporting People,Third Party Payments,442002,Supporting People E442,01/07/2020,3754766-1970479,"16,448.04",BID SERVICES.
Adult and Health Services,Commissioning inc Supporting People,Third Party Payments,442002,Supporting People E442,01/07/2020,3754795-1970472,"19,868.48",CREATIVE SUPPORT LTD.
Adult and Health Services,Commissioning inc Supporting People,Third Party Payments,442002,Supporting People E442,01/07/2020,3754831-1970505,"23,410.90",FOUNDATION.
Adult and Health Services,Commissioning inc Supporting People,Third Party Payments,442002,Supporting People E442,01/07/2020,3754860-1970523,"27,962.72",HOME GROUP LTD FORMERLY STONHAM HOUSING ASSOCIATION LTD.
Adult and Health Services,Commissioning inc Supporting People,Third Party Payments,442002,Supporting People E442,01/07/2020,3754860-1970469,"113,942.68",HOME GROUP LTD FORMERLY STONHAM HOUSING ASSOCIATION LTD.
Adult and Health Services,Commissioning inc Supporting People,Third Party Payments,442002,Supporting People E442,01/07/2020,3754865-1970502,"27,885.68",HUMANKIND CHARITY.
Adult and Health Services,Commissioning inc Supporting People,Third Party Payments,442002,Supporting People E442,01/07/2020,3754865-1970471,"5,668.48",HUMANKIND CHARITY.
Adult and Health Services,Commissioning inc Supporting People,Third Party Payments,442002,Supporting People E442,01/07/2020,3754904-1970474,"5,469.72",MENTAL HEALTH MATTERS.
Adult and Health Services,Commissioning inc Supporting People,Third Party Payments,442002,Supporting People E442,01/07/2020,3754909-1970511,"2,620.48",MOVING ON HOUSING.
Adult and Health Services,Commissioning inc Supporting People,Third Party Payments,442002,Supporting People E442,01/07/2020,3754956-1970476,"11,729.08",RICHMOND FELLOWSHIP.
Adult and Health Services,Commissioning inc Supporting People,Third Party Payments,442002,Supporting People E442,01/07/2020,3754979-1970512,"6,331.08",SINGLE HOMELESS ACTION INITIATIVE IN DURHAM LTD (SHAID).
Adult and Health Services,Commissioning inc Supporting People,Third Party Payments,442002,Supporting People E442,01/07/2020,3755009-1970497,"5,088.84",THIRTEEN HOUSING GROUP LTD.
Adult and Health Services,Commissioning inc Supporting People,Third Party Payments,442002,Supporting People E442,01/07/2020,3755029-1970501,873.44,WADDINGTON STREET CENTRE LTD.
Adult and Health Services,Head of Adults,Third Party Payments,472101,Purchase of Care,01/07/2020,3754929-0000053128,"5,066.66",NORTH EAST AUTISM SOCIETY.
Dedicated Schools Grant BG0015,DSG High Needs Block,Third Party Payments,425005,Rendered by Voluntary Organisations,01/07/2020,3754859-DU01/550/0520,"12,488.66",HILLSIDE SCHOOL (ABERDOUR) LTD.
Dedicated Schools Grant BG0015,DSG High Needs Block,Third Party Payments,425005,Rendered by Voluntary Organisations,01/07/2020,3755038-723,"3,632.68",WITHERSLACK GROUP LTD T/A ASHBROOKE SCHOOL.
Dedicated Schools Grant BG0015,DSG High Needs Block,Third Party Payments,425005,Rendered by Voluntary Organisations,01/07/2020,3755038-728,"23,007.00",WITHERSLACK GROUP LTD T/A ASHBROOKE SCHOOL.
Resources BK0010,Digital and Customer Services,Supplies and Services,344015,Telephones,01/07/2020,3755027-OE25367,675.00,VODAFONE CORPORATE LTD.
Resources BK0010,Digital and Customer Services,Supplies and Services,344015,Telephones,01/07/2020,3755028-OD94987,"1,017.00",VODAFONE LTD.
Neighbourhoods and Climate Change,Environmental Services,Transport,230710,Contract Hire,01/07/2020,3754981-105/20/16219,"9,500.00",SOCIETE GENERALE EQUIPMENT FINANCE LTD.
Adult and Health Services,Commissioning inc Supporting People,Third Party Payments,479101,Purchase of Care,01/07/2020,3754816-410,"13,748.00",DURHAM COUNTY CARERS SUPPORT.
Adult and Health Services,Head of Adults,Third Party Payments,479101,Purchase of Care,01/07/2020,3754999-4810018448,"14,918.00",TEES ESK & WEAR VALLEYS NHS FOUNDATION TRUST.
Adult and Health Services,Commissioning inc Supporting People,Third Party Payments,479111,Purchase of Care,01/07/2020,3754750-1970509,"3,297.48",ANCHOR HANOVER GROUP.
Adult and Health Services,Commissioning inc Supporting People,Third Party Payments,479111,Purchase of Care,01/07/2020,3754860-1970529,940.80,HOME GROUP LTD FORMERLY STONHAM HOUSING ASSOCIATION LTD.
"Regeneration, Economy and Growth",Culture Sport and Tourism,Supplies and Services,384199,Miscellaneous Expenses,01/07/2020,3754762-13533,648.00,BDRC CONTINENTAL LTD.
Resources BK0010,Transformation,Supplies and Services,384199,Miscellaneous Expenses,01/07/2020,3754828-185-034,"1,200.00",FAT MEDIA LTD.
Resources BK0010,Transformation,Supplies and Services,384199,Miscellaneous Expenses,01/07/2020,3754828-185-035,855.00,FAT MEDIA LTD.
Adult and Health Services,Head of Adults,Supplies and Services,384616,Miscellaneous Expenses,01/07/2020,3754882-C9STAG/2020/JUNE,533.15,KARBON HOMES LTD FORMERLY CESTRIA HOUSING ASSOCIATION LTD.
Neighbourhoods and Climate Change,Environmental Services,Third Party Payments,430100,Rendered by Private Contractors,01/07/2020,3754740-2967,810.00,A & J GUTHRIE.
Neighbourhoods and Climate Change,Environmental Services,Third Party Payments,430100,Rendered by Private Contractors,01/07/2020,3754740-2968,"2,927.46",A & J GUTHRIE.
"Regeneration, Economy and Growth",Corporate Property and Land,Third Party Payments,430100,Rendered by Private Contractors,01/07/2020,3754745-44618324-61,"2,103.30",ADT FIRE & SECURITY PLC.
"Regeneration, Economy and Growth",Corporate Property and Land,Third Party Payments,430100,Rendered by Private Contractors,01/07/2020,3754760-32585,798.00,AYCLIFFE FABRICATIONS LTD.
"Regeneration, Economy and Growth",Corporate Property and Land,Third Party Payments,430100,Rendered by Private Contractors,01/07/2020,3754782-469,"3,325.61",CEILINGS DIRECT LTD.
"Regeneration, Economy and Growth",Corporate Property and Land,Third Party Payments,430100,Rendered by Private Contractors,01/07/2020,3754782-472,"2,523.15",CEILINGS DIRECT LTD.
Neighbourhoods and Climate Change,Environmental Services,Third Party Payments,430100,Rendered by Private Contractors,01/07/2020,3754805-96391077,952.84,DENNIS EAGLE LTD T/A TERBERG MATEC (UK) LTD.
Neighbourhoods and Climate Change,Environmental Services,Third Party Payments,430100,Rendered by Private Contractors,01/07/2020,3754806-380537,"4,263.64",DENNIS EAGLE LTD.
Neighbourhoods and Climate Change,Environmental Services,Third Party Payments,430100,Rendered by Private Contractors,01/07/2020,3754826-13000470979,"2,391.69",ENTERPRISE FLEX-E-RENT T/A BURNT TREE GROUP LTD.
"Regeneration, Economy and Growth",Corporate Property and Land,Third Party Payments,430100,Rendered by Private Contractors,01/07/2020,3754832-11356,"5,362.00",FROSTREE LTD.
"Regeneration, Economy and Growth",Corporate Property and Land,Third Party Payments,430100,Rendered by Private Contractors,01/07/2020,3754871-8851,947.50,INGLEFORD SCAFFOLDING LTD.
"Regeneration, Economy and Growth",Corporate Property and Land,Third Party Payments,430100,Rendered by Private Contractors,01/07/2020,3754871-8850,"6,457.50",INGLEFORD SCAFFOLDING LTD.
Neighbourhoods and Climate Change,Technical Services CM0300,Third Party Payments,430100,Rendered by Private Contractors,01/07/2020,3754947-165300,"2,326.00",PREMIER TRAFFIC MANAGEMENT LTD.
Neighbourhoods and Climate Change,Technical Services CM0300,Third Party Payments,430100,Rendered by Private Contractors,01/07/2020,3754973-21077,"39,663.69",SEYMOUR (CIVIL ENGINEERING CONTRACTORS) LTD.
Neighbourhoods and Climate Change,Environmental Services,Third Party Payments,430100,Rendered by Private Contractors,01/07/2020,3754990-0001481725,"1,839.28",SRCL LTD.
Neighbourhoods and Climate Change,Environmental Services,Third Party Payments,430100,Rendered by Private Contractors,01/07/2020,3754990-0001483866,"1,688.93",SRCL LTD.
Neighbourhoods and Climate Change,Environmental Services,Third Party Payments,430100,Rendered by Private Contractors,01/07/2020,3754990-0001483867,"1,716.83",SRCL LTD.
Neighbourhoods and Climate Change,Environmental Services,Third Party Payments,430100,Rendered by Private Contractors,01/07/2020,3754990-0001483868,"1,728.52",SRCL LTD.
Neighbourhoods and Climate Change,Technical Services CM0300,Third Party Payments,430100,Rendered by Private Contractors,01/07/2020,3755020-INV057607,"5,530.50",URBIS SCHREDER LTD.
Neighbourhoods and Climate Change,Environmental Services,Third Party Payments,430101,Rendered by Private Contractors,01/07/2020,3754807-IV1291055,"2,508.53",DIRECT TYRE MANAGEMENT LTD (DTM).
Neighbourhoods and Climate Change,Environmental Services,Third Party Payments,430101,Rendered by Private Contractors,01/07/2020,3754807-IV1291053,"1,320.99",DIRECT TYRE MANAGEMENT LTD (DTM).
Neighbourhoods and Climate Change,Environmental Services,Third Party Payments,430101,Rendered by Private Contractors,01/07/2020,3754807-IV1293627,"1,127.61",DIRECT TYRE MANAGEMENT LTD (DTM).
Neighbourhoods and Climate Change,Environmental Services,Third Party Payments,430101,Rendered by Private Contractors,01/07/2020,3754807-IV1287239,"2,061.63",DIRECT TYRE MANAGEMENT LTD (DTM).
Neighbourhoods and Climate Change,Environmental Services,Third Party Payments,430101,Rendered by Private Contractors,01/07/2020,3754807-IV1291054,"2,396.50",DIRECT TYRE MANAGEMENT LTD (DTM).
Dedicated Schools Grant BG0015,DSG High Needs Block,Third Party Payments,440080,Other third party payments E440,01/07/2020,3754817-11048,"5,331.00",DURHAM SCHOOL.*
Dedicated Schools Grant BG0015,DSG High Needs Block,Third Party Payments,440080,Other third party payments E440,01/07/2020,3754817-11095,"9,995.34",DURHAM SCHOOL.*
Dedicated Schools Grant BG0015,DSG High Needs Block,Third Party Payments,440080,Other third party payments E440,01/07/2020,3754863-CAS-06-2020-138,"82,653.66",HOPE WOOD ACADEMY.
Dedicated Schools Grant BG0015,DSG High Needs Block,Third Party Payments,440080,Other third party payments E440,01/07/2020,3755005-24406895,"1,530.00",THE HUNTERCOMBE GROUP T/A HUNTERCOMBE HOSPITAL STAFFORD.
Resources BK0010,Finance & Transactional Services,Supplies and Services,340001,Postages E340,01/07/2020,3754964-9061018725,"9,195.83",ROYAL MAIL GROUP PLC.
Neighbourhoods and Climate Change,Environmental Services,Supplies and Services,338066,Services,01/07/2020,3754837-BURSARYJULY20,692.64,GEMMA MASON (GEOLOGY TRAINEE).
Neighbourhoods and Climate Change,Technical Services CM0300,Supplies and Services,338066,Services,01/07/2020,3754986-1914,"2,780.00",SPATIAL GEOMATICS LTD.
Neighbourhoods and Climate Change,Technical Services CM0300,Supplies and Services,338066,Services,01/07/2020,3754986-1919,"2,085.00",SPATIAL GEOMATICS LTD.
Adult and Health Services,Public Health CC0450,Third Party Payments,460802,Contract Payments,01/07/2020,3754790-3910017936,"368,605.00",CO DURHAM & DARLINGTON NHS FOUNDATION TRUST.
Adult and Health Services,Public Health CC0450,Third Party Payments,460803,Contract Payments,01/07/2020,3754790-3910017939,"5,515.00",CO DURHAM & DARLINGTON NHS FOUNDATION TRUST.
Adult and Health Services,Public Health CC0450,Third Party Payments,460803,Contract Payments,01/07/2020,3754927-7312317768,"21,112.50",NHS MIDLANDS & LANCASHIRE CSU.*
Children and Young Peoples Services,Head of Childrens Social Care,Third Party Payments,425021,Rendered by Voluntary Organisations,01/07/2020,3754764-BG-0217,"10,610.90",BESPOKE GUARDIANS LTD.
Children and Young Peoples Services,Head of Childrens Social Care,Third Party Payments,425021,Rendered by Voluntary Organisations,01/07/2020,3754764-BG-0218,"10,610.90",BESPOKE GUARDIANS LTD.
Adult and Health Services,Head of Adults,Third Party Payments,470101,Purchase of Care,01/07/2020,3754823-10521,"33,869.92",EDUCATION & SERVICES FOR PEOPLE WITH AUTISM LTD (ESPA).
Adult and Health Services,Head of Adults,Third Party Payments,470101,Purchase of Care,01/07/2020,3754823-10522,"9,614.43",EDUCATION & SERVICES FOR PEOPLE WITH AUTISM LTD (ESPA).
Adult and Health Services,Head of Adults,Third Party Payments,470101,Purchase of Care,01/07/2020,3755007-45687,"21,745.44",THE PERCY HEDLEY FOUNDATION.
Adult and Health Services,Head of Adults,Third Party Payments,470101,Purchase of Care,01/07/2020,3755007-45691,"22,965.95",THE PERCY HEDLEY FOUNDATION.
Children and Young Peoples Services,Head of Childrens Social Care,Third Party Payments,425023,Rendered by Voluntary Organisations,01/07/2020,3754859-DU01/548/0520,"12,488.66",HILLSIDE SCHOOL (ABERDOUR) LTD.
Children and Young Peoples Services,Head of Childrens Social Care,Transport,230005,Contract Hire,01/07/2020,3755011-561-2020,"1,755.38",TONYS TAXIS (A BIRCH).
Children and Young Peoples Services,Head of Childrens Social Care,Third Party Payments,486044,Service level agreements E486,01/07/2020,3754790-3910017876,"7,166.00",CO DURHAM & DARLINGTON NHS FOUNDATION TRUST.
Neighbourhoods and Climate Change,Technical Services CM0300,Stock A926,926900,Stock in hand-Inventory system,01/07/2020,3754749-I8642722,"1,799.00",ALLIANCE DISPOSABLES LTD T/A ALLIANCE NORTH LTD.
Neighbourhoods and Climate Change,Technical Services CM0300,Stock A926,926900,Stock in hand-Inventory system,01/07/2020,3755010-NSIN00037868,652.80,THOMAS OWEN & SONS (NEWCASTLE) LTD.
Adult and Health Services,Head of Adults,Third Party Payments,478151,Purchase of Care,01/07/2020,3754743-1155,"10,819.20",ACCEPT CARE LTD.
Adult and Health Services,Head of Adults,Third Party Payments,478151,Purchase of Care,01/07/2020,3754800-INV-0533,"5,762.40",DEACONSTAR LTD.
Adult and Health Services,Head of Adults,Third Party Payments,478151,Purchase of Care,01/07/2020,3754800-INV-0534,"14,406.00",DEACONSTAR LTD.
Adult and Health Services,Head of Adults,Third Party Payments,478151,Purchase of Care,01/07/2020,3754800-INV-0535,"14,406.00",DEACONSTAR LTD.
Adult and Health Services,Head of Adults,Third Party Payments,478151,Purchase of Care,01/07/2020,3754946-1480,"18,480.00",POSITIVE INDIVIDUAL PROACTIVE SUPPORT LTD.
Adult and Health Services,Head of Adults,Third Party Payments,478151,Purchase of Care,01/07/2020,3754985-25620,579.05,SOVEREIGN CARE (NORTH EAST) LTD.
Neighbourhoods and Climate Change,Environmental Services,Transport,210057,Repair and Maintenance of Vehicles,01/07/2020,3754763-35183022,693.96,BELL TRUCK SALES LTD T/A BELL TRUCK & VAN.
Neighbourhoods and Climate Change,Environmental Services,Transport,210057,Repair and Maintenance of Vehicles,01/07/2020,3754763-35183388,815.91,BELL TRUCK SALES LTD T/A BELL TRUCK & VAN.
Neighbourhoods and Climate Change,Environmental Services,Transport,210057,Repair and Maintenance of Vehicles,01/07/2020,3754783-711890,573.33,CHATFIELDS T/A EVANS HALSHAW.
Neighbourhoods and Climate Change,Environmental Services,Transport,210057,Repair and Maintenance of Vehicles,01/07/2020,3754806-DE11319468,938.63,DENNIS EAGLE LTD.
Neighbourhoods and Climate Change,Environmental Services,Transport,210057,Repair and Maintenance of Vehicles,01/07/2020,3754925-INVHE52068,512.00,NE TRUCK SPARES LTD (NETS).
Children and Young Peoples Services,Head of Education and Skills,Premises,145052,Cleaning and Domestic Supplies,01/07/2020,3754739-6009,570.00,A & B INDUSTRIAL CLEANING LTD.
Children and Young Peoples Services,Head of Education and Skills,Supplies and Services,336005,Advertising E336,02/07/2020,3755220-INV-5104,"1,714.00",STEVE DAVIDSON ADVERTISING LTD T/A SD ADVERTISING LTD.
Dedicated Schools Grant BG0015,DSG High Needs Block,Third Party Payments,410037,Rendered by Other Local Authorities,02/07/2020,3755114-01,"5,519.00",FATFIELD ACADEMY.
Children and Young Peoples Services,Head of Early Help Inclusion & Vulnerable Children.,Employees,080025,Agency Staff,02/07/2020,3755195-51533883,674.25,PROTOCOL EDUCATION LTD.
Neighbourhoods and Climate Change,Technical Services CM0300,Fees,901004,Capital - Detailed Design,02/07/2020,3755167-33769017,511.78,NEWSQUEST (YORKSHIRE & NORTH EAST) LTD.
"Regeneration, Economy and Growth",Culture Sport and Tourism,Supplies and Services,304083,Equipment and Materials,02/07/2020,3755151-INV-5994,"4,088.86",LONTON COFFEE COMPANY LTD.
"Regeneration, Economy and Growth",Culture Sport and Tourism,Premises,145023,Cleaning and Domestic Supplies,02/07/2020,3755125-06/068335,687.39,GREENHAM TRADING LTD.
"Regeneration, Economy and Growth",Culture Sport and Tourism,Premises,145023,Cleaning and Domestic Supplies,02/07/2020,3755125-06/069432,"1,061.88",GREENHAM TRADING LTD.
"Regeneration, Economy and Growth",Culture Sport and Tourism,Premises,145023,Cleaning and Domestic Supplies,02/07/2020,3755125-06/072236,650.00,GREENHAM TRADING LTD.
Neighbourhoods and Climate Change,Environmental Services,Supplies and Services,342215,Computers and Communications,02/07/2020,3755244-45419,"4,159.96",UK TELEMATICS LTD.
Resources BK0010,Digital and Customer Services,Vehicles Equipment Furniture and Fittings,912701,Computer equipment,02/07/2020,3755089-7402624803,"117,660.00",DELL COMPUTER CORPORATION LTD.
"Regeneration, Economy and Growth",Development and Housing,Supplies and Services,342053,Computers and Communications,02/07/2020,3755158-67,"5,000.00",METASTREET LTD.
Children and Young Peoples Services,Head of Education and Skills,Supplies and Services,338027,Services,02/07/2020,3755159-DCC4401B,855.00,MIKE REDSHAW EDUCATION CONSULTANT.
Children and Young Peoples Services,Head of Education and Skills,Transport,230008,Contract Hire,02/07/2020,3755075-INV-043,616.00,CLARE LYNSEY STEWART T/A K&C TAXIS.
"Regeneration, Economy and Growth",Corporate Property and Land,Supplies and Services,304221,Equipment and Materials,02/07/2020,3755099-059-263872,"4,895.04",EDMUNDSON ELECTRICAL LTD.
Neighbourhoods and Climate Change,Technical Services CM0300,Supplies and Services,304221,Equipment and Materials,02/07/2020,3755111-2006\302,514.94,EPPLETON QUARRY PRODUCTS LTD.
"Regeneration, Economy and Growth",Corporate Property and Land,Supplies and Services,304221,Equipment and Materials,02/07/2020,3755146-0303/00110073,"11,863.39",JT DOVE LTD.
"Regeneration, Economy and Growth",Corporate Property and Land,Supplies and Services,304221,Equipment and Materials,02/07/2020,3755146-0303/00110074,"8,748.87",JT DOVE LTD.
"Regeneration, Economy and Growth",Corporate Property and Land,Supplies and Services,304221,Equipment and Materials,02/07/2020,3755160-0000090652,992.24,MIKROFILL SYSTEMS LTD.
Neighbourhoods and Climate Change,Environmental Services,Supplies and Services,304221,Equipment and Materials,02/07/2020,3755169-RET/459,575.00,NORTH EAST GRANITE COMPANY LTD.
"Regeneration, Economy and Growth",Corporate Property and Land,Supplies and Services,304221,Equipment and Materials,02/07/2020,3755170-397711,819.00,NORTHERN TOOLS & ACCESSORIES.
"Regeneration, Economy and Growth",Corporate Property and Land,Supplies and Services,304221,Equipment and Materials,02/07/2020,3755226-396447,"2,250.60",T CROSSLING & CO LTD.
"Regeneration, Economy and Growth",Corporate Property and Land,Supplies and Services,304221,Equipment and Materials,02/07/2020,3755227-JE01981TLEP,512.00,T MANNERS & SONS LTD.
"Regeneration, Economy and Growth",Corporate Property and Land,Supplies and Services,304221,Equipment and Materials,02/07/2020,3755227-JE01985TLEP,621.00,T MANNERS & SONS LTD.
Regeneration and Local Services,COVID19 - Regeneration Economy and Growth,Supplies and Services,304259,Equipment and Materials,02/07/2020,3755055-169094,"10,500.00",ALBANY OFFICE EQUIPMENT (WHOLESALE) LTD.
Resources BK0010,Transformation,Supplies and Services,304259,Equipment and Materials,02/07/2020,3755193-0000409656,"2,825.10",PRESERVATION EQUIPMENT LTD.
"Regeneration, Economy and Growth",Transport and Contracted Services,Third Party Payments,460151,Contract Payments,02/07/2020,3755140-24253,858.00,JACK COUPE & SONS LTD T/A COUPE LINE.
"Regeneration, Economy and Growth",Corporate Property and Land,Supplies and Services,384199,Miscellaneous Expenses,02/07/2020,3755066-38918,"13,601.40",BGP CONSULTING LTD T/A BILLINGHURST GEORGE & PARTNERS.
Neighbourhoods and Climate Change,Environmental Services,Supplies and Services,384199,Miscellaneous Expenses,02/07/2020,3755084-4100696515/01,750.00,CREATIVE POP.
Children and Young Peoples Services,Head of Early Help Inclusion & Vulnerable Children.,Supplies and Services,384199,Miscellaneous Expenses,02/07/2020,3755173-1080353,"4,661.40",NOWCOMM LTD.
"Regeneration, Economy and Growth",Corporate Property and Land,Supplies and Services,384199,Miscellaneous Expenses,02/07/2020,3755217-2020-266,"2,135.00",SOLMEK LTD.
Children and Young Peoples Services,Head of Education and Skills,Supplies and Services,384199,Miscellaneous Expenses,02/07/2020,3755219-DW0085/1,910.20,STEADFAST SECURITY SYSTEMS LTD.
Children and Young Peoples Services,Childrens Services Operational Support,Supplies and Services,384199,Miscellaneous Expenses,02/07/2020,3755221-01008000941484,"5,280.00",STHREE PARTNERSHIP LLP T/A PROGRESSIVE.
Children and Young Peoples Services,Childrens Services Operational Support,Supplies and Services,384199,Miscellaneous Expenses,02/07/2020,3755221-01008000950266,"1,920.00",STHREE PARTNERSHIP LLP T/A PROGRESSIVE.
Children and Young Peoples Services,Childrens Services Operational Support,Supplies and Services,384199,Miscellaneous Expenses,02/07/2020,3755221-01008000956485,960.00,STHREE PARTNERSHIP LLP T/A PROGRESSIVE.
Children and Young Peoples Services,Head of Education and Skills,Third Party Payments,440999,Other third party payments E440,02/07/2020,3755078-CTA/038,"4,245.64",COMMUNICATORS TRAINING ASSOCIATES LTD.
"Regeneration, Economy and Growth",Development and Housing,Third Party Payments,440999,Other third party payments E440,02/07/2020,3755232-1,720.00,THE LETTING GROUP LTD (TLG).
"Regeneration, Economy and Growth",Transport and Contracted Services,Third Party Payments,430106,Rendered by Private Contractors,02/07/2020,3755059-117222,"46,514.87",ARRIVA DURHAM COUNTY LTD.
"Regeneration, Economy and Growth",Corporate Property and Land,Third Party Payments,430100,Rendered by Private Contractors,02/07/2020,3755136-8848,"1,929.00",INGLEFORD SCAFFOLDING LTD.
"Regeneration, Economy and Growth",Transport and Contracted Services,Third Party Payments,430100,Rendered by Private Contractors,02/07/2020,3755192-165305,635.00,PREMIER TRAFFIC MANAGEMENT LTD.
Neighbourhoods and Climate Change,Technical Services CM0300,Third Party Payments,430100,Rendered by Private Contractors,02/07/2020,3755199-12617,967.80,QUANTUM POWER CONNECTIONS LTD.
Neighbourhoods and Climate Change,Environmental Services,Supplies and Services,338066,Services,02/07/2020,3755063-SLINV/00000061,"2,485.00",ASKHAM BRYAN COLLEGE.
Resources BK0010,Finance & Transactional Services,Supplies and Services,338066,Services,02/07/2020,3755074-C/BN198590,"22,602.15",CIVICA UK LTD.
Adult and Health Services,Public Health CC0450,Third Party Payments,460803,Contract Payments,02/07/2020,3755053-INV-0768,"124,855.00",ABL HEALTH LTD.
Adult and Health Services,Public Health CC0450,Third Party Payments,460803,Contract Payments,02/07/2020,3755190-17310/14,"7,326.42",PIONEERING CARE PARTNERSHIP.
Adult and Health Services,Public Health CC0450,Third Party Payments,460803,Contract Payments,02/07/2020,3755190-17307/14,"5,462.93",PIONEERING CARE PARTNERSHIP.
Adult and Health Services,Head of Adults,Third Party Payments,470101,Purchase of Care,02/07/2020,3755218-24500,"61,908.60",ST PHILIPS CARE LTD.
Adult and Health Services,Head of Adults,Third Party Payments,470101,Purchase of Care,02/07/2020,3755233-46327,"22,965.95",THE PERCY HEDLEY FOUNDATION.
Adult and Health Services,Head of Adults,Third Party Payments,470101,Purchase of Care,02/07/2020,3755233-46329,"21,745.44",THE PERCY HEDLEY FOUNDATION.
Adult and Health Services,Head of Adults,Third Party Payments,470101,Purchase of Care,02/07/2020,3755233-46966,632.00,THE PERCY HEDLEY FOUNDATION.
Neighbourhoods and Climate Change,Environmental Services,Transport,230005,Contract Hire,02/07/2020,3755110-8160209,507.50,ENTERPRISE FLEX-E-RENT T/A BURNT TREE GROUP LTD.
Neighbourhoods and Climate Change,Environmental Services,Transport,230005,Contract Hire,02/07/2020,3755166-135027,"2,700.00",ND BROWN LTD.
Neighbourhoods and Climate Change,Environmental Services,Transport,230005,Contract Hire,02/07/2020,3755166-135024,"2,900.00",ND BROWN LTD.
Neighbourhoods and Climate Change,Environmental Services,Transport,230005,Contract Hire,02/07/2020,3755166-135025,"1,979.88",ND BROWN LTD.
Neighbourhoods and Climate Change,Environmental Services,Transport,230005,Contract Hire,02/07/2020,3755166-135026,"1,885.00",ND BROWN LTD.
Neighbourhoods and Climate Change,Environmental Services,Transport,230005,Contract Hire,02/07/2020,3755238-21447,975.00,TRASH UK LTD.
Neighbourhoods and Climate Change,Technical Services CM0300,Stock A926,926900,Stock in hand-Inventory system,02/07/2020,3755125-06/058937,"2,248.26",GREENHAM TRADING LTD.
Neighbourhoods and Climate Change,Technical Services CM0300,Stock A926,926900,Stock in hand-Inventory system,02/07/2020,3755125-06/072776,528.00,GREENHAM TRADING LTD.
Neighbourhoods and Climate Change,Technical Services CM0300,Stock A926,926900,Stock in hand-Inventory system,02/07/2020,3755138-735626,"2,212.00",INSTARMAC GROUP PLC.
Neighbourhoods and Climate Change,Technical Services CM0300,Stock A926,926900,Stock in hand-Inventory system,02/07/2020,3755146-0104/00109195,"2,045.88",JT DOVE LTD.
Neighbourhoods and Climate Change,Technical Services CM0300,Stock A926,926900,Stock in hand-Inventory system,02/07/2020,3755183-XL256182,"1,262.50",PARK ELECTRICAL DISTRIBUTORS LTD.
Neighbourhoods and Climate Change,Technical Services CM0300,Stock A926,926900,Stock in hand-Inventory system,02/07/2020,3755183-XL256184,660.00,PARK ELECTRICAL DISTRIBUTORS LTD.
Neighbourhoods and Climate Change,Environmental Services,Supplies and Services,372009,Subscriptions E372,02/07/2020,3755079-CEE-SV12980,500.00,COMMUNITY ENERGY ASSOCIATION (ENGLAND) LTD.
Adult and Health Services,Head of Adults,Third Party Payments,478151,Purchase of Care,02/07/2020,3755105-KWVOIDS/PERIOD3/2020,736.96,EMBRACING CARE.
Adult and Health Services,Head of Adults,Third Party Payments,478151,Purchase of Care,02/07/2020,3755106-004,"45,921.30",EMBRACING CARE.
Adult and Health Services,Head of Adults,Third Party Payments,478151,Purchase of Care,02/07/2020,3755106-ALDVOIDPER32020,"2,482.28",EMBRACING CARE.
Adult and Health Services,Head of Adults,Third Party Payments,478151,Purchase of Care,02/07/2020,3755106-GREENLANEP32020,"1,637.76",EMBRACING CARE.
Adult and Health Services,Head of Adults,Third Party Payments,478151,Purchase of Care,02/07/2020,3755106-JENNAHOUSEP32020,"1,874.68",EMBRACING CARE.
Adult and Health Services,Head of Adults,Third Party Payments,478151,Purchase of Care,02/07/2020,3755106-LDCONTPERIOD2-2020,"3,726.80",EMBRACING CARE.
Adult and Health Services,Head of Adults,Third Party Payments,478151,Purchase of Care,02/07/2020,3755106-LDCONTPERIOD3-2020,"3,726.80",EMBRACING CARE.
Adult and Health Services,Head of Adults,Third Party Payments,478151,Purchase of Care,02/07/2020,3755106-PARKDRIVEP32020,"2,429.40",EMBRACING CARE.
Adult and Health Services,Head of Adults,Third Party Payments,478151,Purchase of Care,02/07/2020,3755106-SHELLEYP32020,"1,436.28",EMBRACING CARE.
Adult and Health Services,Head of Adults,Third Party Payments,478151,Purchase of Care,02/07/2020,3755106-STAGVOIDPERIOD3/2020,"2,072.92",EMBRACING CARE.
Adult and Health Services,Head of Adults,Third Party Payments,478151,Purchase of Care,02/07/2020,3755106-WESTLEAPERIOD32020,"2,344.72",EMBRACING CARE.
Adult and Health Services,Head of Adults,Third Party Payments,478151,Purchase of Care,02/07/2020,3755106-WILLOWSP32020,"2,951.48",EMBRACING CARE.
Adult and Health Services,Head of Adults,Third Party Payments,478151,Purchase of Care,02/07/2020,3755131-HLC209,882.00,HIGHLEA CARE LTD.
Adult and Health Services,Head of Adults,Third Party Payments,478151,Purchase of Care,02/07/2020,3755131-HLC210,882.00,HIGHLEA CARE LTD.
Adult and Health Services,Head of Adults,Third Party Payments,478151,Purchase of Care,02/07/2020,3755131-HLC212,"2,005.08",HIGHLEA CARE LTD.
Adult and Health Services,Head of Adults,Third Party Payments,478151,Purchase of Care,02/07/2020,3755131-HLC213,705.60,HIGHLEA CARE LTD.
Adult and Health Services,Head of Adults,Third Party Payments,478151,Purchase of Care,02/07/2020,3755131-HLC214,"2,263.80",HIGHLEA CARE LTD.
Adult and Health Services,Head of Adults,Third Party Payments,478151,Purchase of Care,02/07/2020,3755131-HLC217,"2,838.15",HIGHLEA CARE LTD.
Adult and Health Services,Head of Adults,Third Party Payments,478151,Purchase of Care,02/07/2020,3755131-HLC219,"1,584.24",HIGHLEA CARE LTD.
Resources BK0010,Digital and Customer Services,Supplies and Services,304639,Equipment and Materials,02/07/2020,3755122-6461,"4,727.00",FULL CONTROL NETWORKS.
"Regeneration, Economy and Growth",Development and Housing,Supplies and Services,336005,Advertising E336,03/07/2020,3755442-33598022,831.74,NEWSQUEST (YORKSHIRE & NORTH EAST) LTD.
Dedicated Schools Grant BG0015,DSG High Needs Block,Third Party Payments,410037,Rendered by Other Local Authorities,03/07/2020,3755462-POSI353,"6,147.37",PORTLAND ACADEMY.
Resources BK0010,Digital and Customer Services,Supplies and Services,304040,Equipment and Materials,03/07/2020,3755319-9424011004,522.18,DATA INTEGRATION LTD.
Neighbourhoods and Climate Change,Technical Services CM0300,Fees,901004,Capital - Detailed Design,03/07/2020,3755442-33644635,511.78,NEWSQUEST (YORKSHIRE & NORTH EAST) LTD.
Neighbourhoods and Climate Change,Technical Services CM0300,Fees,901004,Capital - Detailed Design,03/07/2020,3755442-33725140,751.75,NEWSQUEST (YORKSHIRE & NORTH EAST) LTD.
Adult and Health Services,Head of Adults,Supplies and Services,338366,Services,03/07/2020,3755288-68295,"1,616.00",CARE ABILITY HEALTHCARE LTD.
Adult and Health Services,Head of Adults,Supplies and Services,338366,Services,03/07/2020,3755288-68506,711.10,CARE ABILITY HEALTHCARE LTD.
Adult and Health Services,Head of Adults,Supplies and Services,338366,Services,03/07/2020,3755288-68507,806.10,CARE ABILITY HEALTHCARE LTD.
Adult and Health Services,Head of Adults,Supplies and Services,338366,Services,03/07/2020,3755288-68511,"1,417.00",CARE ABILITY HEALTHCARE LTD.
Adult and Health Services,Head of Adults,Supplies and Services,338366,Services,03/07/2020,3755288-68512,"1,964.00",CARE ABILITY HEALTHCARE LTD.
Adult and Health Services,Head of Adults,Supplies and Services,338366,Services,03/07/2020,3755288-68513,"1,764.00",CARE ABILITY HEALTHCARE LTD.
Adult and Health Services,Head of Adults,Supplies and Services,338366,Services,03/07/2020,3755288-68514,"2,057.20",CARE ABILITY HEALTHCARE LTD.
Adult and Health Services,Head of Adults,Supplies and Services,338366,Services,03/07/2020,3755288-68594,"2,344.74",CARE ABILITY HEALTHCARE LTD.
Regeneration and Local Services,COVID19 - Regeneration Economy and Growth,Premises,145023,Cleaning and Domestic Supplies,03/07/2020,3755360-06/069158,"15,652.50",GREENHAM TRADING LTD.
"Regeneration, Economy and Growth",Culture Sport and Tourism,Premises,145023,Cleaning and Domestic Supplies,03/07/2020,3755360-06/068586,"1,270.41",GREENHAM TRADING LTD.
Resources BK0010,Digital and Customer Services,Vehicles Equipment Furniture and Fittings,912701,Computer equipment,03/07/2020,3755441-5100,"23,455.50",NEWLANDMEDIA LTD.
Adult and Health Services,Commissioning inc Supporting People,Supplies and Services,342033,Computers and Communications,03/07/2020,3755320-7402624440,995.13,DELL COMPUTER CORPORATION LTD.
Resources BK0010,Corporate Finance & Commercial Services,Supplies and Services,342051,Computers and Communications,03/07/2020,3755308-0000005138,"13,961.80",COHORT SOFTWARE LTD.
Resources BK0010,Transformation,Supplies and Services,342051,Computers and Communications,03/07/2020,3755387-156,"9,900.00",JANICE TULLOCK ASSOCIATES LTD.
Resources BK0010,Legal & Democratic Services,Supplies and Services,342051,Computers and Communications,03/07/2020,3755545-16071,850.00,WPC SOFTWARE LTD.
Resources BK0010,Transformation,Fees,901002,Consultants fees 901002,03/07/2020,3755479-002937,"7,250.00",RYDER ARCHITECTURE LTD.
Children and Young Peoples Services,Head of Education and Skills,Transport,230034,Contract Hire,03/07/2020,3755271-MAY2020-01,980.00,ARMSTRONG`S TAXIS.
Children and Young Peoples Services,Head of Education and Skills,Transport,230006,Contract Hire,03/07/2020,3755355-12106-A052,"1,680.00",GATESHEAD CENTRAL TAXIS LTD.
Children and Young Peoples Services,Head of Education and Skills,Transport,230010,Contract Hire,03/07/2020,3755514-BL026APRIL,"1,628.65",THOMAS GLEN.
Children and Young Peoples Services,Head of Education and Skills,Transport,230010,Contract Hire,03/07/2020,3755514-BL026MAY,"1,375.23",THOMAS GLEN.
Children and Young Peoples Services,Head of Education and Skills,Transport,230008,Contract Hire,03/07/2020,3755296-044,"2,750.00",CHANNER`S CABS.
Children and Young Peoples Services,Head of Education and Skills,Transport,230008,Contract Hire,03/07/2020,3755355-12106-A160,"2,288.00",GATESHEAD CENTRAL TAXIS LTD.
Children and Young Peoples Services,Head of Education and Skills,Transport,230008,Contract Hire,03/07/2020,3755355-12106,"3,344.00",GATESHEAD CENTRAL TAXIS LTD.
Children and Young Peoples Services,Head of Education and Skills,Transport,230008,Contract Hire,03/07/2020,3755355-12106-A008,"4,048.00",GATESHEAD CENTRAL TAXIS LTD.
Children and Young Peoples Services,Head of Education and Skills,Transport,230008,Contract Hire,03/07/2020,3755355-12106-A056,"2,987.60",GATESHEAD CENTRAL TAXIS LTD.
Children and Young Peoples Services,Head of Education and Skills,Transport,230008,Contract Hire,03/07/2020,3755355-12106-A066,"3,264.00",GATESHEAD CENTRAL TAXIS LTD.
Children and Young Peoples Services,Head of Education and Skills,Transport,230008,Contract Hire,03/07/2020,3755355-12106-A016,"3,564.00",GATESHEAD CENTRAL TAXIS LTD.
Children and Young Peoples Services,Head of Education and Skills,Transport,230008,Contract Hire,03/07/2020,3755355-12106-A048,"2,992.00",GATESHEAD CENTRAL TAXIS LTD.
Children and Young Peoples Services,Head of Education and Skills,Transport,230008,Contract Hire,03/07/2020,3755355-12108/3,"3,762.00",GATESHEAD CENTRAL TAXIS LTD.
Children and Young Peoples Services,Head of Education and Skills,Transport,230008,Contract Hire,03/07/2020,3755426-192,"1,620.00",MICHAEL COBB T/A HAIL TAXIS.
Children and Young Peoples Services,Head of Education and Skills,Transport,230008,Contract Hire,03/07/2020,3755454-DCC307,"2,782.74",PAUL`S TAXIS..
"Regeneration, Economy and Growth",Transport and Contracted Services,Third Party Payments,430109,Rendered by Private Contractors,03/07/2020,3755505-PSI002365,"4,032.00",TAGMASTER UK LTD.
Neighbourhoods and Climate Change,Partnerships & Community Engagement Div.,Cap Exp on Grants & Other Financial Assistance (REFCUS),918004,Contributions to other bodies 918004,03/07/2020,3755299-VOUCHER20ABCV19-SPEN019,"3,515.00",CITIZENS ADVICE COUNTY DURHAM.
Neighbourhoods and Climate Change,Partnerships & Community Engagement Div.,Cap Exp on Grants & Other Financial Assistance (REFCUS),918004,Contributions to other bodies 918004,03/07/2020,3755331-VOUCHER19NB-DCTY055,"8,006.00",DURHAM MOOR TENNIS CLUB.
Neighbourhoods and Climate Change,Partnerships & Community Engagement Div.,Cap Exp on Grants & Other Financial Assistance (REFCUS),918004,Contributions to other bodies 918004,03/07/2020,3755476-VOUCHER20NB-WEAR003,"4,000.00",ROOKHOPE VILLAGE HALL ASSOCIATION.
Neighbourhoods and Climate Change,Partnerships & Community Engagement Div.,Cap Exp on Grants & Other Financial Assistance (REFCUS),918004,Contributions to other bodies 918004,03/07/2020,3755488-VOUCHER20NB-DCTY002,"3,894.00",SHERBURN COMMUNITY ASSOCIATION.
Neighbourhoods and Climate Change,Partnerships & Community Engagement Div.,Cap Exp on Grants & Other Financial Assistance (REFCUS),918004,Contributions to other bodies 918004,03/07/2020,3755544-VOUCHER20NB-WEAR002,"5,000.00",WOLSINGHAM PARISH COUNCIL.
Neighbourhoods and Climate Change,Technical Services CM0300,Supplies and Services,304221,Equipment and Materials,03/07/2020,3755264-29959833,601.80,AGGREGATE INDUSTRIES UK LTD.
Neighbourhoods and Climate Change,Technical Services CM0300,Supplies and Services,304221,Equipment and Materials,03/07/2020,3755264-29965238,611.10,AGGREGATE INDUSTRIES UK LTD.
Neighbourhoods and Climate Change,Technical Services CM0300,Supplies and Services,304221,Equipment and Materials,03/07/2020,3755264-29991637,744.18,AGGREGATE INDUSTRIES UK LTD.
Neighbourhoods and Climate Change,Technical Services CM0300,Supplies and Services,304221,Equipment and Materials,03/07/2020,3755264-29991638,736.28,AGGREGATE INDUSTRIES UK LTD.
Neighbourhoods and Climate Change,Technical Services CM0300,Supplies and Services,304221,Equipment and Materials,03/07/2020,3755283-BMPR/308/BJW,700.00,BISHOP MIDDLEHAM PLANT & RECYCLING LTD.
"Regeneration, Economy and Growth",Corporate Property and Land,Supplies and Services,304221,Equipment and Materials,03/07/2020,3755301-2852AAW849,559.90,CITY PLUMBING SUPPLIES HOLDINGS LTD.
"Regeneration, Economy and Growth",Corporate Property and Land,Supplies and Services,304221,Equipment and Materials,03/07/2020,3755338-059-264133,"3,599.46",EDMUNDSON ELECTRICAL LTD.
"Regeneration, Economy and Growth",Corporate Property and Land,Supplies and Services,304221,Equipment and Materials,03/07/2020,3755369-4669190,"1,375.92",HEADLAM (FLOORCOVERING DISTRIBUTORS) LTD.
"Regeneration, Economy and Growth",Corporate Property and Land,Supplies and Services,304221,Equipment and Materials,03/07/2020,3755517-124349,600.00,TOMMY WARDLE.
Neighbourhoods and Climate Change,Technical Services CM0300,Supplies and Services,304221,Equipment and Materials,03/07/2020,3755525-211137,889.44,TYNEDALE ROADSTONE LTD.
Neighbourhoods and Climate Change,Technical Services CM0300,Supplies and Services,304221,Equipment and Materials,03/07/2020,3755525-211138,638.36,TYNEDALE ROADSTONE LTD.
Neighbourhoods and Climate Change,Technical Services CM0300,Supplies and Services,304221,Equipment and Materials,03/07/2020,3755525-211274,774.98,TYNEDALE ROADSTONE LTD.
Neighbourhoods and Climate Change,Technical Services CM0300,Supplies and Services,304221,Equipment and Materials,03/07/2020,3755525-211275,"1,039.86",TYNEDALE ROADSTONE LTD.
Neighbourhoods and Climate Change,Technical Services CM0300,Supplies and Services,304221,Equipment and Materials,03/07/2020,3755525-211278,833.39,TYNEDALE ROADSTONE LTD.
Neighbourhoods and Climate Change,Technical Services CM0300,Supplies and Services,304221,Equipment and Materials,03/07/2020,3755525-211379,608.66,TYNEDALE ROADSTONE LTD.
Neighbourhoods and Climate Change,Technical Services CM0300,Supplies and Services,304221,Equipment and Materials,03/07/2020,3755525-211380,777.95,TYNEDALE ROADSTONE LTD.
Neighbourhoods and Climate Change,Technical Services CM0300,Supplies and Services,304221,Equipment and Materials,03/07/2020,3755525-211384,753.20,TYNEDALE ROADSTONE LTD.
Neighbourhoods and Climate Change,Technical Services CM0300,Supplies and Services,304221,Equipment and Materials,03/07/2020,3755535-24175,849.58,WARD TIMBER LTD.
Adult and Health Services,Head of Adults,Supplies and Services,338365,Services,03/07/2020,3755304-OP/I169090,857.00,CLOSOMAT LTD.
"Regeneration, Economy and Growth",Culture Sport and Tourism,Supplies and Services,304259,Equipment and Materials,03/07/2020,3755292-6883,"3,278.12",CATHEDRAL LOCK & SAFE SERVICES LTD.
"Regeneration, Economy and Growth",Culture Sport and Tourism,Supplies and Services,304259,Equipment and Materials,03/07/2020,3755397-971640,975.51,JP LENNARD LTD.
"Regeneration, Economy and Growth",Culture Sport and Tourism,Supplies and Services,304259,Equipment and Materials,03/07/2020,3755493-0000014500,740.00,SITELINK COMMUNICATIONS LTD.
Regeneration and Local Services,COVID19 - Regeneration Economy and Growth,Supplies and Services,304259,Equipment and Materials,03/07/2020,3755528-US2948,"5,000.00",ULTIMATE SUPPLIES (NORTH) LTD.
Regeneration and Local Services,COVID19 - Regeneration Economy and Growth,Supplies and Services,304259,Equipment and Materials,03/07/2020,3755528-US2949,"2,600.00",ULTIMATE SUPPLIES (NORTH) LTD.
Neighbourhoods and Climate Change,Environmental Services,Supplies and Services,304252,Equipment and Materials,03/07/2020,3755356-242855,814.00,GEMCO SERVICE LTD.
Neighbourhoods and Climate Change,Environmental Services,Premises,108099,Service Repairs and Maintenance,03/07/2020,3755272-INV001097,975.00,ASSOCIATED MAINTENANCE SERVICES LTD.
Children and Young Peoples Services,Head of Early Help Inclusion & Vulnerable Children.,Premises,108099,Service Repairs and Maintenance,03/07/2020,3755279-220567,"2,600.00",BELLWOOD REWINDS LTD.
"Regeneration, Economy and Growth",Corporate Property and Land,Premises,108099,Service Repairs and Maintenance,03/07/2020,3755395-0000082776,"4,435.00",JOHN WADE (HAULAGE) LTD.
"Regeneration, Economy and Growth",Development and Housing,Premises,108099,Service Repairs and Maintenance,03/07/2020,3755395-0000082775,"39,524.00",JOHN WADE (HAULAGE) LTD.
"Regeneration, Economy and Growth",Transport and Contracted Services,Supplies and Services,384540,Miscellaneous Expenses,03/07/2020,3755361-INV-0325,"1,172.50",GRM MAPPING LTD.
Children and Young Peoples Services,Head of Early Help Inclusion & Vulnerable Children.,Supplies and Services,360099,Insurances,03/07/2020,3755521-LINV31083,838.91,TRINITY MEDICAL PROPERTIES LTD.
Children and Young Peoples Services,Head of Early Help Inclusion & Vulnerable Children.,Supplies and Services,384956,Miscellaneous Expenses,03/07/2020,3755430-530051,"2,974.75",MPLC MOTION PICTURE LICENSING CORPORATION.
"Regeneration, Economy and Growth",Transport and Contracted Services,Supplies and Services,384956,Miscellaneous Expenses,03/07/2020,3755520-INVOICETRC-17787,"2,830.00",TRICS CONSORTIUM LTD.
Neighbourhoods and Climate Change,Partnerships & Community Engagement Div.,Supplies and Services,384086,Miscellaneous Expenses,03/07/2020,3755348-VOUCHER18NB-CHES036,"3,000.00",FENCE HOUSES COMMUNITY ASSOCIATION.
Neighbourhoods and Climate Change,Partnerships & Community Engagement Div.,Supplies and Services,384086,Miscellaneous Expenses,03/07/2020,3755509-VOUCHER20NBCV19-EDUR007,"3,756.00",THE COMMUNITY CLUB.
"Regeneration, Economy and Growth",Culture Sport and Tourism,Supplies and Services,384700,Miscellaneous Expenses,03/07/2020,3755440-1321,"75,000.00",NEW WRITING NORTH LTD.
Resources BK0010,Digital and Customer Services,Supplies and Services,304303,Equipment and Materials,03/07/2020,3755547-KW70349,"2,601.00",XMA LTD.
Neighbourhoods and Climate Change,Environmental Services,Transport,230710,Contract Hire,03/07/2020,3755522-902439,"58,396.48",TRIPLE POINT LEASE PARTNERS.
Adult and Health Services,Commissioning inc Supporting People,Third Party Payments,479111,Purchase of Care,03/07/2020,3755289-4503,"3,320.97",CARERS FEDERATION LTD.
Adult and Health Services,Commissioning inc Supporting People,Third Party Payments,479111,Purchase of Care,03/07/2020,3755419-3084,"11,757.00",MAIN - TAKING AUTISM PERSONALLY.
Children and Young Peoples Services,Head of Education and Skills,Third Party Payments,440999,Other third party payments E440,03/07/2020,3755310-CTA/037-PERIOD10,"10,248.00",COMMUNICATORS TRAINING ASSOCIATES LTD.
"Regeneration, Economy and Growth",Transport and Contracted Services,Third Party Payments,430106,Rendered by Private Contractors,03/07/2020,3755373-17673,"4,527.75",HODGSONS COACH OPERATORS LTD.
"Regeneration, Economy and Growth",Transport and Contracted Services,Third Party Payments,430106,Rendered by Private Contractors,03/07/2020,3755373-17705,"4,537.95",HODGSONS COACH OPERATORS LTD.
"Regeneration, Economy and Growth",Corporate Property and Land,Third Party Payments,430100,Rendered by Private Contractors,03/07/2020,3755274-2019,850.00,AWR ROOFING & ALUMIN RAINWATER SYSTEMS LTD.
"Regeneration, Economy and Growth",Corporate Property and Land,Third Party Payments,430100,Rendered by Private Contractors,03/07/2020,3755277-6686,535.00,BELL CONTROL SOLUTIONS LTD.
"Regeneration, Economy and Growth",Corporate Property and Land,Third Party Payments,430100,Rendered by Private Contractors,03/07/2020,3755321-NE059-1,"3,102.12",DELTA WIRING SOLUTIONS LTD.
"Regeneration, Economy and Growth",Corporate Property and Land,Third Party Payments,430100,Rendered by Private Contractors,03/07/2020,3755344-SIN018538,"40,514.69",ENERGY CONSERVATION SOLUTIONS LTD (ECSL).
"Regeneration, Economy and Growth",Corporate Property and Land,Third Party Payments,430100,Rendered by Private Contractors,03/07/2020,3755432-DCC140,"1,500.00",MR WILLIAM MAGUIRE T/A VALLUM LIFTS.
"Regeneration, Economy and Growth",Corporate Property and Land,Third Party Payments,430100,Rendered by Private Contractors,03/07/2020,3755432-DCC141,"1,500.00",MR WILLIAM MAGUIRE T/A VALLUM LIFTS.
"Regeneration, Economy and Growth",Corporate Property and Land,Third Party Payments,430100,Rendered by Private Contractors,03/07/2020,3755432-DCC142,"1,500.00",MR WILLIAM MAGUIRE T/A VALLUM LIFTS.
Neighbourhoods and Climate Change,Environmental Services,Third Party Payments,430100,Rendered by Private Contractors,03/07/2020,3755449-IW05120659,"1,613.88",NORTHGATE VEHICLE HIRE LTD.
Neighbourhoods and Climate Change,Technical Services CM0300,Third Party Payments,430100,Rendered by Private Contractors,03/07/2020,3755467-12638,705.84,QUANTUM POWER CONNECTIONS LTD.
Neighbourhoods and Climate Change,Environmental Services,Third Party Payments,430100,Rendered by Private Contractors,03/07/2020,3755473-741111,"1,398.41",RICKERBY LTD.
Dedicated Schools Grant BG0015,DSG Early Years Block,Transfer Payments,510032,School Children,03/07/2020,3755472-EYFCOVID19/JUNE2020,518.00,RIBBON ACADEMY TRUST.
Dedicated Schools Grant BG0015,DSG Early Years Block,Transfer Payments,510030,School Children,03/07/2020,3755326-EYFCOVID19/JUNE2020,"2,081.16",DO RE MI DAY NURSERY.
Dedicated Schools Grant BG0015,DSG Early Years Block,Transfer Payments,510030,School Children,03/07/2020,3755349-EYFCOVID19/JUNE2020,"1,243.62",FIRST FOUR KIDZ CHILDCARE.
Dedicated Schools Grant BG0015,DSG Early Years Block,Transfer Payments,510030,School Children,03/07/2020,3755377-EYFCOVID19/JUNE2020,558.36,HOWLETCH & SHOTTON CHILDCARE LTD.
Dedicated Schools Grant BG0015,DSG Early Years Block,Transfer Payments,510030,School Children,03/07/2020,3755385-EYFCOVID19/JUNE2020,"1,116.72",JACQUELINE I`ANSON T/A JACKIES TOTS.
Dedicated Schools Grant BG0015,DSG Early Years Block,Transfer Payments,510030,School Children,03/07/2020,3755438-EYFCOVID19/JUNE2020,558.36,NEW BEGINNINGS (MOORSIDE) CO LTD.
Dedicated Schools Grant BG0015,DSG Early Years Block,Transfer Payments,510030,School Children,03/07/2020,3755401-EYFCOVID19/JUNE2020,837.54,REDACTED - PAYMENT TO INDIVIDUAL
Dedicated Schools Grant BG0015,DSG Early Years Block,Transfer Payments,510030,School Children,03/07/2020,3755403-EYFCOVID19/JUNE2020,"1,109.11",REDACTED - PAYMENT TO INDIVIDUAL
Dedicated Schools Grant BG0015,DSG Early Years Block,Transfer Payments,510030,School Children,03/07/2020,3755409-EYFCOVID19/JUNE2020,964.44,REDACTED - PAYMENT TO INDIVIDUAL
Dedicated Schools Grant BG0015,DSG Early Years Block,Transfer Payments,510030,School Children,03/07/2020,3755434-EYFCOVID19/JUNE2020,558.36,REDACTED - PAYMENT TO INDIVIDUAL
Dedicated Schools Grant BG0015,DSG Early Years Block,Transfer Payments,510030,School Children,03/07/2020,3755483-EYFCOVID19/JUNE2020,"1,598.94",REDACTED - PAYMENT TO INDIVIDUAL
Dedicated Schools Grant BG0015,DSG Early Years Block,Transfer Payments,510030,School Children,03/07/2020,3755538-EYFCOVID19/JUNE2020,812.16,WAYMAN DEVELOPMENTS LTD T/A CHILDSPLAY PRIVATE NURSERY.
Dedicated Schools Grant BG0015,DSG Early Years Block,Transfer Payments,510030,School Children,03/07/2020,3755539-EYFCOVID19/JUNE2020,558.36,WAYMAN DEVELOPMENTS LTD T/A CHILDSPLAY PRIVATE NURSERY.
"Regeneration, Economy and Growth",Development and Housing,Supplies and Services,338066,Services,03/07/2020,3755515-NCDH/PS,750.00,THOMAS STEVENSON.
Adult and Health Services,Public Health CC0450,Third Party Payments,460803,Contract Payments,03/07/2020,3755366-DCCDA004,"41,416.75",HARBOUR SUPPORT SERVICES.
Adult and Health Services,Public Health CC0450,Third Party Payments,460803,Contract Payments,03/07/2020,3755366-DCCVC004,"4,321.42",HARBOUR SUPPORT SERVICES.
"Regeneration, Economy and Growth",Corporate Property and Land,Premises,106082,Centrally Controlled Rep and Maint,03/07/2020,3755484-99325986,"1,383.89",SCHNEIDER ELECTRIC LTD.
"Regeneration, Economy and Growth",Corporate Property and Land,Supplies and Services,338078,Services,03/07/2020,3755481-12170,"1,075.00",SAFEGUARD SECURITY (NE) LTD.
Children and Young Peoples Services,Head of Childrens Social Care,Supplies and Services,338076,Services,03/07/2020,3755381-354,"72,652.00",INVESTING IN CHILDREN CIC.
Children and Young Peoples Services,Head of Childrens Social Care,Supplies and Services,338076,Services,03/07/2020,3755381-353,"50,000.00",INVESTING IN CHILDREN CIC.
Adult and Health Services,Central/Other,Transport,230005,Contract Hire,03/07/2020,3755431-202019,583.44,MR JR FORT T/A JRF TAXIS.
Resources BK0010,Legal & Democratic Services,Supplies and Services,338043,Services,03/07/2020,3755534-765663,"5,556.00",WARD HADAWAY.
Neighbourhoods and Climate Change,Technical Services CM0300,Stock A926,926900,Stock in hand-Inventory system,03/07/2020,3755399-0104/00107812,948.00,JT DOVE LTD.
Resources BK0010,Digital and Customer Services,Stock A926,926900,Stock in hand-Inventory system,03/07/2020,3755547-KW67727,"10,672.20",XMA LTD.
Adult and Health Services,Head of Adults,Third Party Payments,478151,Purchase of Care,03/07/2020,3755343-KWVOIDS/PERIOD3/2020BALANCE,"2,222.88",EMBRACING CARE.
"Regeneration, Economy and Growth",Business Durham CL0850,Supplies and Services,344033,Telephones,03/07/2020,3755353-DERW01-0024,872.38,FREEDOM COMMUNICATIONS (UK) LTD.
Neighbourhoods and Climate Change,Environmental Services,Transport,210057,Repair and Maintenance of Vehicles,03/07/2020,3755278-35183050,604.51,BELL TRUCK SALES LTD T/A BELL TRUCK & VAN.
Neighbourhoods and Climate Change,Environmental Services,Transport,210057,Repair and Maintenance of Vehicles,03/07/2020,3755278-35183051,550.26,BELL TRUCK SALES LTD T/A BELL TRUCK & VAN.
Children and Young Peoples Services,Head of Childrens Social Care,Third Party Payments,440100,Other third party payments E440,06/07/2020,3755675-SINCC3F51696,"2,835.00",OFSTED.
Neighbourhoods and Climate Change,Technical Services CM0300,Supplies and Services,336005,Advertising E336,06/07/2020,3755669-33599760,"1,151.70",NEWSQUEST (YORKSHIRE & NORTH EAST) LTD.
Dedicated Schools Grant BG0015,DSG High Needs Block,Third Party Payments,410037,Rendered by Other Local Authorities,06/07/2020,3755752-SI/100814,"7,971.70",WISE ACADEMIES LTD.
Children and Young Peoples Services,Head of Early Help Inclusion & Vulnerable Children.,Employees,080025,Agency Staff,06/07/2020,3755728-2461908,"1,156.25",TEACHING PERSONNEL LTD.
Resources BK0010,Legal & Democratic Services,Supplies and Services,338042,Services,06/07/2020,3755598-351595/INVCF283,850.00,DERE STREET BARRISTERS.
Resources BK0010,Digital and Customer Services,Supplies and Services,342033,Computers and Communications,06/07/2020,3755722-133584,"1,905.80",SWITCHSHOP LTD.
Neighbourhoods and Climate Change,Environmental Services,Supplies and Services,342051,Computers and Communications,06/07/2020,3755565-SI/74768,950.00,BARTEC AUTO ID.
Neighbourhoods and Climate Change,Community Protection,Supplies and Services,338027,Services,06/07/2020,3755704-INV-2079,"3,200.00",SHADBOLT ENVIRONMENTAL LLP.
"Regeneration, Economy and Growth",Corporate Property and Land,Supplies and Services,338027,Services,06/07/2020,3755735-221B,"4,835.85",TOMORROW ADVISORY LTD.
"Regeneration, Economy and Growth",Development and Housing,Fees,901002,Consultants fees 901002,06/07/2020,3755630-7307,"1,700.00",IDENTITY CONSULT LTD.*
Neighbourhoods and Climate Change,Technical Services CM0300,Third Party Payments,460503,Contract Payments,06/07/2020,3755635-24187,757.76,JACK COUPE & SONS LTD T/A COUPE LINE.
Neighbourhoods and Climate Change,Environmental Services,Transport,215005,Running Costs of Vehicles,06/07/2020,3755676-613745,"14,182.40",OIL NRG LTD.
Neighbourhoods and Climate Change,Environmental Services,Transport,215005,Running Costs of Vehicles,06/07/2020,3755676-613747,"1,295.60",OIL NRG LTD.
Neighbourhoods and Climate Change,Environmental Services,Transport,215005,Running Costs of Vehicles,06/07/2020,3755676-614223,"8,886.67",OIL NRG LTD.
Neighbourhoods and Climate Change,Technical Services CM0300,Supplies and Services,304221,Equipment and Materials,06/07/2020,3755553-29954623,"1,973.36",AGGREGATE INDUSTRIES UK LTD.
Neighbourhoods and Climate Change,Technical Services CM0300,Supplies and Services,304221,Equipment and Materials,06/07/2020,3755553-29965237,"2,400.00",AGGREGATE INDUSTRIES UK LTD.
Neighbourhoods and Climate Change,Technical Services CM0300,Supplies and Services,304221,Equipment and Materials,06/07/2020,3755553-29984293,"1,529.06",AGGREGATE INDUSTRIES UK LTD.
Neighbourhoods and Climate Change,Technical Services CM0300,Supplies and Services,304221,Equipment and Materials,06/07/2020,3755553-29984294,825.60,AGGREGATE INDUSTRIES UK LTD.
Neighbourhoods and Climate Change,Technical Services CM0300,Supplies and Services,304221,Equipment and Materials,06/07/2020,3755553-29990659,"2,963.00",AGGREGATE INDUSTRIES UK LTD.
Neighbourhoods and Climate Change,Environmental Services,Supplies and Services,304221,Equipment and Materials,06/07/2020,3755608-6867041,940.00,ESE WORLD LTD.
"Regeneration, Economy and Growth",Corporate Property and Land,Supplies and Services,304221,Equipment and Materials,06/07/2020,3755623-4668317,631.10,HEADLAM (FLOORCOVERING DISTRIBUTORS) LTD.
"Regeneration, Economy and Growth",Corporate Property and Land,Supplies and Services,304221,Equipment and Materials,06/07/2020,3755629-INV19808,"15,049.00",HYDRATEC LIFT SERVICES LTD.
"Regeneration, Economy and Growth",Corporate Property and Land,Supplies and Services,304221,Equipment and Materials,06/07/2020,3755685-INV236896,"1,318.20",POINTER FIRE LTD.
Neighbourhoods and Climate Change,Technical Services CM0300,Supplies and Services,304221,Equipment and Materials,06/07/2020,3755689-134608,"1,342.84",PROTECTOR SECURITY GROUP LTD.
Neighbourhoods and Climate Change,Technical Services CM0300,Supplies and Services,304221,Equipment and Materials,06/07/2020,3755720-90015287,636.44,SWARCO TRAFFIC LTD.
"Regeneration, Economy and Growth",Corporate Property and Land,Supplies and Services,304221,Equipment and Materials,06/07/2020,3755723-JE01984TLEP,805.00,T MANNERS & SONS LTD.
Neighbourhoods and Climate Change,Technical Services CM0300,Supplies and Services,304221,Equipment and Materials,06/07/2020,3755734-34998,"1,500.00",TODDS HIGHWAY MAINTENANCE LTD.
Neighbourhoods and Climate Change,Environmental Services,Supplies and Services,304259,Equipment and Materials,06/07/2020,3755748-0005012236,"1,365.00",VISION TECHNIQUES (UK) LTD.
"Regeneration, Economy and Growth",Business Durham CL0850,Premises,108099,Service Repairs and Maintenance,06/07/2020,3755701-11983,511.50,SAFEGUARD SECURITY (NE) LTD.
"Regeneration, Economy and Growth",Business Durham CL0850,Premises,108125,Service Repairs and Maintenance,06/07/2020,3755721-19215,800.00,SWINBURNE HORTICULTURAL SERVICES LTD.
Neighbourhoods and Climate Change,Environmental Services,Supplies and Services,304357,Equipment and Materials,06/07/2020,3755658-28440,"3,100.00",MJ HICKEY PLANT HIRE & CONTRACTS LTD.
Resources BK0010,Digital and Customer Services,Supplies and Services,304303,Equipment and Materials,06/07/2020,3755694-38743,"1,460.00",RAPID COMPUTERS LTD T/A RAPID TECHNOLOGIES.
Adult and Health Services,Commissioning inc Supporting People,Third Party Payments,479102,Purchase of Care,06/07/2020,3755581-YJ/3819,"2,928.47",CHILD ACTION NORTHWEST.
Adult and Health Services,Commissioning inc Supporting People,Third Party Payments,479102,Purchase of Care,06/07/2020,3755581-YJ/3820,838.48,CHILD ACTION NORTHWEST.
Neighbourhoods and Climate Change,Environmental Services,Supplies and Services,338099,Services,06/07/2020,3755573-SI005031,"2,810.00",BSG ECOLOGY LLP.
Children and Young Peoples Services,Head of Education and Skills,Third Party Payments,440999,Other third party payments E440,06/07/2020,3755585-CTA/039,"10,106.00",COMMUNICATORS TRAINING ASSOCIATES LTD.
"Regeneration, Economy and Growth",Transport and Contracted Services,Third Party Payments,430106,Rendered by Private Contractors,06/07/2020,3755626-17615,"2,712.40",HODGSONS COACH OPERATORS LTD.
"Regeneration, Economy and Growth",Corporate Property and Land,Third Party Payments,430100,Rendered by Private Contractors,06/07/2020,3755575-6944,"1,840.24",CATHEDRAL LOCK & SAFE SERVICES LTD.
"Regeneration, Economy and Growth",Corporate Property and Land,Third Party Payments,430100,Rendered by Private Contractors,06/07/2020,3755584-8940,"22,372.50",COMMERCIAL COVERINGS LTD.
"Regeneration, Economy and Growth",Corporate Property and Land,Third Party Payments,430100,Rendered by Private Contractors,06/07/2020,3755615-11355,"2,500.00",FROSTREE LTD.
"Regeneration, Economy and Growth",Corporate Property and Land,Third Party Payments,430100,Rendered by Private Contractors,06/07/2020,3755615-11354,"14,860.00",FROSTREE LTD.
Neighbourhoods and Climate Change,Technical Services CM0300,Third Party Payments,430100,Rendered by Private Contractors,06/07/2020,3755632-INS1983,"11,000.00",INSPECTORATE LTD T/A ROCH NDT SERVICES.
Neighbourhoods and Climate Change,Technical Services CM0300,Third Party Payments,430100,Rendered by Private Contractors,06/07/2020,3755716-INV-0124,"2,900.00",SUPAMOLE DIRECTIONAL DRILLING SPECIALISTS.
"Regeneration, Economy and Growth",Corporate Property and Land,Third Party Payments,430100,Rendered by Private Contractors,06/07/2020,3755741-16669,503.68,TYNE TEES THERMAL LTD.
Neighbourhoods and Climate Change,Technical Services CM0300,Third Party Payments,430100,Rendered by Private Contractors,06/07/2020,3755746-1310,"1,479.88",VINOVIUM ASSOCIATES LTD.
Adult and Health Services,Head of Adults,Third Party Payments,470101,Purchase of Care,06/07/2020,3755719-PREVIEW-30/06/2020,"5,173.20",SWANTON CARE & COMMUNITY T/A SUPPORTED LIVING OFFICE.
Neighbourhoods and Climate Change,Technical Services CM0300,Stock A926,926900,Stock in hand-Inventory system,06/07/2020,3755727-9041942671,718.61,TARMAC TRADING LTD.
Adult and Health Services,Head of Adults,Third Party Payments,478151,Purchase of Care,06/07/2020,3755596-INV-0538,"14,406.00",DEACONSTAR LTD.
Adult and Health Services,Head of Adults,Third Party Payments,478151,Purchase of Care,06/07/2020,3755596-INV-0539,"1,693.44",DEACONSTAR LTD.
Adult and Health Services,Head of Adults,Third Party Payments,478151,Purchase of Care,06/07/2020,3755596-INV-0540,"1,853.60",DEACONSTAR LTD.
Adult and Health Services,Head of Adults,Third Party Payments,478151,Purchase of Care,06/07/2020,3755605-STGODRICS3P3-2020,"1,785.52",EMBRACING CARE.
Adult and Health Services,Head of Adults,Third Party Payments,478151,Purchase of Care,06/07/2020,3755610-20644,"2,582.72",ESSENTIAL CARE & SUPPORT LTD.
Adult and Health Services,Head of Adults,Third Party Payments,478151,Purchase of Care,06/07/2020,3755624-HLC218,638.89,HIGHLEA CARE LTD.
Adult and Health Services,Head of Adults,Third Party Payments,478151,Purchase of Care,06/07/2020,3755624-HLC220,734.40,HIGHLEA CARE LTD.
Adult and Health Services,Head of Adults,Third Party Payments,478151,Purchase of Care,06/07/2020,3755660-6-JUNE2020,"2,322.60",REDACTED - PAYMENT TO INDIVIDUAL
Adult and Health Services,Head of Adults,Third Party Payments,478151,Purchase of Care,06/07/2020,3755674-39054,882.00,OAKLEA TRUST.
Adult and Health Services,Head of Adults,Third Party Payments,478151,Purchase of Care,06/07/2020,3755674-39055,"1,323.00",OAKLEA TRUST.
Children and Young Peoples Services,Head of Early Help Inclusion & Vulnerable Children.,Third Party Payments,486029,Service level agreements E486,06/07/2020,3755612-JUL20-0010,"19,042.50",FAMILY ACTION.
Adult and Health Services,Head of Adults,Third Party Payments,470101,Purchase of Care,07/07/2020,3757358-2623069,"2,040.00",REDACTED - PAYMENT TO INDIVIDUAL
Adult and Health Services,Head of Adults,Third Party Payments,470101,Purchase of Care,07/07/2020,3757358-2623070,"2,320.00",REDACTED - PAYMENT TO INDIVIDUAL
Adult and Health Services,Head of Adults,Third Party Payments,470101,Purchase of Care,07/07/2020,3757413-2622452,"2,354.80",REDACTED - PAYMENT TO INDIVIDUAL
Adult and Health Services,Head of Adults,Third Party Payments,470101,Purchase of Care,07/07/2020,3757413-2622453,"2,354.80",REDACTED - PAYMENT TO INDIVIDUAL
Adult and Health Services,Head of Adults,Third Party Payments,470101,Purchase of Care,07/07/2020,3757413-2622454,"2,354.80",REDACTED - PAYMENT TO INDIVIDUAL
Adult and Health Services,Head of Adults,Third Party Payments,470101,Purchase of Care,07/07/2020,3757413-2622464,"2,354.80",REDACTED - PAYMENT TO INDIVIDUAL
Adult and Health Services,Head of Adults,Third Party Payments,470101,Purchase of Care,07/07/2020,3757413-2622466,"2,354.80",REDACTED - PAYMENT TO INDIVIDUAL
Adult and Health Services,Head of Adults,Third Party Payments,470101,Purchase of Care,07/07/2020,3757413-2622469,"2,354.80",REDACTED - PAYMENT TO INDIVIDUAL
Adult and Health Services,Head of Adults,Third Party Payments,470101,Purchase of Care,07/07/2020,3757413-2622471,"2,354.80",REDACTED - PAYMENT TO INDIVIDUAL
Adult and Health Services,Head of Adults,Third Party Payments,470101,Purchase of Care,07/07/2020,3757413-2622473,"2,354.80",REDACTED - PAYMENT TO INDIVIDUAL
Adult and Health Services,Head of Adults,Third Party Payments,470101,Purchase of Care,07/07/2020,3757413-2622457,"2,354.80",REDACTED - PAYMENT TO INDIVIDUAL
Adult and Health Services,Head of Adults,Third Party Payments,470101,Purchase of Care,07/07/2020,3757413-2625494,"1,177.40",REDACTED - PAYMENT TO INDIVIDUAL
Adult and Health Services,Head of Adults,Third Party Payments,470101,Purchase of Care,07/07/2020,3757412-2623071,"1,140.00",REDACTED - PAYMENT TO INDIVIDUAL
Adult and Health Services,Head of Adults,Third Party Payments,470101,Purchase of Care,07/07/2020,3757413-2622458,"2,354.80",REDACTED - PAYMENT TO INDIVIDUAL
Adult and Health Services,Head of Adults,Third Party Payments,470101,Purchase of Care,07/07/2020,3757413-2622462,"1,177.40",REDACTED - PAYMENT TO INDIVIDUAL
Adult and Health Services,Head of Adults,Third Party Payments,470101,Purchase of Care,07/07/2020,3757413-2622476,"2,354.80",REDACTED - PAYMENT TO INDIVIDUAL
Adult and Health Services,Head of Adults,Third Party Payments,470101,Purchase of Care,07/07/2020,3756922-SELFFUNDERCOVID19UPLIFT4-27,"3,061.24",REDACTED - PAYMENT TO INDIVIDUAL
Adult and Health Services,Head of Adults,Third Party Payments,471101,Purchase of Care,07/07/2020,3757125-2625654,"2,386.72",REDACTED - PAYMENT TO INDIVIDUAL
Adult and Health Services,Head of Adults,Third Party Payments,471101,Purchase of Care,07/07/2020,3757413-2622467,"2,447.76",REDACTED - PAYMENT TO INDIVIDUAL
Adult and Health Services,Head of Adults,Third Party Payments,471101,Purchase of Care,07/07/2020,3757413-2622455,"2,447.76",REDACTED - PAYMENT TO INDIVIDUAL
Adult and Health Services,Head of Adults,Third Party Payments,471101,Purchase of Care,07/07/2020,3757413-2622456,"2,447.76",REDACTED - PAYMENT TO INDIVIDUAL
Adult and Health Services,Head of Adults,Third Party Payments,471101,Purchase of Care,07/07/2020,3757413-2622459,"2,447.76",REDACTED - PAYMENT TO INDIVIDUAL
Adult and Health Services,Head of Adults,Third Party Payments,471101,Purchase of Care,07/07/2020,3757413-2622460,"2,447.76",REDACTED - PAYMENT TO INDIVIDUAL
Adult and Health Services,Head of Adults,Third Party Payments,471101,Purchase of Care,07/07/2020,3757413-2622463,"2,447.76",REDACTED - PAYMENT TO INDIVIDUAL
Adult and Health Services,Head of Adults,Third Party Payments,471101,Purchase of Care,07/07/2020,3757413-2622465,"2,447.76",REDACTED - PAYMENT TO INDIVIDUAL
Adult and Health Services,Head of Adults,Third Party Payments,471101,Purchase of Care,07/07/2020,3757413-2622468,"2,447.76",REDACTED - PAYMENT TO INDIVIDUAL
Adult and Health Services,Head of Adults,Third Party Payments,471101,Purchase of Care,07/07/2020,3757413-2622470,"2,447.76",REDACTED - PAYMENT TO INDIVIDUAL
Adult and Health Services,Head of Adults,Third Party Payments,471101,Purchase of Care,07/07/2020,3757413-2622472,"2,447.76",REDACTED - PAYMENT TO INDIVIDUAL
Adult and Health Services,Head of Adults,Third Party Payments,471101,Purchase of Care,07/07/2020,3757413-2622474,"2,447.76",REDACTED - PAYMENT TO INDIVIDUAL
Adult and Health Services,Head of Adults,Third Party Payments,471101,Purchase of Care,07/07/2020,3757413-2622475,"2,447.76",REDACTED - PAYMENT TO INDIVIDUAL
Adult and Health Services,Head of Adults,Third Party Payments,471101,Purchase of Care,07/07/2020,3757413-2622477,"2,447.76",REDACTED - PAYMENT TO INDIVIDUAL
Adult and Health Services,Head of Adults,Third Party Payments,471101,Purchase of Care,07/07/2020,3757413-2622461,"2,447.76",REDACTED - PAYMENT TO INDIVIDUAL
Adult and Health Services,Head of Adults,Third Party Payments,471101,Purchase of Care,07/07/2020,3756922-ADDITIONALUPLIFT4/37,"6,319.75",REDACTED - PAYMENT TO INDIVIDUAL
Children and Young Peoples Services,Head of Childrens Social Care,Third Party Payments,440038,Other third party payments E440,07/07/2020,3757397-EH062020,"8,870.70",PRIMETIME CARE SERVICES LTD.
"Regeneration, Economy and Growth",Development and Housing,Supplies and Services,336005,Advertising E336,07/07/2020,3756830-33723492,831.74,NEWSQUEST (YORKSHIRE & NORTH EAST) LTD.
Children and Young Peoples Services,Head of Childrens Social Care,Employees,080025,Agency Staff,07/07/2020,3756622-2439935,"120,284.32",GEOMETRIC RESULTS INTERNATIONAL.
Children and Young Peoples Services,Head of Early Help Inclusion & Vulnerable Children.,Employees,080025,Agency Staff,07/07/2020,3757005-2422759,"1,901.25",TEACHING PERSONNEL LTD.
Children and Young Peoples Services,Head of Childrens Social Care,Supplies and Services,384500,Miscellaneous Expenses,07/07/2020,3756435-2020-276,520.00,ASPIRE PSYCHOLOGICAL SERVICES LTD.
Children and Young Peoples Services,Head of Childrens Social Care,Third Party Payments,440062,Other third party payments E440,07/07/2020,3757200-PIG_66777,"3,248.70",DALE CARE LTD.
Children and Young Peoples Services,Head of Childrens Social Care,Third Party Payments,440062,Other third party payments E440,07/07/2020,3757223-PIG_66062,655.20,EMBRACING CARE.
Children and Young Peoples Services,Head of Childrens Social Care,Third Party Payments,440062,Other third party payments E440,07/07/2020,3757378-PIG_66064,526.50,ORCHARD HOME CARE SERVICES LTD.
Adult and Health Services,Head of Adults,Third Party Payments,440062,Other third party payments E440,07/07/2020,3757394-PIG_66065,553.80,PREMIER COMMUNITY CARE LTD.
Children and Young Peoples Services,Head of Childrens Social Care,Third Party Payments,440062,Other third party payments E440,07/07/2020,3757432-PIG_66061,"1,014.00",SECOND TO NONE CARE LTD.
Adult and Health Services,Head of Adults,Third Party Payments,440062,Other third party payments E440,07/07/2020,3757462-PIG_66075,"5,159.83",SUPPORTIVE SRC LTD.
Resources BK0010,Digital and Customer Services,Supplies and Services,342033,Computers and Communications,07/07/2020,3756995-133646,683.49,SWITCHSHOP LTD.
Children and Young Peoples Services,Head of Education and Skills,Construction work A908,908105,Construction work,07/07/2020,3756594-165842,"166,784.04",ESH CONSTRUCTION LTD FORMERLY LUMSDEN & CARROLL CONSTRUCTION LTD.
Neighbourhoods and Climate Change,Technical Services CM0300,Construction work A908,908105,Construction work,07/07/2020,3756687-24231,"1,341.60",JACK COUPE & SONS LTD T/A COUPE LINE.
Neighbourhoods and Climate Change,Technical Services CM0300,Construction work A908,908105,Construction work,07/07/2020,3756687-24237,"1,287.36",JACK COUPE & SONS LTD T/A COUPE LINE.
Neighbourhoods and Climate Change,Technical Services CM0300,Construction work A908,908105,Construction work,07/07/2020,3756687-24240,"1,823.48",JACK COUPE & SONS LTD T/A COUPE LINE.
Neighbourhoods and Climate Change,Technical Services CM0300,Construction work A908,908105,Construction work,07/07/2020,3756687-24242,839.27,JACK COUPE & SONS LTD T/A COUPE LINE.
Neighbourhoods and Climate Change,Technical Services CM0300,Construction work A908,908105,Construction work,07/07/2020,3756687-24251,"24,784.48",JACK COUPE & SONS LTD T/A COUPE LINE.
Children and Young Peoples Services,Head of Education and Skills,Supplies and Services,338027,Services,07/07/2020,3756487-351,"1,300.00",CARMEL BONES EDUCATION LTD.
Neighbourhoods and Climate Change,Environmental Services,Supplies and Services,338027,Services,07/07/2020,3756963-0000826006,"3,200.00",SOCOTEC UK LTD.
Children and Young Peoples Services,Head of Education and Skills,Transport,230034,Contract Hire,07/07/2020,3756716-COVID19-EST-TOP-UP2-APRIL-MAY-JUNE-CYPS-343,992.50,KEVIN WALKER T/A CENTRAL TAXIS.
Children and Young Peoples Services,Head of Education and Skills,Transport,230034,Contract Hire,07/07/2020,3756771-COVID19-EST-TOP-UP2-APRIL-MAY-JUNE-CYPS-297,682.54,MICKS TAXIS - MURTON.
Children and Young Peoples Services,Head of Education and Skills,Transport,230034,Contract Hire,07/07/2020,3756785-225,660.00,MR BRIAN JOHNSON T/A BRYS TAXIS.
Children and Young Peoples Services,Head of Education and Skills,Transport,230034,Contract Hire,07/07/2020,3756785-COVID19-EST-TOP-UP2-APRIL-MAY-JUNE-CYPS-229,"1,760.00",MR BRIAN JOHNSON T/A BRYS TAXIS.
Children and Young Peoples Services,Head of Education and Skills,Transport,230034,Contract Hire,07/07/2020,3756870-COVID19-EST-TOP-UP2-APRIL-MAY-JUNE-CYPS-232,933.80,PHOENIX TAXIS T/A PRATT`S TAXIS.
Children and Young Peoples Services,Head of Education and Skills,Transport,230034,Contract Hire,07/07/2020,3756904-COVID19-EST-TOP-UP2-APRIL-MAY-JUNE-CYPS-025,"1,305.60",RDS TAXI.
Children and Young Peoples Services,Head of Education and Skills,Transport,230034,Contract Hire,07/07/2020,3756984-COVID19-EST-TOP-UP2-APRIL-MAY-JUNE-CYPS-230,777.90,STEPHEN VALLANCE T/A SELECT CABS.
Children and Young Peoples Services,Head of Education and Skills,Transport,230034,Contract Hire,07/07/2020,3757003-COVID19-EST-TOP-UP2-APRIL-MAY-JUNE-CYPS-234,"1,889.08",TAYLOR`S TAXIS.
Children and Young Peoples Services,Head of Education and Skills,Transport,230007,Contract Hire,07/07/2020,3756714-COVID19-EST-TOP-UP2-APRIL-MAY-JUNE-CYPS-149,"1,410.57",KEVIN EDMUNDSON.
Children and Young Peoples Services,Head of Education and Skills,Transport,230007,Contract Hire,07/07/2020,3756870-COVID19-EST-TOP-UP2-APRIL-MAY-JUNE-CYPS-187,732.55,PHOENIX TAXIS T/A PRATT`S TAXIS.
Children and Young Peoples Services,Head of Education and Skills,Transport,230007,Contract Hire,07/07/2020,3756870-COVID19-EST-TOP-UP2-APRIL-MAY-JUNE-CYPS-231,693.00,PHOENIX TAXIS T/A PRATT`S TAXIS.
Children and Young Peoples Services,Head of Education and Skills,Transport,230007,Contract Hire,07/07/2020,3756870-COVID19-EST-TOP-UP2-APRIL-MAY-JUNE-CYPS-197,662.03,PHOENIX TAXIS T/A PRATT`S TAXIS.
Children and Young Peoples Services,Head of Education and Skills,Transport,230007,Contract Hire,07/07/2020,3756923-1440,"2,417.61",ROBERTS TOURS.
Children and Young Peoples Services,Head of Education and Skills,Transport,230007,Contract Hire,07/07/2020,3756925-COVID19-EST-TOP-UP2-APRIL-MAY-JUNE-CYPS-278,"1,029.87",RON`S TAXIS (FISHBURN).
Children and Young Peoples Services,Head of Education and Skills,Transport,230003,Contract Hire,07/07/2020,3756928-COVID19-EST-TOP-UP2-APRIL-MAY-JUNE-CYPS-167,"3,864.00",ROXBYS BUS HIRE.
Children and Young Peoples Services,Head of Education and Skills,Transport,230009,Contract Hire,07/07/2020,3756870-COVID19-EST-TOP-UP2-APRIL-MAY-JUNE-CYPS-358,724.50,PHOENIX TAXIS T/A PRATT`S TAXIS.
Dedicated Schools Grant BG0015,DSG High Needs Block,Transport,230009,Contract Hire,07/07/2020,3756870-COVID19-EST-TOP-UP2-APRIL-MAY-JUNE-CYPS-760,791.70,PHOENIX TAXIS T/A PRATT`S TAXIS.
Children and Young Peoples Services,Head of Education and Skills,Transport,230006,Contract Hire,07/07/2020,3756618-COVID19-EST-TOP-UP2-APRIL-MAY-JUNE-CYPS-428,"1,274.00",GATESHEAD CENTRAL TAXIS LTD.
Children and Young Peoples Services,Head of Education and Skills,Transport,230006,Contract Hire,07/07/2020,3756638-COVID19-EST-TOP-UP2-APRIL-MAY-JUNE-CYPS-681,627.90,HARDIP SINGH MAHIL T/A AMBER CARS.
Children and Young Peoples Services,Head of Education and Skills,Transport,230006,Contract Hire,07/07/2020,3756870-COVID19-EST-TOP-UP2-APRIL-MAY-JUNE-CYPS-666,"1,094.80",PHOENIX TAXIS T/A PRATT`S TAXIS.
Children and Young Peoples Services,Head of Education and Skills,Transport,230006,Contract Hire,07/07/2020,3756870-COVID19-EST-TOP-UP2-APRIL-MAY-JUNE-CYPS-677,944.30,PHOENIX TAXIS T/A PRATT`S TAXIS.
Children and Young Peoples Services,Head of Education and Skills,Transport,230006,Contract Hire,07/07/2020,3756870-COVID19-EST-TOP-UP2-APRIL-MAY-JUNE-CYPS-678,"1,355.20",PHOENIX TAXIS T/A PRATT`S TAXIS.
Children and Young Peoples Services,Head of Education and Skills,Transport,230006,Contract Hire,07/07/2020,3756870-COVID19-EST-TOP-UP2-APRIL-MAY-JUNE-CYPS-685,"1,463.00",PHOENIX TAXIS T/A PRATT`S TAXIS.
Children and Young Peoples Services,Head of Education and Skills,Transport,230006,Contract Hire,07/07/2020,3756870-COVID19-EST-TOP-UP2-APRIL-MAY-JUNE-CYPS-686,772.80,PHOENIX TAXIS T/A PRATT`S TAXIS.
Children and Young Peoples Services,Head of Education and Skills,Transport,230006,Contract Hire,07/07/2020,3756870-COVID19-EST-TOP-UP2-APRIL-MAY-JUNE-CYPS-706,"1,187.20",PHOENIX TAXIS T/A PRATT`S TAXIS.
Children and Young Peoples Services,Head of Education and Skills,Transport,230006,Contract Hire,07/07/2020,3756870-COVID19-EST-TOP-UP2-APRIL-MAY-JUNE-CYPS-726,"1,505.57",PHOENIX TAXIS T/A PRATT`S TAXIS.
Children and Young Peoples Services,Head of Education and Skills,Transport,230006,Contract Hire,07/07/2020,3756887-COVID19-EST-TOP-UP2-APRIL-MAY-JUNE-CYPS-695,"1,160.25",PRESTYS HACKNEY & PRIVATE HIRE TAXIS.
Children and Young Peoples Services,Head of Education and Skills,Transport,230010,Contract Hire,07/07/2020,3756771-COVID19-EST-TOP-UP2-APRIL-MAY-JUNE-CYPS-499,"1,135.29",MICKS TAXIS - MURTON.
Children and Young Peoples Services,Head of Education and Skills,Transport,230010,Contract Hire,07/07/2020,3756870-COVID19-EST-TOP-UP2-APRIL-MAY-JUNE-CYPS-484,"1,697.75",PHOENIX TAXIS T/A PRATT`S TAXIS.
Children and Young Peoples Services,Head of Education and Skills,Transport,230010,Contract Hire,07/07/2020,3757019-COVID19-EST-TOP-UP2-APRIL-MAY-JUNE-CYPS-497,"2,357.82",THOMAS GLEN.
Children and Young Peoples Services,Head of Education and Skills,Transport,230012,Contract Hire,07/07/2020,3756971-COVID19-EST-TOP-UP2-APRIL-MAY-JUNE-CYPS-621,"2,748.87",SPENNYMOOR TAXIS.
Children and Young Peoples Services,Head of Education and Skills,Transport,230008,Contract Hire,07/07/2020,3756408-COVID19-EST-TOP-UP2-APRIL-MAY-JUNE-CYPS-407,"3,000.13",24/7 TAXI SERVICES LTD.
Children and Young Peoples Services,Head of Education and Skills,Transport,230008,Contract Hire,07/07/2020,3756420-COVID19-EST-TOP-UP2-APRIL-MAY-JUNE-CYPS-1090,"1,283.40",AMANDA SMITH T/A WEARDALE WHEELS.
Children and Young Peoples Services,Head of Education and Skills,Transport,230008,Contract Hire,07/07/2020,3756437-COVID19-EST-TOP-UP2-APRIL-MAY-JUNE-CYPS-969,"1,059.50",ATLAS TAXIS BISHOP AUCKLAND.
Children and Young Peoples Services,Head of Education and Skills,Transport,230008,Contract Hire,07/07/2020,3756454-COVID19-EST-TOP-UP2-APRIL-MAY-JUNE-CYPS-777,"1,082.37",BEELINE MINI BUSES.
Children and Young Peoples Services,Head of Education and Skills,Transport,230008,Contract Hire,07/07/2020,3756541-COVID19-EST-TOP-UP2-APRIL-MAY-JUNE-CYPS-1104,"1,661.77",DA TAXIS.
Children and Young Peoples Services,Head of Education and Skills,Transport,230008,Contract Hire,07/07/2020,3756543-COVID19-EST-TOP-UP2-APRIL-MAY-JUNE-CYPS-939,"2,327.19",DAVES MINIBUSES.
Children and Young Peoples Services,Head of Education and Skills,Transport,230008,Contract Hire,07/07/2020,3756557-COVID19-EST-TOP-UP2-APRIL-MAY-JUNE-CYPS-602,"2,354.74",DEXTERS PRIVATE HIRE.
Children and Young Peoples Services,Head of Education and Skills,Transport,230008,Contract Hire,07/07/2020,3756572-COVID19-EST-TOP-UP2-APRIL-MAY-JUNE-CYPS-809,"1,656.00",EAST DURHAM TAXIS.
Children and Young Peoples Services,Head of Education and Skills,Transport,230008,Contract Hire,07/07/2020,3756572-COVID19-EST-TOP-UP2-APRIL-MAY-JUNE-CYPS-592,"1,071.15",EAST DURHAM TAXIS.
Children and Young Peoples Services,Head of Education and Skills,Transport,230008,Contract Hire,07/07/2020,3756618-COVID19-EST-TOP-UP2-APRIL-MAY-JUNE-CYPS-456,"1,674.40",GATESHEAD CENTRAL TAXIS LTD.
Children and Young Peoples Services,Head of Education and Skills,Transport,230008,Contract Hire,07/07/2020,3756618-COVID19-EST-TOP-UP2-APRIL-MAY-JUNE-CYPS-387,"2,962.40",GATESHEAD CENTRAL TAXIS LTD.
Children and Young Peoples Services,Head of Education and Skills,Transport,230008,Contract Hire,07/07/2020,3756618-COVID19-EST-TOP-UP2-APRIL-MAY-JUNE-CYPS-435,"3,091.20",GATESHEAD CENTRAL TAXIS LTD.
Children and Young Peoples Services,Head of Education and Skills,Transport,230008,Contract Hire,07/07/2020,3756618-COVID19-EST-TOP-UP2-APRIL-MAY-JUNE-CYPS-424,"2,189.60",GATESHEAD CENTRAL TAXIS LTD.
Children and Young Peoples Services,Head of Education and Skills,Transport,230008,Contract Hire,07/07/2020,3756686-COVID19-EST-TOP-UP2-APRIL-MAY-JUNE-CYPS-449,"1,404.00",J YOUNG T/A VIP TAXIS.
Children and Young Peoples Services,Head of Education and Skills,Transport,230008,Contract Hire,07/07/2020,3756686-COVID19-EST-TOP-UP2-APRIL-MAY-JUNE-CYPS-790,919.20,J YOUNG T/A VIP TAXIS.
Children and Young Peoples Services,Head of Education and Skills,Transport,230008,Contract Hire,07/07/2020,3756690-COVID19-EST-TOP-UP2-APRIL-MAY-JUNE-CYPS-427,"2,172.00",JAYS TAXIS/JOHN GARLAND (TAXIS).
Children and Young Peoples Services,Head of Education and Skills,Transport,230008,Contract Hire,07/07/2020,3756691-COVID19-EST-TOP-UP2-APRIL-MAY-JUNE-CYPS-430,"1,326.00",JDS PRIVATE HIRE DURHAM.
Children and Young Peoples Services,Head of Education and Skills,Transport,230008,Contract Hire,07/07/2020,3756695-COVID19-EST-TOP-UP2-APRIL-MAY-JUNE-CYPS-1155,816.00,JL EBDON. T/A DIAL-A-CAB.
Children and Young Peoples Services,Head of Education and Skills,Transport,230008,Contract Hire,07/07/2020,3756701-COVID19-EST-TOP-UP2-APRIL-MAY-JUNE-CYPS-772,"1,435.52",JOVIAL PRIVATE HIRE.
Children and Young Peoples Services,Head of Education and Skills,Transport,230008,Contract Hire,07/07/2020,3756710-COVID19-EST-TOP-UP2-APRIL-MAY-JUNE-CYPS-977,"1,598.41",KEITH GIBSON T/A KEITH`S TAXIS.
Children and Young Peoples Services,Head of Education and Skills,Transport,230008,Contract Hire,07/07/2020,3756730-COVID19-EST-TOP-UP2-APRIL-MAY-JUNE-CYPS-412,"2,520.09",LD TAXIS.
Children and Young Peoples Services,Head of Education and Skills,Transport,230008,Contract Hire,07/07/2020,3756744-COVID19-EST-TOP-UP2-APRIL-MAY-JUNE-CYPS-812,"1,255.80",M BUTCHER T/A M & M`S TAXIS.
Children and Young Peoples Services,Head of Education and Skills,Transport,230008,Contract Hire,07/07/2020,3756759-INV05/202019,"2,270.62",MARK & JOHN CHISHOLM T/A (CHEVRON).
Children and Young Peoples Services,Head of Education and Skills,Transport,230008,Contract Hire,07/07/2020,3756782-W036-MAY,"1,674.40",MR A MILLWARD T/A SWISS CABS PRIVATE HIRE.
Children and Young Peoples Services,Head of Education and Skills,Transport,230008,Contract Hire,07/07/2020,3756859-COVID19-EST-TOP-UP2-APRIL-MAY-JUNE-CYPS-432,"1,098.99",PAUL`S TAXIS..
Children and Young Peoples Services,Head of Education and Skills,Transport,230008,Contract Hire,07/07/2020,3756859-COVID19-EST-TOP-UP2-APRIL-MAY-JUNE-CYPS-837,"1,236.92",PAUL`S TAXIS..
Children and Young Peoples Services,Head of Education and Skills,Transport,230008,Contract Hire,07/07/2020,3756868-COVID19-EST-TOP-UP2-APRIL-MAY-JUNE-CYPS-577,981.58,PETER`S PRIVATE HIRE/PETER BEST.
Children and Young Peoples Services,Head of Education and Skills,Transport,230008,Contract Hire,07/07/2020,3756887-COVID19-EST-TOP-UP2-APRIL-MAY-JUNE-CYPS-384,"1,593.90",PRESTYS HACKNEY & PRIVATE HIRE TAXIS.
Children and Young Peoples Services,Head of Education and Skills,Transport,230008,Contract Hire,07/07/2020,3756932-COVID19-EST-TOP-UP2-APRIL-MAY-JUNE-CYPS-1103,"2,806.00",S & S TRAVEL LTD.
Children and Young Peoples Services,Head of Education and Skills,Transport,230008,Contract Hire,07/07/2020,3756932-COVID19-EST-TOP-UP2-APRIL-MAY-JUNE-CYPS-1116,"1,468.50",S & S TRAVEL LTD.
Children and Young Peoples Services,Head of Education and Skills,Transport,230008,Contract Hire,07/07/2020,3756932-COVID19-EST-TOP-UP2-APRIL-MAY-JUNE-CYPS-1126,"1,716.00",S & S TRAVEL LTD.
Children and Young Peoples Services,Head of Education and Skills,Transport,230008,Contract Hire,07/07/2020,3756932-COVID19-EST-TOP-UP2-APRIL-MAY-JUNE-CYPS-1133,"1,235.19",S & S TRAVEL LTD.
Children and Young Peoples Services,Head of Education and Skills,Transport,230008,Contract Hire,07/07/2020,3756932-COVID19-EST-TOP-UP2-APRIL-MAY-JUNE-CYPS-975,"2,147.39",S & S TRAVEL LTD.
Children and Young Peoples Services,Head of Education and Skills,Transport,230008,Contract Hire,07/07/2020,3756980-55601,"3,034.75",STANLEY TRAVEL (NORTH EAST) LTD.
Children and Young Peoples Services,Head of Education and Skills,Transport,230008,Contract Hire,07/07/2020,3756996-COVID19-EST-TOP-UP2-APRIL-MAY-JUNE-CYPS-1112,785.00,TALBOTS TRAVEL LTD.
Children and Young Peoples Services,Head of Education and Skills,Transport,230008,Contract Hire,07/07/2020,3757003-COVID19-EST-TOP-UP2-APRIL-MAY-JUNE-CYPS-898,"2,704.80",TAYLOR`S TAXIS.
Children and Young Peoples Services,Head of Education and Skills,Transport,230008,Contract Hire,07/07/2020,3757067-COVID19-EST-TOP-UP2-APRIL-MAY-JUNE-CYPS-458,"3,843.00",WISS TAXIS.
Neighbourhoods and Climate Change,Environmental Services,Third Party Payments,430119,Rendered by Private Contractors,07/07/2020,3756640-116660,"2,594.21",HARPERS ENVIRONMENTAL LTD.
Neighbourhoods and Climate Change,Environmental Services,Third Party Payments,430119,Rendered by Private Contractors,07/07/2020,3756640-116687,"8,363.79",HARPERS ENVIRONMENTAL LTD.
"Regeneration, Economy and Growth",Transport and Contracted Services,Supplies and Services,384899,Miscellaneous Expenses,07/07/2020,3756955-RED-07-2020-045,582.50,SHERBURN VILLAGE PARISH COUNCIL.
Resources BK0010,Legal & Democratic Services,Supplies and Services,338025,Services,07/07/2020,3756629-F2021,940.00,GORDON FLETCHER & SONS LTD.
Resources BK0010,Legal & Democratic Services,Supplies and Services,338025,Services,07/07/2020,3756822-MAR-JUNE2020,"1,125.50",N ALDERSON FUNERAL DIRECTOR LTD.
Adult and Health Services,Head of Adults,Third Party Payments,486020,Service level agreements E486,07/07/2020,3757184-PIG_66767,"7,939.32",COMMUNITY INTEGRATED CARE LTD.
Adult and Health Services,Head of Adults,Third Party Payments,486020,Service level agreements E486,07/07/2020,3757284-PIG_66781,"3,481.83",INCLUDE IN AUTISM.
Adult and Health Services,Head of Adults,Third Party Payments,486020,Service level agreements E486,07/07/2020,3757286-PIG_66074,"2,646.56",INTEGRATING CHILDREN.
Adult and Health Services,Head of Adults,Third Party Payments,486020,Service level agreements E486,07/07/2020,3757367-PIG_66765,"3,073.70",NORTH EAST AUTISM SOCIETY.
Children and Young Peoples Services,Head of Childrens Social Care,Third Party Payments,486020,Service level agreements E486,07/07/2020,3757406-PIG_66079,931.86,REAL LIFE OPTIONS.
Children and Young Peoples Services,Head of Childrens Social Care,Third Party Payments,486020,Service level agreements E486,07/07/2020,3757414-PIG_66766,"5,645.39",ROC FAMILY SUPPORT LTD.
Neighbourhoods and Climate Change,Technical Services CM0300,Supplies and Services,304221,Equipment and Materials,07/07/2020,3756412-29898700,"1,202.92",AGGREGATE INDUSTRIES UK LTD.
Neighbourhoods and Climate Change,Technical Services CM0300,Supplies and Services,304221,Equipment and Materials,07/07/2020,3756412-29898701,732.44,AGGREGATE INDUSTRIES UK LTD.
Neighbourhoods and Climate Change,Technical Services CM0300,Supplies and Services,304221,Equipment and Materials,07/07/2020,3756412-29903900,"1,200.48",AGGREGATE INDUSTRIES UK LTD.
Neighbourhoods and Climate Change,Technical Services CM0300,Supplies and Services,304221,Equipment and Materials,07/07/2020,3756412-29903902,"1,108.98",AGGREGATE INDUSTRIES UK LTD.
Neighbourhoods and Climate Change,Technical Services CM0300,Supplies and Services,304221,Equipment and Materials,07/07/2020,3756412-29926997,"1,100.44",AGGREGATE INDUSTRIES UK LTD.
Neighbourhoods and Climate Change,Technical Services CM0300,Supplies and Services,304221,Equipment and Materials,07/07/2020,3756412-29931973,"1,202.92",AGGREGATE INDUSTRIES UK LTD.
Neighbourhoods and Climate Change,Technical Services CM0300,Supplies and Services,304221,Equipment and Materials,07/07/2020,3756412-29931974,"1,135.82",AGGREGATE INDUSTRIES UK LTD.
Neighbourhoods and Climate Change,Technical Services CM0300,Supplies and Services,304221,Equipment and Materials,07/07/2020,3756412-29937227,"1,212.68",AGGREGATE INDUSTRIES UK LTD.
Neighbourhoods and Climate Change,Technical Services CM0300,Supplies and Services,304221,Equipment and Materials,07/07/2020,3756412-29937228,"1,182.18",AGGREGATE INDUSTRIES UK LTD.
Neighbourhoods and Climate Change,Technical Services CM0300,Supplies and Services,304221,Equipment and Materials,07/07/2020,3756412-29942590,"1,199.26",AGGREGATE INDUSTRIES UK LTD.
Neighbourhoods and Climate Change,Technical Services CM0300,Supplies and Services,304221,Equipment and Materials,07/07/2020,3756412-29942591,"1,135.82",AGGREGATE INDUSTRIES UK LTD.
Neighbourhoods and Climate Change,Technical Services CM0300,Supplies and Services,304221,Equipment and Materials,07/07/2020,3756412-29947811,"1,196.82",AGGREGATE INDUSTRIES UK LTD.
Neighbourhoods and Climate Change,Technical Services CM0300,Supplies and Services,304221,Equipment and Materials,07/07/2020,3756412-29947812,"1,129.72",AGGREGATE INDUSTRIES UK LTD.
Neighbourhoods and Climate Change,Technical Services CM0300,Supplies and Services,304221,Equipment and Materials,07/07/2020,3756412-29953232,"1,215.12",AGGREGATE INDUSTRIES UK LTD.
Neighbourhoods and Climate Change,Technical Services CM0300,Supplies and Services,304221,Equipment and Materials,07/07/2020,3756412-29953233,633.18,AGGREGATE INDUSTRIES UK LTD.
Neighbourhoods and Climate Change,Technical Services CM0300,Supplies and Services,304221,Equipment and Materials,07/07/2020,3756412-29954620,"1,200.48",AGGREGATE INDUSTRIES UK LTD.
Neighbourhoods and Climate Change,Technical Services CM0300,Supplies and Services,304221,Equipment and Materials,07/07/2020,3756412-29954621,"1,157.78",AGGREGATE INDUSTRIES UK LTD.
Neighbourhoods and Climate Change,Technical Services CM0300,Supplies and Services,304221,Equipment and Materials,07/07/2020,3756412-29954622,"1,034.40",AGGREGATE INDUSTRIES UK LTD.
Neighbourhoods and Climate Change,Technical Services CM0300,Supplies and Services,304221,Equipment and Materials,07/07/2020,3756412-29959829,"1,196.82",AGGREGATE INDUSTRIES UK LTD.
Neighbourhoods and Climate Change,Technical Services CM0300,Supplies and Services,304221,Equipment and Materials,07/07/2020,3756412-29959830,"1,162.66",AGGREGATE INDUSTRIES UK LTD.
Neighbourhoods and Climate Change,Technical Services CM0300,Supplies and Services,304221,Equipment and Materials,07/07/2020,3756412-29959831,719.18,AGGREGATE INDUSTRIES UK LTD.
Neighbourhoods and Climate Change,Technical Services CM0300,Supplies and Services,304221,Equipment and Materials,07/07/2020,3756412-29965229,"1,187.06",AGGREGATE INDUSTRIES UK LTD.
Neighbourhoods and Climate Change,Technical Services CM0300,Supplies and Services,304221,Equipment and Materials,07/07/2020,3756412-29965231,888.50,AGGREGATE INDUSTRIES UK LTD.
Neighbourhoods and Climate Change,Technical Services CM0300,Supplies and Services,304221,Equipment and Materials,07/07/2020,3756412-29970851,"1,176.08",AGGREGATE INDUSTRIES UK LTD.
Neighbourhoods and Climate Change,Technical Services CM0300,Supplies and Services,304221,Equipment and Materials,07/07/2020,3756412-29970852,894.26,AGGREGATE INDUSTRIES UK LTD.
Neighbourhoods and Climate Change,Technical Services CM0300,Supplies and Services,304221,Equipment and Materials,07/07/2020,3756412-29970853,935.74,AGGREGATE INDUSTRIES UK LTD.
Neighbourhoods and Climate Change,Technical Services CM0300,Supplies and Services,304221,Equipment and Materials,07/07/2020,3756412-29976876,"1,169.98",AGGREGATE INDUSTRIES UK LTD.
Neighbourhoods and Climate Change,Technical Services CM0300,Supplies and Services,304221,Equipment and Materials,07/07/2020,3756412-29976877,595.36,AGGREGATE INDUSTRIES UK LTD.
Neighbourhoods and Climate Change,Technical Services CM0300,Supplies and Services,304221,Equipment and Materials,07/07/2020,3756412-29982810,"1,212.68",AGGREGATE INDUSTRIES UK LTD.
Neighbourhoods and Climate Change,Technical Services CM0300,Supplies and Services,304221,Equipment and Materials,07/07/2020,3756412-29982811,836.92,AGGREGATE INDUSTRIES UK LTD.
Neighbourhoods and Climate Change,Technical Services CM0300,Supplies and Services,304221,Equipment and Materials,07/07/2020,3756412-29984278,"1,207.80",AGGREGATE INDUSTRIES UK LTD.
Neighbourhoods and Climate Change,Technical Services CM0300,Supplies and Services,304221,Equipment and Materials,07/07/2020,3756412-29984279,682.56,AGGREGATE INDUSTRIES UK LTD.
Neighbourhoods and Climate Change,Technical Services CM0300,Supplies and Services,304221,Equipment and Materials,07/07/2020,3756412-29984283,958.92,AGGREGATE INDUSTRIES UK LTD.
Neighbourhoods and Climate Change,Technical Services CM0300,Supplies and Services,304221,Equipment and Materials,07/07/2020,3756412-29990658,966.24,AGGREGATE INDUSTRIES UK LTD.
"Regeneration, Economy and Growth",Corporate Property and Land,Supplies and Services,304221,Equipment and Materials,07/07/2020,3756670-INV19837,"10,198.00",HYDRATEC LIFT SERVICES LTD.
Neighbourhoods and Climate Change,Environmental Services,Supplies and Services,304221,Equipment and Materials,07/07/2020,3756671-7906,"1,900.00",IBA FABRICATIONS LTD.
"Regeneration, Economy and Growth",Corporate Property and Land,Supplies and Services,304221,Equipment and Materials,07/07/2020,3756705-0303/00113194,"1,133.22",JT DOVE LTD.
Neighbourhoods and Climate Change,Technical Services CM0300,Supplies and Services,304221,Equipment and Materials,07/07/2020,3756748-166387,"3,693.65",MALLATITE LTD T/A SIGNATURE.
Neighbourhoods and Climate Change,Technical Services CM0300,Supplies and Services,304221,Equipment and Materials,07/07/2020,3757002-9041961493,816.90,TARMAC TRADING LTD.
Neighbourhoods and Climate Change,Technical Services CM0300,Supplies and Services,304221,Equipment and Materials,07/07/2020,3757002-9041985462,738.00,TARMAC TRADING LTD.
Neighbourhoods and Climate Change,Technical Services CM0300,Supplies and Services,304221,Equipment and Materials,07/07/2020,3757002-9041985463,725.20,TARMAC TRADING LTD.
Neighbourhoods and Climate Change,Technical Services CM0300,Supplies and Services,304221,Equipment and Materials,07/07/2020,3757002-9041988926,547.98,TARMAC TRADING LTD.
"Regeneration, Economy and Growth",Corporate Property and Land,Supplies and Services,304221,Equipment and Materials,07/07/2020,3757023-33177,"2,782.00",TOTAL PUMP SOLUTIONS LTD.
Neighbourhoods and Climate Change,Technical Services CM0300,Supplies and Services,304221,Equipment and Materials,07/07/2020,3757064-13548,"2,160.00",WILF HUSBAND PLANT HIRE.
"Regeneration, Economy and Growth",Business Durham CL0850,Supplies and Services,304259,Equipment and Materials,07/07/2020,3756474-9303169486,521.94,BRADY CORP LTD T/A SETON.
"Regeneration, Economy and Growth",Culture Sport and Tourism,Supplies and Services,304259,Equipment and Materials,07/07/2020,3756705-0113/00110071,"1,329.13",JT DOVE LTD.
"Regeneration, Economy and Growth",Culture Sport and Tourism,Supplies and Services,304259,Equipment and Materials,07/07/2020,3756705-0303/00114179,564.30,JT DOVE LTD.
Neighbourhoods and Climate Change,Environmental Services,Supplies and Services,304259,Equipment and Materials,07/07/2020,3757024-103562,919.50,TOTAL RENTAL SOLUTIONS.
"Regeneration, Economy and Growth",Culture Sport and Tourism,Supplies and Services,304259,Equipment and Materials,07/07/2020,3757038-US2950,500.00,ULTIMATE SUPPLIES (NORTH) LTD.
"Regeneration, Economy and Growth",Culture Sport and Tourism,Supplies and Services,304252,Equipment and Materials,07/07/2020,3756795-DRS/DCC/JUN/SERVICING,"1,320.00",MR PT STOCKDALE T/A DR SPOKES BICYCLE REPAIR & MAINTENANCE.
Neighbourhoods and Climate Change,Environmental Services,Supplies and Services,304252,Equipment and Materials,07/07/2020,3757036-2820,"2,837.50",TXM ELECTRICAL MAINTENANCE LTD.
Children and Young Peoples Services,Head of Childrens Social Care,Supplies and Services,338044,Services,07/07/2020,3756565-SI-806,"1,177.20",DR SUSAN COOPER.
Adult and Health Services,Head of Adults,Third Party Payments,474999,Purchase of Care,07/07/2020,3757144-2623482,713.54,BARCHESTER HEALTHCARE HOMES LTD.
Adult and Health Services,Head of Adults,Third Party Payments,474999,Purchase of Care,07/07/2020,3757146-2623578,769.91,BARCHESTER HEALTHCARE HOMES LTD.
Adult and Health Services,Head of Adults,Third Party Payments,474999,Purchase of Care,07/07/2020,3757208-2623837,735.68,DURHAM CARELINE LTD.
Adult and Health Services,Head of Adults,Third Party Payments,474999,Purchase of Care,07/07/2020,3757237-2617682,520.76,FOUR SEASONS (H2) LTD.
Adult and Health Services,Head of Adults,Third Party Payments,474999,Purchase of Care,07/07/2020,3757474-2625697,788.23,TAMARIS HEALTHCARE (ENGLAND) LTD.
"Regeneration, Economy and Growth",Business Durham CL0850,Premises,108099,Service Repairs and Maintenance,07/07/2020,3756872-67484925,"2,118.35",PHS GROUP PLC.
Neighbourhoods and Climate Change,Technical Services CM0300,Supplies and Services,304358,Equipment and Materials,07/07/2020,3756494-1764,"3,653.02",CG SIMPSON & SON.
Neighbourhoods and Climate Change,Technical Services CM0300,Supplies and Services,304358,Equipment and Materials,07/07/2020,3756685-0267/2020,"5,516.50",J & JG GILL & SONS LTD.
Neighbourhoods and Climate Change,Technical Services CM0300,Supplies and Services,304358,Equipment and Materials,07/07/2020,3756685-0268/2020,"5,516.50",J & JG GILL & SONS LTD.
Neighbourhoods and Climate Change,Technical Services CM0300,Supplies and Services,304358,Equipment and Materials,07/07/2020,3756685-0269/2020,"5,516.50",J & JG GILL & SONS LTD.
Neighbourhoods and Climate Change,Technical Services CM0300,Supplies and Services,304358,Equipment and Materials,07/07/2020,3756698-30651,742.75,JOHN R BUTTERFIELD LTD.
Neighbourhoods and Climate Change,Technical Services CM0300,Supplies and Services,304358,Equipment and Materials,07/07/2020,3756698-30668,722.75,JOHN R BUTTERFIELD LTD.
Neighbourhoods and Climate Change,Technical Services CM0300,Supplies and Services,304358,Equipment and Materials,07/07/2020,3756698-30684,906.50,JOHN R BUTTERFIELD LTD.
Neighbourhoods and Climate Change,Technical Services CM0300,Supplies and Services,304358,Equipment and Materials,07/07/2020,3756698-30693,"1,324.75",JOHN R BUTTERFIELD LTD.
Neighbourhoods and Climate Change,Technical Services CM0300,Supplies and Services,304358,Equipment and Materials,07/07/2020,3756698-30698,906.50,JOHN R BUTTERFIELD LTD.
Neighbourhoods and Climate Change,Technical Services CM0300,Supplies and Services,304358,Equipment and Materials,07/07/2020,3756698-30707,"1,384.25",JOHN R BUTTERFIELD LTD.
Neighbourhoods and Climate Change,Technical Services CM0300,Supplies and Services,304358,Equipment and Materials,07/07/2020,3756698-30710,926.50,JOHN R BUTTERFIELD LTD.
Neighbourhoods and Climate Change,Technical Services CM0300,Supplies and Services,304358,Equipment and Materials,07/07/2020,3756698-30713,"1,111.00",JOHN R BUTTERFIELD LTD.
Neighbourhoods and Climate Change,Technical Services CM0300,Supplies and Services,304358,Equipment and Materials,07/07/2020,3756698-30723,755.00,JOHN R BUTTERFIELD LTD.
Neighbourhoods and Climate Change,Technical Services CM0300,Supplies and Services,304358,Equipment and Materials,07/07/2020,3756715-3279,666.00,KEVIN SNOWDON GROUNDWORKS LTD.
Neighbourhoods and Climate Change,Technical Services CM0300,Supplies and Services,304358,Equipment and Materials,07/07/2020,3756745-MS2083,"1,339.20",M SPENCE SURFACING LTD.
Neighbourhoods and Climate Change,Technical Services CM0300,Supplies and Services,304358,Equipment and Materials,07/07/2020,3756745-MS2084,961.20,M SPENCE SURFACING LTD.
Neighbourhoods and Climate Change,Technical Services CM0300,Supplies and Services,304358,Equipment and Materials,07/07/2020,3756745-MS2187,756.00,M SPENCE SURFACING LTD.
Neighbourhoods and Climate Change,Technical Services CM0300,Supplies and Services,304358,Equipment and Materials,07/07/2020,3756745-MS2188,529.20,M SPENCE SURFACING LTD.
Neighbourhoods and Climate Change,Technical Services CM0300,Supplies and Services,304358,Equipment and Materials,07/07/2020,3756745-MS2189,983.45,M SPENCE SURFACING LTD.
Neighbourhoods and Climate Change,Technical Services CM0300,Supplies and Services,304358,Equipment and Materials,07/07/2020,3756745-MS2190,694.58,M SPENCE SURFACING LTD.
Neighbourhoods and Climate Change,Technical Services CM0300,Supplies and Services,304358,Equipment and Materials,07/07/2020,3756745-MS2198,"1,244.25",M SPENCE SURFACING LTD.
Neighbourhoods and Climate Change,Technical Services CM0300,Supplies and Services,304358,Equipment and Materials,07/07/2020,3756745-MS2199,870.98,M SPENCE SURFACING LTD.
Neighbourhoods and Climate Change,Technical Services CM0300,Supplies and Services,304358,Equipment and Materials,07/07/2020,3756745-MS2216,"2,516.63",M SPENCE SURFACING LTD.
Neighbourhoods and Climate Change,Technical Services CM0300,Supplies and Services,304358,Equipment and Materials,07/07/2020,3756745-MS2226,825.75,M SPENCE SURFACING LTD.
Neighbourhoods and Climate Change,Technical Services CM0300,Supplies and Services,304358,Equipment and Materials,07/07/2020,3756745-MS2228,"1,244.25",M SPENCE SURFACING LTD.
Neighbourhoods and Climate Change,Technical Services CM0300,Supplies and Services,304358,Equipment and Materials,07/07/2020,3756745-MS2229,870.98,M SPENCE SURFACING LTD.
Adult and Health Services,Head of Adults,Third Party Payments,472101,Purchase of Care,07/07/2020,3756489-ADDITIONALUPLIFT4/3,"3,052.09",CASTLE CARE TEESDALE LTD.
Adult and Health Services,Head of Adults,Third Party Payments,472101,Purchase of Care,07/07/2020,3756493-ADDITIONALUPLIFT4/147,550.82,CEL HOMECARE LTD.
Adult and Health Services,Head of Adults,Third Party Payments,472101,Purchase of Care,07/07/2020,3756502-ADDITIONALUPLIFT4/152,587.22,CLASSIC RESOURCES UK LTD T/A CLASSIC RESOURCES HOMECARE.
Adult and Health Services,Head of Adults,Third Party Payments,472101,Purchase of Care,07/07/2020,3756510-ADDITIONALUPLIFT4/61,"15,532.97",COMFORT CALL LTD.
Adult and Health Services,Head of Adults,Third Party Payments,472101,Purchase of Care,07/07/2020,3756528-ADDITIONALUPLIFT4/33,"6,254.59",CRESCENT HOMECARE LTD.
Adult and Health Services,Head of Adults,Third Party Payments,472101,Purchase of Care,07/07/2020,3756585-ADDITIONALUPLIFT4/51,"24,323.93",EMBRACING CARE.
Adult and Health Services,Head of Adults,Third Party Payments,472101,Purchase of Care,07/07/2020,3756711-ADDITIONALUPLIFT4/81,"18,015.19",KELLY PARK LTD..
Adult and Health Services,Head of Adults,Third Party Payments,472101,Purchase of Care,07/07/2020,3756820-ADDITIONALUPLIFT4/93,"3,076.18",MY HOMECARE (DURHAM) LTD.
Adult and Health Services,Head of Adults,Third Party Payments,472101,Purchase of Care,07/07/2020,3756821-ADDITIONALUPLIFT4/83,"1,243.17",MYCHOICE HOMECARE LTD.
Adult and Health Services,Head of Adults,Third Party Payments,472101,Purchase of Care,07/07/2020,3756846-ADDITIONALUPLIFT4/16,"12,783.97",ORCHARD HOME CARE SERVICES LTD.
Adult and Health Services,Head of Adults,Third Party Payments,472101,Purchase of Care,07/07/2020,3756863-ADDITIONALUPLIFT4/82,"11,332.32",PERFECT CARE LTD.
Adult and Health Services,Head of Adults,Third Party Payments,472101,Purchase of Care,07/07/2020,3756885-ADDITIONALUPLIFT4/11,"17,588.54",PREMIER COMMUNITY CARE LTD.
Adult and Health Services,Head of Adults,Third Party Payments,472101,Purchase of Care,07/07/2020,3756913-ADDITIONALUPLIFT4/149,577.68,RESOURCES CARE T/A MYHOMECARE DDNY LTD.
Adult and Health Services,Head of Adults,Third Party Payments,472101,Purchase of Care,07/07/2020,3756989-ADDITIONALUPLIFT4/150,"8,633.45",SUPPORTIVE SRC LTD.
Adult and Health Services,Head of Adults,Third Party Payments,472101,Purchase of Care,07/07/2020,3757021-ADDITIONALUPLIFT4/32,"1,564.95",TLC COMMUNITY SERVICES.
Adult and Health Services,Head of Adults,Third Party Payments,472101,Purchase of Care,07/07/2020,3757047-ADDITIONALUPLIFT4/151,"3,072.57",VILLAGE CARE LTD.
"Regeneration, Economy and Growth",Development and Housing,Third Party Payments,440200,Other third party payments E440,07/07/2020,3756986-RED-07-2020-027,"16,603.00",STOCKTON ON TEES BOROUGH COUNCIL.
Children and Young Peoples Services,Head of Childrens Social Care,Third Party Payments,425040,Rendered by Voluntary Organisations,07/07/2020,3757080-PIG_66773,"14,180.12",A1 FOSTER CARE.
Children and Young Peoples Services,Head of Childrens Social Care,Third Party Payments,425040,Rendered by Voluntary Organisations,07/07/2020,3757111-PIG_65358,"24,319.84",ACORN CARE (NE) LTD.
Children and Young Peoples Services,Head of Childrens Social Care,Third Party Payments,425040,Rendered by Voluntary Organisations,07/07/2020,3757112-PIG_66778,"4,420.00",ACTION FOR CHILDREN.
Children and Young Peoples Services,Head of Childrens Social Care,Third Party Payments,425040,Rendered by Voluntary Organisations,07/07/2020,3757151-PIG_66775,"16,914.30",BARNARDOS BELIEVE IN CHILDREN.
Children and Young Peoples Services,Head of Childrens Social Care,Third Party Payments,425040,Rendered by Voluntary Organisations,07/07/2020,3757181-PIG_66081,"63,475.52",CHILDRENS FAMILY TRUST.
Children and Young Peoples Services,Head of Childrens Social Care,Third Party Payments,425040,Rendered by Voluntary Organisations,07/07/2020,3757185-PIG_66077,"9,325.04",COMPASS FOSTERING NORTH LTD.
Children and Young Peoples Services,Head of Childrens Social Care,Third Party Payments,425040,Rendered by Voluntary Organisations,07/07/2020,3757231-PIG_66774,"5,388.21",FIVE RIVERS CHILD CARE LTD.
Children and Young Peoples Services,Head of Childrens Social Care,Third Party Payments,425040,Rendered by Voluntary Organisations,07/07/2020,3757233-PIG_66780,"69,745.90",FOSTER CARE ASSOCIATES LTD.
Children and Young Peoples Services,Head of Childrens Social Care,Third Party Payments,425040,Rendered by Voluntary Organisations,07/07/2020,3757234-PIG_66779,"34,136.68",FOSTER CARE SOLUTIONS LTD.
Children and Young Peoples Services,Head of Childrens Social Care,Third Party Payments,425040,Rendered by Voluntary Organisations,07/07/2020,3757235-PIG_66080,"36,040.56",FOSTER CARES LTD.
Children and Young Peoples Services,Head of Childrens Social Care,Third Party Payments,425040,Rendered by Voluntary Organisations,07/07/2020,3757236-PIG_65359,"23,331.96",FOSTERING PEOPLE LTD.
Children and Young Peoples Services,Head of Childrens Social Care,Third Party Payments,425040,Rendered by Voluntary Organisations,07/07/2020,3757450-PIG_66066,"8,790.96",ST CUTHBERTS CARE.
Children and Young Peoples Services,Head of Childrens Social Care,Third Party Payments,425040,Rendered by Voluntary Organisations,07/07/2020,3757468-PIG_65357,"32,040.71",SWIIS FOSTER CARE LTD.
Children and Young Peoples Services,Head of Childrens Social Care,Third Party Payments,425040,Rendered by Voluntary Organisations,07/07/2020,3757478-PIG_66067,"66,894.92",TEAM FOSTERING.
Children and Young Peoples Services,Head of Childrens Social Care,Third Party Payments,425040,Rendered by Voluntary Organisations,07/07/2020,3757480-PIG_66078,"34,306.97",THE FOSTERING COMPANY NORTH EAST LTD.
Children and Young Peoples Services,Head of Childrens Social Care,Third Party Payments,425040,Rendered by Voluntary Organisations,07/07/2020,3757489-PIG_66776,"12,436.00",UK FOSTERING LTD.
"Regeneration, Economy and Growth",Development and Housing,Supplies and Services,338045,Services,07/07/2020,3757069-3490258,"7,448.12",WOMBLE BOND DICKINSON (UK) LLP.
Resources BK0010,Legal & Democratic Services,Supplies and Services,344014,Telephones,07/07/2020,3757051-OE14850,744.20,VODAFONE CORPORATE LTD.
Resources BK0010,Digital and Customer Services,Supplies and Services,344015,Telephones,07/07/2020,3757052-GB569953277,"1,595.00",VODAFONE LTD.
Resources BK0010,Digital and Customer Services,Supplies and Services,344015,Telephones,07/07/2020,3757052-OE70562,"2,230.00",VODAFONE LTD.
Adult and Health Services,Head of Adults,Third Party Payments,474101,Purchase of Care,07/07/2020,3757114-2623336,"1,082.00",AKARI CARE LTD.
Adult and Health Services,Head of Adults,Third Party Payments,474101,Purchase of Care,07/07/2020,3757114-2623338,"1,082.00",AKARI CARE LTD.
Adult and Health Services,Head of Adults,Third Party Payments,474101,Purchase of Care,07/07/2020,3757114-2623339,"1,082.00",AKARI CARE LTD.
Adult and Health Services,Head of Adults,Third Party Payments,474101,Purchase of Care,07/07/2020,3757116-2624902,"2,807.96",AKARI CARE LTD.
Adult and Health Services,Head of Adults,Third Party Payments,474101,Purchase of Care,07/07/2020,3757117-2624406,"2,589.44",AKARI CARE LTD.
Adult and Health Services,Head of Adults,Third Party Payments,474101,Purchase of Care,07/07/2020,3757117-2624372,"1,294.72",AKARI CARE LTD.
Adult and Health Services,Head of Adults,Third Party Payments,474101,Purchase of Care,07/07/2020,3757117-2624383,"2,589.44",AKARI CARE LTD.
Adult and Health Services,Head of Adults,Third Party Payments,474101,Purchase of Care,07/07/2020,3757117-2624386,"2,589.44",AKARI CARE LTD.
Adult and Health Services,Head of Adults,Third Party Payments,474101,Purchase of Care,07/07/2020,3757117-2624392,"2,589.44",AKARI CARE LTD.
Adult and Health Services,Head of Adults,Third Party Payments,474101,Purchase of Care,07/07/2020,3757117-2624395,"1,294.72",AKARI CARE LTD.
Adult and Health Services,Head of Adults,Third Party Payments,474101,Purchase of Care,07/07/2020,3757117-2624398,"2,589.44",AKARI CARE LTD.
Adult and Health Services,Head of Adults,Third Party Payments,474101,Purchase of Care,07/07/2020,3757117-2624400,"2,589.44",AKARI CARE LTD.
Adult and Health Services,Head of Adults,Third Party Payments,474101,Purchase of Care,07/07/2020,3757117-2624409,"1,294.72",AKARI CARE LTD.
Adult and Health Services,Head of Adults,Third Party Payments,474101,Purchase of Care,07/07/2020,3757117-2624378,"2,589.44",AKARI CARE LTD.
Adult and Health Services,Head of Adults,Third Party Payments,474101,Purchase of Care,07/07/2020,3757117-2624380,"2,589.44",AKARI CARE LTD.
Adult and Health Services,Head of Adults,Third Party Payments,474101,Purchase of Care,07/07/2020,3757118-2623374,"2,559.24",AKARI CARE LTD.
Adult and Health Services,Head of Adults,Third Party Payments,474101,Purchase of Care,07/07/2020,3757121-2622978,"1,294.72",ALLIANCE CARE (TRENDLEWOOD) LTD.
Adult and Health Services,Head of Adults,Third Party Payments,474101,Purchase of Care,07/07/2020,3757121-2622989,"2,589.44",ALLIANCE CARE (TRENDLEWOOD) LTD.
Adult and Health Services,Head of Adults,Third Party Payments,474101,Purchase of Care,07/07/2020,3757121-2623005,"2,589.44",ALLIANCE CARE (TRENDLEWOOD) LTD.
Adult and Health Services,Head of Adults,Third Party Payments,474101,Purchase of Care,07/07/2020,3757121-2623013,"2,589.44",ALLIANCE CARE (TRENDLEWOOD) LTD.
Adult and Health Services,Head of Adults,Third Party Payments,474101,Purchase of Care,07/07/2020,3757121-2623015,"2,589.44",ALLIANCE CARE (TRENDLEWOOD) LTD.
Adult and Health Services,Head of Adults,Third Party Payments,474101,Purchase of Care,07/07/2020,3757121-2622987,"2,589.44",ALLIANCE CARE (TRENDLEWOOD) LTD.
Adult and Health Services,Head of Adults,Third Party Payments,474101,Purchase of Care,07/07/2020,3757128-2625502,"1,284.85",ARMSTRONG HOUSE.
Adult and Health Services,Head of Adults,Third Party Payments,474101,Purchase of Care,07/07/2020,3757137-2625133,"2,400.00",ASTORIA HEALTHCARE LTD.
Adult and Health Services,Head of Adults,Third Party Payments,474101,Purchase of Care,07/07/2020,3757139-2625519,"2,992.00",ATLAS CARE HOMES LTD.
Adult and Health Services,Head of Adults,Third Party Payments,474101,Purchase of Care,07/07/2020,3757139-2624646,"1,288.00",ATLAS CARE HOMES LTD.
Adult and Health Services,Head of Adults,Third Party Payments,474101,Purchase of Care,07/07/2020,3757146-2623584,"2,700.00",BARCHESTER HEALTHCARE HOMES LTD.
Adult and Health Services,Head of Adults,Third Party Payments,474101,Purchase of Care,07/07/2020,3757146-2623568,"2,804.00",BARCHESTER HEALTHCARE HOMES LTD.
Adult and Health Services,Head of Adults,Third Party Payments,474101,Purchase of Care,07/07/2020,3757146-2623576,"2,700.00",BARCHESTER HEALTHCARE HOMES LTD.
Adult and Health Services,Head of Adults,Third Party Payments,474101,Purchase of Care,07/07/2020,3757149-2622600,"1,228.64",BARCHESTER HEALTHCARE HOMES LTD.
Adult and Health Services,Head of Adults,Third Party Payments,474101,Purchase of Care,07/07/2020,3757144-2623484,"2,950.00",BARCHESTER HEALTHCARE HOMES LTD.
Adult and Health Services,Head of Adults,Third Party Payments,474101,Purchase of Care,07/07/2020,3757144-2623485,"5,328.00",BARCHESTER HEALTHCARE HOMES LTD.
Adult and Health Services,Head of Adults,Third Party Payments,474101,Purchase of Care,07/07/2020,3757144-2623494,"2,700.00",BARCHESTER HEALTHCARE HOMES LTD.
Adult and Health Services,Head of Adults,Third Party Payments,474101,Purchase of Care,07/07/2020,3757146-2623571,"1,111.20",BARCHESTER HEALTHCARE HOMES LTD.
Adult and Health Services,Head of Adults,Third Party Payments,474101,Purchase of Care,07/07/2020,3757146-2623572,"2,700.00",BARCHESTER HEALTHCARE HOMES LTD.
Adult and Health Services,Head of Adults,Third Party Payments,474101,Purchase of Care,07/07/2020,3757146-2625495,"9,117.62",BARCHESTER HEALTHCARE HOMES LTD.
Adult and Health Services,Head of Adults,Third Party Payments,474101,Purchase of Care,07/07/2020,3757144-2623481,"5,794.64",BARCHESTER HEALTHCARE HOMES LTD.
Adult and Health Services,Head of Adults,Third Party Payments,474101,Purchase of Care,07/07/2020,3757144-2623483,"2,950.00",BARCHESTER HEALTHCARE HOMES LTD.
Adult and Health Services,Head of Adults,Third Party Payments,474101,Purchase of Care,07/07/2020,3757144-2623487,"3,179.72",BARCHESTER HEALTHCARE HOMES LTD.
Adult and Health Services,Head of Adults,Third Party Payments,474101,Purchase of Care,07/07/2020,3757144-2623488,"2,994.00",BARCHESTER HEALTHCARE HOMES LTD.
Adult and Health Services,Head of Adults,Third Party Payments,474101,Purchase of Care,07/07/2020,3757144-2623489,"3,360.00",BARCHESTER HEALTHCARE HOMES LTD.
Adult and Health Services,Head of Adults,Third Party Payments,474101,Purchase of Care,07/07/2020,3757144-2623490,"2,950.00",BARCHESTER HEALTHCARE HOMES LTD.
Adult and Health Services,Head of Adults,Third Party Payments,474101,Purchase of Care,07/07/2020,3757144-2623492,"2,950.00",BARCHESTER HEALTHCARE HOMES LTD.
Adult and Health Services,Head of Adults,Third Party Payments,474101,Purchase of Care,07/07/2020,3757144-2625184,"2,950.00",BARCHESTER HEALTHCARE HOMES LTD.
Adult and Health Services,Head of Adults,Third Party Payments,474101,Purchase of Care,07/07/2020,3757144-2625220,"12,081.43",BARCHESTER HEALTHCARE HOMES LTD.
Adult and Health Services,Head of Adults,Third Party Payments,474101,Purchase of Care,07/07/2020,3757146-2623573,"2,700.00",BARCHESTER HEALTHCARE HOMES LTD.
Adult and Health Services,Head of Adults,Third Party Payments,474101,Purchase of Care,07/07/2020,3757146-2623579,"2,700.00",BARCHESTER HEALTHCARE HOMES LTD.
Adult and Health Services,Head of Adults,Third Party Payments,474101,Purchase of Care,07/07/2020,3757146-2623583,"1,980.00",BARCHESTER HEALTHCARE HOMES LTD.
Adult and Health Services,Head of Adults,Third Party Payments,474101,Purchase of Care,07/07/2020,3757149-2622605,"2,457.28",BARCHESTER HEALTHCARE HOMES LTD.
Adult and Health Services,Head of Adults,Third Party Payments,474101,Purchase of Care,07/07/2020,3757149-2622607,"1,228.64",BARCHESTER HEALTHCARE HOMES LTD.
Adult and Health Services,Head of Adults,Third Party Payments,474101,Purchase of Care,07/07/2020,3757149-2622609,"1,228.64",BARCHESTER HEALTHCARE HOMES LTD.
Adult and Health Services,Head of Adults,Third Party Payments,474101,Purchase of Care,07/07/2020,3757149-2622620,"1,228.64",BARCHESTER HEALTHCARE HOMES LTD.
Adult and Health Services,Head of Adults,Third Party Payments,474101,Purchase of Care,07/07/2020,3757149-2622623,"2,457.28",BARCHESTER HEALTHCARE HOMES LTD.
Adult and Health Services,Head of Adults,Third Party Payments,474101,Purchase of Care,07/07/2020,3757149-2622625,"2,457.28",BARCHESTER HEALTHCARE HOMES LTD.
Adult and Health Services,Head of Adults,Third Party Payments,474101,Purchase of Care,07/07/2020,3757149-2622627,"1,228.64",BARCHESTER HEALTHCARE HOMES LTD.
Adult and Health Services,Head of Adults,Third Party Payments,474101,Purchase of Care,07/07/2020,3757149-2622629,"2,457.28",BARCHESTER HEALTHCARE HOMES LTD.
Adult and Health Services,Head of Adults,Third Party Payments,474101,Purchase of Care,07/07/2020,3757149-2622632,"2,457.28",BARCHESTER HEALTHCARE HOMES LTD.
Adult and Health Services,Head of Adults,Third Party Payments,474101,Purchase of Care,07/07/2020,3757149-2622634,"2,457.28",BARCHESTER HEALTHCARE HOMES LTD.
Adult and Health Services,Head of Adults,Third Party Payments,474101,Purchase of Care,07/07/2020,3757149-2622636,"2,457.28",BARCHESTER HEALTHCARE HOMES LTD.
Adult and Health Services,Head of Adults,Third Party Payments,474101,Purchase of Care,07/07/2020,3757149-2622639,"2,457.28",BARCHESTER HEALTHCARE HOMES LTD.
Adult and Health Services,Head of Adults,Third Party Payments,474101,Purchase of Care,07/07/2020,3757149-2622642,"1,228.64",BARCHESTER HEALTHCARE HOMES LTD.
Adult and Health Services,Head of Adults,Third Party Payments,474101,Purchase of Care,07/07/2020,3757149-2622644,"2,679.88",BARCHESTER HEALTHCARE HOMES LTD.
Adult and Health Services,Head of Adults,Third Party Payments,474101,Purchase of Care,07/07/2020,3757149-2622647,"2,457.28",BARCHESTER HEALTHCARE HOMES LTD.
Adult and Health Services,Head of Adults,Third Party Payments,474101,Purchase of Care,07/07/2020,3757149-2622650,"2,457.28",BARCHESTER HEALTHCARE HOMES LTD.
Adult and Health Services,Head of Adults,Third Party Payments,474101,Purchase of Care,07/07/2020,3757149-2625329,"2,297.04",BARCHESTER HEALTHCARE HOMES LTD.
Adult and Health Services,Head of Adults,Third Party Payments,474101,Purchase of Care,07/07/2020,3757144-2623493,"2,990.00",BARCHESTER HEALTHCARE HOMES LTD.
Adult and Health Services,Head of Adults,Third Party Payments,474101,Purchase of Care,07/07/2020,3757144-2625186,"2,950.00",BARCHESTER HEALTHCARE HOMES LTD.
Adult and Health Services,Head of Adults,Third Party Payments,474101,Purchase of Care,07/07/2020,3757146-2623569,"1,350.00",BARCHESTER HEALTHCARE HOMES LTD.
Adult and Health Services,Head of Adults,Third Party Payments,474101,Purchase of Care,07/07/2020,3757146-2623577,"4,339.29",BARCHESTER HEALTHCARE HOMES LTD.
Adult and Health Services,Head of Adults,Third Party Payments,474101,Purchase of Care,07/07/2020,3757148-2625386,"2,892.00",BARCHESTER HEALTHCARE HOMES LTD.
Adult and Health Services,Head of Adults,Third Party Payments,474101,Purchase of Care,07/07/2020,3757149-2622602,"10,600.00",BARCHESTER HEALTHCARE HOMES LTD.
Adult and Health Services,Head of Adults,Third Party Payments,474101,Purchase of Care,07/07/2020,3757149-2622616,"2,679.88",BARCHESTER HEALTHCARE HOMES LTD.
Adult and Health Services,Head of Adults,Third Party Payments,474101,Purchase of Care,07/07/2020,3756445-ADDITIONALUPLIFT4/66,"6,708.01",BARCHESTER HEALTHCARE HOMES LTD.
Adult and Health Services,Head of Adults,Third Party Payments,474101,Purchase of Care,07/07/2020,3757158-2621340,"1,587.24",BONDCARE WILLINGTON LTD.
Adult and Health Services,Head of Adults,Third Party Payments,474101,Purchase of Care,07/07/2020,3757158-2621366,"2,589.44",BONDCARE WILLINGTON LTD.
Adult and Health Services,Head of Adults,Third Party Payments,474101,Purchase of Care,07/07/2020,3757158-2621370,"2,589.44",BONDCARE WILLINGTON LTD.
Adult and Health Services,Head of Adults,Third Party Payments,474101,Purchase of Care,07/07/2020,3757159-2622777,"2,589.44",BONDCARE WILLINGTON LTD.
Adult and Health Services,Head of Adults,Third Party Payments,474101,Purchase of Care,07/07/2020,3757159-2622783,"1,294.72",BONDCARE WILLINGTON LTD.
Adult and Health Services,Head of Adults,Third Party Payments,474101,Purchase of Care,07/07/2020,3757159-2622784,"2,393.32",BONDCARE WILLINGTON LTD.
Adult and Health Services,Head of Adults,Third Party Payments,474101,Purchase of Care,07/07/2020,3757159-2622806,"2,589.44",BONDCARE WILLINGTON LTD.
Adult and Health Services,Head of Adults,Third Party Payments,474101,Purchase of Care,07/07/2020,3757159-2622798,"2,589.44",BONDCARE WILLINGTON LTD.
Adult and Health Services,Head of Adults,Third Party Payments,474101,Purchase of Care,07/07/2020,3757159-2622803,"1,294.72",BONDCARE WILLINGTON LTD.
Adult and Health Services,Head of Adults,Third Party Payments,474101,Purchase of Care,07/07/2020,3757159-2622804,920.52,BONDCARE WILLINGTON LTD.
Adult and Health Services,Head of Adults,Third Party Payments,474101,Purchase of Care,07/07/2020,3757159-2622814,"2,589.44",BONDCARE WILLINGTON LTD.
Adult and Health Services,Head of Adults,Third Party Payments,474101,Purchase of Care,07/07/2020,3757158-2621354,"2,589.44",BONDCARE WILLINGTON LTD.
Adult and Health Services,Head of Adults,Third Party Payments,474101,Purchase of Care,07/07/2020,3757158-2621359,"2,589.44",BONDCARE WILLINGTON LTD.
Adult and Health Services,Head of Adults,Third Party Payments,474101,Purchase of Care,07/07/2020,3757158-2621361,"3,174.48",BONDCARE WILLINGTON LTD.
Adult and Health Services,Head of Adults,Third Party Payments,474101,Purchase of Care,07/07/2020,3757159-2622774,"1,294.72",BONDCARE WILLINGTON LTD.
Adult and Health Services,Head of Adults,Third Party Payments,474101,Purchase of Care,07/07/2020,3757159-2622781,"2,589.44",BONDCARE WILLINGTON LTD.
Adult and Health Services,Head of Adults,Third Party Payments,474101,Purchase of Care,07/07/2020,3757159-2622788,"2,589.44",BONDCARE WILLINGTON LTD.
Adult and Health Services,Head of Adults,Third Party Payments,474101,Purchase of Care,07/07/2020,3757159-2622800,"2,589.44",BONDCARE WILLINGTON LTD.
Adult and Health Services,Head of Adults,Third Party Payments,474101,Purchase of Care,07/07/2020,3757159-2622808,"1,294.72",BONDCARE WILLINGTON LTD.
Adult and Health Services,Head of Adults,Third Party Payments,474101,Purchase of Care,07/07/2020,3757159-2622812,"2,589.44",BONDCARE WILLINGTON LTD.
Adult and Health Services,Head of Adults,Third Party Payments,474101,Purchase of Care,07/07/2020,3757158-2621334,"6,687.36",BONDCARE WILLINGTON LTD.
Adult and Health Services,Head of Adults,Third Party Payments,474101,Purchase of Care,07/07/2020,3757158-2621336,"1,849.60",BONDCARE WILLINGTON LTD.
Adult and Health Services,Head of Adults,Third Party Payments,474101,Purchase of Care,07/07/2020,3757158-2625310,739.84,BONDCARE WILLINGTON LTD.
Adult and Health Services,Head of Adults,Third Party Payments,474101,Purchase of Care,07/07/2020,3757159-2622772,"2,404.48",BONDCARE WILLINGTON LTD.
Adult and Health Services,Head of Adults,Third Party Payments,474101,Purchase of Care,07/07/2020,3757158-2621352,"2,589.44",BONDCARE WILLINGTON LTD.
Adult and Health Services,Head of Adults,Third Party Payments,474101,Purchase of Care,07/07/2020,3757158-2621342,"2,589.44",BONDCARE WILLINGTON LTD.
Adult and Health Services,Head of Adults,Third Party Payments,474101,Purchase of Care,07/07/2020,3757159-2622820,"2,589.44",BONDCARE WILLINGTON LTD.
Adult and Health Services,Head of Adults,Third Party Payments,474101,Purchase of Care,07/07/2020,3757163-2625190,"1,056.44",BUPA CARE HOMES LTD.
Adult and Health Services,Head of Adults,Third Party Payments,474101,Purchase of Care,07/07/2020,3757171-2623804,"2,589.44",CARE UK COMMUNITY PARTNERSHIPS LTD.
Adult and Health Services,Head of Adults,Third Party Payments,474101,Purchase of Care,07/07/2020,3757171-2623812,"1,294.72",CARE UK COMMUNITY PARTNERSHIPS LTD.
Adult and Health Services,Head of Adults,Third Party Payments,474101,Purchase of Care,07/07/2020,3757171-2623817,"1,294.72",CARE UK COMMUNITY PARTNERSHIPS LTD.
Adult and Health Services,Head of Adults,Third Party Payments,474101,Purchase of Care,07/07/2020,3757171-2623821,"2,589.44",CARE UK COMMUNITY PARTNERSHIPS LTD.
Adult and Health Services,Head of Adults,Third Party Payments,474101,Purchase of Care,07/07/2020,3757171-2623827,"1,294.72",CARE UK COMMUNITY PARTNERSHIPS LTD.
Adult and Health Services,Head of Adults,Third Party Payments,474101,Purchase of Care,07/07/2020,3757168-2621331,"2,280.00",CARE UK COMMUNITY PARTNERSHIPS LTD.
Adult and Health Services,Head of Adults,Third Party Payments,474101,Purchase of Care,07/07/2020,3757171-2623808,"2,589.44",CARE UK COMMUNITY PARTNERSHIPS LTD.
Adult and Health Services,Head of Adults,Third Party Payments,474101,Purchase of Care,07/07/2020,3757176-2624651,"3,435.32",CARELINE LIFESTYLES (UK) LTD.
Adult and Health Services,Head of Adults,Third Party Payments,474101,Purchase of Care,07/07/2020,3757175-2624894,"3,725.28",CARELINE LIFESTYLES (UK) LTD.
Adult and Health Services,Head of Adults,Third Party Payments,474101,Purchase of Care,07/07/2020,3757175-2624896,"2,954.56",CARELINE LIFESTYLES (UK) LTD.
Adult and Health Services,Head of Adults,Third Party Payments,474101,Purchase of Care,07/07/2020,3757177-2625161,"3,595.92",CARELINE LIFESTYLES.
Adult and Health Services,Head of Adults,Third Party Payments,474101,Purchase of Care,07/07/2020,3757177-2625163,"3,775.24",CARELINE LIFESTYLES.
Adult and Health Services,Head of Adults,Third Party Payments,474101,Purchase of Care,07/07/2020,3757177-2625164,"5,036.44",CARELINE LIFESTYLES.
Adult and Health Services,Head of Adults,Third Party Payments,474101,Purchase of Care,07/07/2020,3757177-2625166,"3,775.24",CARELINE LIFESTYLES.
Adult and Health Services,Head of Adults,Third Party Payments,474101,Purchase of Care,07/07/2020,3757177-2625371,"5,046.00",CARELINE LIFESTYLES.
Adult and Health Services,Head of Adults,Third Party Payments,474101,Purchase of Care,07/07/2020,3757178-2622162,"2,196.32",CAREWELL (HEALTH CARE) LTD.
Adult and Health Services,Head of Adults,Third Party Payments,474101,Purchase of Care,07/07/2020,3757178-2622149,"2,196.32",CAREWELL (HEALTH CARE) LTD.
Adult and Health Services,Head of Adults,Third Party Payments,474101,Purchase of Care,07/07/2020,3757178-2622176,"2,196.32",CAREWELL (HEALTH CARE) LTD.
Adult and Health Services,Head of Adults,Third Party Payments,474101,Purchase of Care,07/07/2020,3757178-2622170,"2,196.32",CAREWELL (HEALTH CARE) LTD.
Adult and Health Services,Head of Adults,Third Party Payments,474101,Purchase of Care,07/07/2020,3757178-2625554,"2,219.52",CAREWELL (HEALTH CARE) LTD.
Adult and Health Services,Head of Adults,Third Party Payments,474101,Purchase of Care,07/07/2020,3757178-2622159,"1,406.04",CAREWELL (HEALTH CARE) LTD.
Adult and Health Services,Head of Adults,Third Party Payments,474101,Purchase of Care,07/07/2020,3757189-2615809,"2,456.32",COUNTRYWIDE CARE HOMES (2) LTD.
Adult and Health Services,Head of Adults,Third Party Payments,474101,Purchase of Care,07/07/2020,3757191-2623356,"2,456.32",COUNTRYWIDE CARE HOMES (2) LTD.
Adult and Health Services,Head of Adults,Third Party Payments,474101,Purchase of Care,07/07/2020,3757187-2621985,"2,457.28",COUNTRYWIDE CARE HOMES (2) LTD.
Adult and Health Services,Head of Adults,Third Party Payments,474101,Purchase of Care,07/07/2020,3757188-2622390,"2,457.28",COUNTRYWIDE CARE HOMES (2) LTD.
Adult and Health Services,Head of Adults,Third Party Payments,474101,Purchase of Care,07/07/2020,3757188-2622396,"2,457.28",COUNTRYWIDE CARE HOMES (2) LTD.
Adult and Health Services,Head of Adults,Third Party Payments,474101,Purchase of Care,07/07/2020,3757188-2622399,"2,457.28",COUNTRYWIDE CARE HOMES (2) LTD.
Adult and Health Services,Head of Adults,Third Party Payments,474101,Purchase of Care,07/07/2020,3757188-2622403,"1,228.64",COUNTRYWIDE CARE HOMES (2) LTD.
Adult and Health Services,Head of Adults,Third Party Payments,474101,Purchase of Care,07/07/2020,3757188-2622406,"2,457.28",COUNTRYWIDE CARE HOMES (2) LTD.
Adult and Health Services,Head of Adults,Third Party Payments,474101,Purchase of Care,07/07/2020,3757188-2625500,"2,009.91",COUNTRYWIDE CARE HOMES (2) LTD.
Adult and Health Services,Head of Adults,Third Party Payments,474101,Purchase of Care,07/07/2020,3757187-2621988,"2,457.28",COUNTRYWIDE CARE HOMES (2) LTD.
Adult and Health Services,Head of Adults,Third Party Payments,474101,Purchase of Care,07/07/2020,3757188-2622394,"2,457.28",COUNTRYWIDE CARE HOMES (2) LTD.
Adult and Health Services,Head of Adults,Third Party Payments,474101,Purchase of Care,07/07/2020,3757188-2622408,"1,228.64",COUNTRYWIDE CARE HOMES (2) LTD.
Adult and Health Services,Head of Adults,Third Party Payments,474101,Purchase of Care,07/07/2020,3757187-2621982,"2,468.20",COUNTRYWIDE CARE HOMES (2) LTD.
Adult and Health Services,Head of Adults,Third Party Payments,474101,Purchase of Care,07/07/2020,3757188-2622392,"2,457.28",COUNTRYWIDE CARE HOMES (2) LTD.
Adult and Health Services,Head of Adults,Third Party Payments,474101,Purchase of Care,07/07/2020,3756519-ADDITIONALUPLIFT4/114,"5,074.10",COUNTRYWIDE CARE HOMES (2) LTD.
Adult and Health Services,Head of Adults,Third Party Payments,474101,Purchase of Care,07/07/2020,3757193-2622895,"1,294.72",CRAIGARRAN LTD.
Adult and Health Services,Head of Adults,Third Party Payments,474101,Purchase of Care,07/07/2020,3757193-2622906,"1,294.72",CRAIGARRAN LTD.
Adult and Health Services,Head of Adults,Third Party Payments,474101,Purchase of Care,07/07/2020,3757193-2622912,"2,589.44",CRAIGARRAN LTD.
Adult and Health Services,Head of Adults,Third Party Payments,474101,Purchase of Care,07/07/2020,3757193-2622916,"1,294.72",CRAIGARRAN LTD.
Adult and Health Services,Head of Adults,Third Party Payments,474101,Purchase of Care,07/07/2020,3757193-2622918,"1,387.20",CRAIGARRAN LTD.
Adult and Health Services,Head of Adults,Third Party Payments,474101,Purchase of Care,07/07/2020,3757193-2622921,"2,589.44",CRAIGARRAN LTD.
Adult and Health Services,Head of Adults,Third Party Payments,474101,Purchase of Care,07/07/2020,3757193-2622923,"2,589.44",CRAIGARRAN LTD.
Adult and Health Services,Head of Adults,Third Party Payments,474101,Purchase of Care,07/07/2020,3757193-2622929,"2,589.44",CRAIGARRAN LTD.
Adult and Health Services,Head of Adults,Third Party Payments,474101,Purchase of Care,07/07/2020,3757193-2622897,"2,589.44",CRAIGARRAN LTD.
Adult and Health Services,Head of Adults,Third Party Payments,474101,Purchase of Care,07/07/2020,3757193-2625369,647.36,CRAIGARRAN LTD.
Adult and Health Services,Head of Adults,Third Party Payments,474101,Purchase of Care,07/07/2020,3757193-2622908,"1,294.72",CRAIGARRAN LTD.
Adult and Health Services,Head of Adults,Third Party Payments,474101,Purchase of Care,07/07/2020,3756525-ADDITIONALUPLIFT4/57,"6,331.86",CRAIGARRAN LTD.
Adult and Health Services,Head of Adults,Third Party Payments,474101,Purchase of Care,07/07/2020,3757194-2624239,"2,589.44",CROFT HOUSE (CARE) LTD.
Adult and Health Services,Head of Adults,Third Party Payments,474101,Purchase of Care,07/07/2020,3757194-2624241,"1,294.72",CROFT HOUSE (CARE) LTD.
Adult and Health Services,Head of Adults,Third Party Payments,474101,Purchase of Care,07/07/2020,3757194-2624258,"2,589.44",CROFT HOUSE (CARE) LTD.
Adult and Health Services,Head of Adults,Third Party Payments,474101,Purchase of Care,07/07/2020,3757194-2624262,"2,589.44",CROFT HOUSE (CARE) LTD.
Adult and Health Services,Head of Adults,Third Party Payments,474101,Purchase of Care,07/07/2020,3757194-2624265,"1,294.72",CROFT HOUSE (CARE) LTD.
Adult and Health Services,Head of Adults,Third Party Payments,474101,Purchase of Care,07/07/2020,3757194-2624267,"1,294.72",CROFT HOUSE (CARE) LTD.
Adult and Health Services,Head of Adults,Third Party Payments,474101,Purchase of Care,07/07/2020,3757194-2624252,"2,589.44",CROFT HOUSE (CARE) LTD.
Adult and Health Services,Head of Adults,Third Party Payments,474101,Purchase of Care,07/07/2020,3757194-2624247,"2,589.44",CROFT HOUSE (CARE) LTD.
Adult and Health Services,Head of Adults,Third Party Payments,474101,Purchase of Care,07/07/2020,3757195-2621260,"1,303.70",CROWN CARE IV LTD T/A BALMORAL COURT.
Adult and Health Services,Head of Adults,Third Party Payments,474101,Purchase of Care,07/07/2020,3757195-2621261,936.00,CROWN CARE IV LTD T/A BALMORAL COURT.
Adult and Health Services,Head of Adults,Third Party Payments,474101,Purchase of Care,07/07/2020,3757195-2623912,"2,807.96",CROWN CARE IV LTD T/A BALMORAL COURT.
Adult and Health Services,Head of Adults,Third Party Payments,474101,Purchase of Care,07/07/2020,3757195-2623913,"2,016.00",CROWN CARE IV LTD T/A BALMORAL COURT.
Adult and Health Services,Head of Adults,Third Party Payments,474101,Purchase of Care,07/07/2020,3757197-2623719,"2,589.44",CROWN CARE VI LTD.
Adult and Health Services,Head of Adults,Third Party Payments,474101,Purchase of Care,07/07/2020,3757197-2623736,"2,589.44",CROWN CARE VI LTD.
Adult and Health Services,Head of Adults,Third Party Payments,474101,Purchase of Care,07/07/2020,3757197-2623742,"1,294.72",CROWN CARE VI LTD.
Adult and Health Services,Head of Adults,Third Party Payments,474101,Purchase of Care,07/07/2020,3757197-2623751,"2,589.44",CROWN CARE VI LTD.
Adult and Health Services,Head of Adults,Third Party Payments,474101,Purchase of Care,07/07/2020,3757197-2623755,"1,294.72",CROWN CARE VI LTD.
Adult and Health Services,Head of Adults,Third Party Payments,474101,Purchase of Care,07/07/2020,3757197-2623760,"2,589.44",CROWN CARE VI LTD.
Adult and Health Services,Head of Adults,Third Party Payments,474101,Purchase of Care,07/07/2020,3757197-2623705,"2,589.44",CROWN CARE VI LTD.
Adult and Health Services,Head of Adults,Third Party Payments,474101,Purchase of Care,07/07/2020,3757197-2623710,"1,294.72",CROWN CARE VI LTD.
Adult and Health Services,Head of Adults,Third Party Payments,474101,Purchase of Care,07/07/2020,3757197-2623728,"1,502.04",CROWN CARE VI LTD.
Adult and Health Services,Head of Adults,Third Party Payments,474101,Purchase of Care,07/07/2020,3757197-2623730,"2,589.44",CROWN CARE VI LTD.
Adult and Health Services,Head of Adults,Third Party Payments,474101,Purchase of Care,07/07/2020,3757197-2623732,"2,589.44",CROWN CARE VI LTD.
Adult and Health Services,Head of Adults,Third Party Payments,474101,Purchase of Care,07/07/2020,3757197-2623734,"2,589.44",CROWN CARE VI LTD.
Adult and Health Services,Head of Adults,Third Party Payments,474101,Purchase of Care,07/07/2020,3757197-2623740,"2,589.44",CROWN CARE VI LTD.
Adult and Health Services,Head of Adults,Third Party Payments,474101,Purchase of Care,07/07/2020,3757197-2623744,"2,589.44",CROWN CARE VI LTD.
Adult and Health Services,Head of Adults,Third Party Payments,474101,Purchase of Care,07/07/2020,3757197-2623747,508.64,CROWN CARE VI LTD.
Adult and Health Services,Head of Adults,Third Party Payments,474101,Purchase of Care,07/07/2020,3757197-2623757,"2,589.44",CROWN CARE VI LTD.
Adult and Health Services,Head of Adults,Third Party Payments,474101,Purchase of Care,07/07/2020,3757199-2622372,"2,457.28",D3 CARE LTD.
Adult and Health Services,Head of Adults,Third Party Payments,474101,Purchase of Care,07/07/2020,3757199-2622374,"2,457.28",D3 CARE LTD.
Adult and Health Services,Head of Adults,Third Party Payments,474101,Purchase of Care,07/07/2020,3757198-2622437,"1,079.24",D3 CARE LTD.
Adult and Health Services,Head of Adults,Third Party Payments,474101,Purchase of Care,07/07/2020,3757198-2622438,"1,079.24",D3 CARE LTD.
Adult and Health Services,Head of Adults,Third Party Payments,474101,Purchase of Care,07/07/2020,3757198-2622440,"1,079.24",D3 CARE LTD.
Adult and Health Services,Head of Adults,Third Party Payments,474101,Purchase of Care,07/07/2020,3757198-2622445,"2,158.44",D3 CARE LTD.
Adult and Health Services,Head of Adults,Third Party Payments,474101,Purchase of Care,07/07/2020,3757198-2622447,"1,079.24",D3 CARE LTD.
Adult and Health Services,Head of Adults,Third Party Payments,474101,Purchase of Care,07/07/2020,3757198-2622449,"1,589.04",D3 CARE LTD.
Adult and Health Services,Head of Adults,Third Party Payments,474101,Purchase of Care,07/07/2020,3757198-2622435,"1,079.24",D3 CARE LTD.
Adult and Health Services,Head of Adults,Third Party Payments,474101,Purchase of Care,07/07/2020,3757199-2622369,"2,457.28",D3 CARE LTD.
Adult and Health Services,Head of Adults,Third Party Payments,474101,Purchase of Care,07/07/2020,3756540-ADDITIONALUPLIFT4/LDMH/2,"1,009.91",D3 CARE LTD.
Adult and Health Services,Head of Adults,Third Party Payments,474101,Purchase of Care,07/07/2020,3757203-2624924,"2,589.44",DIPTON CARE HOME LTD.
Adult and Health Services,Head of Adults,Third Party Payments,474101,Purchase of Care,07/07/2020,3757206-2625018,"9,457.96",DUNLUCE HOUSE T/A BOHILL BUNGALOWS.
Adult and Health Services,Head of Adults,Third Party Payments,474101,Purchase of Care,07/07/2020,3757207-2624056,"1,228.64",DURHAM CARELINE LTD.
Adult and Health Services,Head of Adults,Third Party Payments,474101,Purchase of Care,07/07/2020,3757208-2623833,"3,518.56",DURHAM CARELINE LTD.
Adult and Health Services,Head of Adults,Third Party Payments,474101,Purchase of Care,07/07/2020,3757208-2623842,"3,555.00",DURHAM CARELINE LTD.
Adult and Health Services,Head of Adults,Third Party Payments,474101,Purchase of Care,07/07/2020,3757208-2623854,"3,419.20",DURHAM CARELINE LTD.
Adult and Health Services,Head of Adults,Third Party Payments,474101,Purchase of Care,07/07/2020,3757208-2623857,"3,419.20",DURHAM CARELINE LTD.
Adult and Health Services,Head of Adults,Third Party Payments,474101,Purchase of Care,07/07/2020,3757208-2623863,"3,419.20",DURHAM CARELINE LTD.
Adult and Health Services,Head of Adults,Third Party Payments,474101,Purchase of Care,07/07/2020,3757208-2623865,"3,419.20",DURHAM CARELINE LTD.
Adult and Health Services,Head of Adults,Third Party Payments,474101,Purchase of Care,07/07/2020,3757208-2623835,"3,288.00",DURHAM CARELINE LTD.
Adult and Health Services,Head of Adults,Third Party Payments,474101,Purchase of Care,07/07/2020,3757207-2624041,"1,228.64",DURHAM CARELINE LTD.
Adult and Health Services,Head of Adults,Third Party Payments,474101,Purchase of Care,07/07/2020,3757207-2624045,"3,254.28",DURHAM CARELINE LTD.
Adult and Health Services,Head of Adults,Third Party Payments,474101,Purchase of Care,07/07/2020,3757208-2623844,"3,555.00",DURHAM CARELINE LTD.
Adult and Health Services,Head of Adults,Third Party Payments,474101,Purchase of Care,07/07/2020,3757208-2625713,"8,233.79",DURHAM CARELINE LTD.
Adult and Health Services,Head of Adults,Third Party Payments,474101,Purchase of Care,07/07/2020,3757207-2624039,"2,457.28",DURHAM CARELINE LTD.
Adult and Health Services,Head of Adults,Third Party Payments,474101,Purchase of Care,07/07/2020,3757207-2624043,"1,228.64",DURHAM CARELINE LTD.
Adult and Health Services,Head of Adults,Third Party Payments,474101,Purchase of Care,07/07/2020,3757207-2624048,"2,457.28",DURHAM CARELINE LTD.
Adult and Health Services,Head of Adults,Third Party Payments,474101,Purchase of Care,07/07/2020,3757207-2624051,"2,457.28",DURHAM CARELINE LTD.
Adult and Health Services,Head of Adults,Third Party Payments,474101,Purchase of Care,07/07/2020,3757207-2624054,"2,457.28",DURHAM CARELINE LTD.
Adult and Health Services,Head of Adults,Third Party Payments,474101,Purchase of Care,07/07/2020,3757207-2624062,"1,228.64",DURHAM CARELINE LTD.
Adult and Health Services,Head of Adults,Third Party Payments,474101,Purchase of Care,07/07/2020,3757207-2624067,"1,228.64",DURHAM CARELINE LTD.
Adult and Health Services,Head of Adults,Third Party Payments,474101,Purchase of Care,07/07/2020,3757207-2624069,"2,457.28",DURHAM CARELINE LTD.
Adult and Health Services,Head of Adults,Third Party Payments,474101,Purchase of Care,07/07/2020,3757207-2624072,"6,508.52",DURHAM CARELINE LTD.
Adult and Health Services,Head of Adults,Third Party Payments,474101,Purchase of Care,07/07/2020,3757207-2624079,"1,228.64",DURHAM CARELINE LTD.
Adult and Health Services,Head of Adults,Third Party Payments,474101,Purchase of Care,07/07/2020,3757207-2624081,"2,457.28",DURHAM CARELINE LTD.
Adult and Health Services,Head of Adults,Third Party Payments,474101,Purchase of Care,07/07/2020,3757207-2624083,"2,457.28",DURHAM CARELINE LTD.
Adult and Health Services,Head of Adults,Third Party Payments,474101,Purchase of Care,07/07/2020,3757209-2623992,"3,644.76",DURHAM CARELINE LTD.
Adult and Health Services,Head of Adults,Third Party Payments,474101,Purchase of Care,07/07/2020,3757209-2623995,"5,085.68",DURHAM CARELINE LTD.
Adult and Health Services,Head of Adults,Third Party Payments,474101,Purchase of Care,07/07/2020,3757207-2624036,"1,491.92",DURHAM CARELINE LTD.
Adult and Health Services,Head of Adults,Third Party Payments,474101,Purchase of Care,07/07/2020,3757207-2624058,965.36,DURHAM CARELINE LTD.
Adult and Health Services,Head of Adults,Third Party Payments,474101,Purchase of Care,07/07/2020,3757208-2623846,"3,518.56",DURHAM CARELINE LTD.
Adult and Health Services,Head of Adults,Third Party Payments,474101,Purchase of Care,07/07/2020,3757207-2625375,"3,254.28",DURHAM CARELINE LTD.
Adult and Health Services,Head of Adults,Third Party Payments,474101,Purchase of Care,07/07/2020,3757209-2623999,"5,668.96",DURHAM CARELINE LTD.
Adult and Health Services,Head of Adults,Third Party Payments,474101,Purchase of Care,07/07/2020,3757208-2623851,"5,668.96",DURHAM CARELINE LTD.
Adult and Health Services,Head of Adults,Third Party Payments,474101,Purchase of Care,07/07/2020,3757207-2624077,"3,254.28",DURHAM CARELINE LTD.
Adult and Health Services,Head of Adults,Third Party Payments,474101,Purchase of Care,07/07/2020,3756567-ADDITIONALUPLIFT4/LDMH/23,"3,509.30",DURHAM CARELINE LTD.
Adult and Health Services,Head of Adults,Third Party Payments,474101,Purchase of Care,07/07/2020,3756568-ADDITIONALUPLIFT4/LDMH/24,"1,320.17",DURHAM CARELINE LTD.
Adult and Health Services,Head of Adults,Third Party Payments,474101,Purchase of Care,07/07/2020,3756569-ADDITIONALUPLIFT4/123,"9,127.82",DURHAM CARELINE LTD.
Adult and Health Services,Head of Adults,Third Party Payments,474101,Purchase of Care,07/07/2020,3757211-2625207,"2,625.48",EAST CHESHIRE HOUSING CONSORTIUM LTD.
Adult and Health Services,Head of Adults,Third Party Payments,474101,Purchase of Care,07/07/2020,3757212-2623073,"1,764.88",EAST CLEVELAND M S HOME.
Adult and Health Services,Head of Adults,Third Party Payments,474101,Purchase of Care,07/07/2020,3757218-2624946,"2,589.44",ELBA CARE LTD.
Adult and Health Services,Head of Adults,Third Party Payments,474101,Purchase of Care,07/07/2020,3757218-2624942,"2,589.44",ELBA CARE LTD.
Adult and Health Services,Head of Adults,Third Party Payments,474101,Purchase of Care,07/07/2020,3757237-2617681,"1,814.34",FOUR SEASONS (H2) LTD.
Adult and Health Services,Head of Adults,Third Party Payments,474101,Purchase of Care,07/07/2020,3757237-2625496,"3,285.66",FOUR SEASONS (H2) LTD.
Adult and Health Services,Head of Adults,Third Party Payments,474101,Purchase of Care,07/07/2020,3757238-2623234,"2,589.44",FOUR SEASONS (NO 9) LTD.
Adult and Health Services,Head of Adults,Third Party Payments,474101,Purchase of Care,07/07/2020,3757238-2623236,"2,589.44",FOUR SEASONS (NO 9) LTD.
Adult and Health Services,Head of Adults,Third Party Payments,474101,Purchase of Care,07/07/2020,3757238-2623230,"2,589.44",FOUR SEASONS (NO 9) LTD.
Adult and Health Services,Head of Adults,Third Party Payments,474101,Purchase of Care,07/07/2020,3757239-2622033,"5,425.29",FOUR SEASONS HOMES NO 1 LTD.
Adult and Health Services,Head of Adults,Third Party Payments,474101,Purchase of Care,07/07/2020,3757239-2622039,"2,589.44",FOUR SEASONS HOMES NO 1 LTD.
Adult and Health Services,Head of Adults,Third Party Payments,474101,Purchase of Care,07/07/2020,3757239-2622048,"2,589.44",FOUR SEASONS HOMES NO 1 LTD.
Adult and Health Services,Head of Adults,Third Party Payments,474101,Purchase of Care,07/07/2020,3757239-2622052,"2,589.44",FOUR SEASONS HOMES NO 1 LTD.
Adult and Health Services,Head of Adults,Third Party Payments,474101,Purchase of Care,07/07/2020,3757239-2622060,"1,988.28",FOUR SEASONS HOMES NO 1 LTD.
Adult and Health Services,Head of Adults,Third Party Payments,474101,Purchase of Care,07/07/2020,3757239-2622041,"2,589.44",FOUR SEASONS HOMES NO 1 LTD.
Adult and Health Services,Head of Adults,Third Party Payments,474101,Purchase of Care,07/07/2020,3757242-2623533,"1,186.00",GAINFORD CARE HOMES LTD.
Adult and Health Services,Head of Adults,Third Party Payments,474101,Purchase of Care,07/07/2020,3757243-2622862,"2,457.28",GAINFORD CARE HOMES LTD.
Adult and Health Services,Head of Adults,Third Party Payments,474101,Purchase of Care,07/07/2020,3757243-2622871,"2,457.28",GAINFORD CARE HOMES LTD.
Adult and Health Services,Head of Adults,Third Party Payments,474101,Purchase of Care,07/07/2020,3757243-2622882,"1,228.64",GAINFORD CARE HOMES LTD.
Adult and Health Services,Head of Adults,Third Party Payments,474101,Purchase of Care,07/07/2020,3757243-2622885,"1,228.64",GAINFORD CARE HOMES LTD.
Adult and Health Services,Head of Adults,Third Party Payments,474101,Purchase of Care,07/07/2020,3757244-2624764,"2,589.44",GAINFORD CARE HOMES LTD.
Adult and Health Services,Head of Adults,Third Party Payments,474101,Purchase of Care,07/07/2020,3757244-2624766,"2,589.44",GAINFORD CARE HOMES LTD.
Adult and Health Services,Head of Adults,Third Party Payments,474101,Purchase of Care,07/07/2020,3757246-2623953,"1,294.72",GAINFORD CARE HOMES LTD.
Adult and Health Services,Head of Adults,Third Party Payments,474101,Purchase of Care,07/07/2020,3757247-2623446,"1,288.00",GAINFORD CARE HOMES LTD.
Adult and Health Services,Head of Adults,Third Party Payments,474101,Purchase of Care,07/07/2020,3757248-2624105,"1,294.72",GAINFORD CARE HOMES LTD.
Adult and Health Services,Head of Adults,Third Party Payments,474101,Purchase of Care,07/07/2020,3757249-2623608,"2,589.44",GAINFORD CARE HOMES LTD.
Adult and Health Services,Head of Adults,Third Party Payments,474101,Purchase of Care,07/07/2020,3757243-2622860,"1,228.64",GAINFORD CARE HOMES LTD.
Adult and Health Services,Head of Adults,Third Party Payments,474101,Purchase of Care,07/07/2020,3757243-2622878,"2,457.28",GAINFORD CARE HOMES LTD.
Adult and Health Services,Head of Adults,Third Party Payments,474101,Purchase of Care,07/07/2020,3757244-2624729,"2,589.44",GAINFORD CARE HOMES LTD.
Adult and Health Services,Head of Adults,Third Party Payments,474101,Purchase of Care,07/07/2020,3757244-2624748,"2,589.44",GAINFORD CARE HOMES LTD.
Adult and Health Services,Head of Adults,Third Party Payments,474101,Purchase of Care,07/07/2020,3757244-2624751,"2,589.44",GAINFORD CARE HOMES LTD.
Adult and Health Services,Head of Adults,Third Party Payments,474101,Purchase of Care,07/07/2020,3757244-2624760,"2,589.44",GAINFORD CARE HOMES LTD.
Adult and Health Services,Head of Adults,Third Party Payments,474101,Purchase of Care,07/07/2020,3757244-2624762,"1,294.72",GAINFORD CARE HOMES LTD.
Adult and Health Services,Head of Adults,Third Party Payments,474101,Purchase of Care,07/07/2020,3757244-2624768,"2,589.44",GAINFORD CARE HOMES LTD.
Adult and Health Services,Head of Adults,Third Party Payments,474101,Purchase of Care,07/07/2020,3757244-2624770,"1,294.72",GAINFORD CARE HOMES LTD.
Adult and Health Services,Head of Adults,Third Party Payments,474101,Purchase of Care,07/07/2020,3757244-2624774,"2,589.44",GAINFORD CARE HOMES LTD.
Adult and Health Services,Head of Adults,Third Party Payments,474101,Purchase of Care,07/07/2020,3757246-2623962,"1,294.72",GAINFORD CARE HOMES LTD.
Adult and Health Services,Head of Adults,Third Party Payments,474101,Purchase of Care,07/07/2020,3757244-2624741,"2,589.44",GAINFORD CARE HOMES LTD.
Adult and Health Services,Head of Adults,Third Party Payments,474101,Purchase of Care,07/07/2020,3757248-2624110,"1,294.72",GAINFORD CARE HOMES LTD.
Adult and Health Services,Head of Adults,Third Party Payments,474101,Purchase of Care,07/07/2020,3757248-2624122,"2,589.44",GAINFORD CARE HOMES LTD.
Adult and Health Services,Head of Adults,Third Party Payments,474101,Purchase of Care,07/07/2020,3757248-2624125,"1,294.72",GAINFORD CARE HOMES LTD.
Adult and Health Services,Head of Adults,Third Party Payments,474101,Purchase of Care,07/07/2020,3757248-2624127,"1,294.72",GAINFORD CARE HOMES LTD.
Adult and Health Services,Head of Adults,Third Party Payments,474101,Purchase of Care,07/07/2020,3757246-2623925,"2,589.44",GAINFORD CARE HOMES LTD.
Adult and Health Services,Head of Adults,Third Party Payments,474101,Purchase of Care,07/07/2020,3757246-2623928,"2,589.44",GAINFORD CARE HOMES LTD.
Adult and Health Services,Head of Adults,Third Party Payments,474101,Purchase of Care,07/07/2020,3757246-2623933,"2,589.44",GAINFORD CARE HOMES LTD.
Adult and Health Services,Head of Adults,Third Party Payments,474101,Purchase of Care,07/07/2020,3757246-2623935,"2,496.96",GAINFORD CARE HOMES LTD.
Adult and Health Services,Head of Adults,Third Party Payments,474101,Purchase of Care,07/07/2020,3757246-2623942,"2,589.44",GAINFORD CARE HOMES LTD.
Adult and Health Services,Head of Adults,Third Party Payments,474101,Purchase of Care,07/07/2020,3757246-2623944,"1,294.72",GAINFORD CARE HOMES LTD.
Adult and Health Services,Head of Adults,Third Party Payments,474101,Purchase of Care,07/07/2020,3757246-2623946,"2,589.44",GAINFORD CARE HOMES LTD.
Adult and Health Services,Head of Adults,Third Party Payments,474101,Purchase of Care,07/07/2020,3757246-2623948,"2,589.44",GAINFORD CARE HOMES LTD.
Adult and Health Services,Head of Adults,Third Party Payments,474101,Purchase of Care,07/07/2020,3757246-2623957,"1,294.72",GAINFORD CARE HOMES LTD.
Adult and Health Services,Head of Adults,Third Party Payments,474101,Purchase of Care,07/07/2020,3757246-2623959,"2,589.44",GAINFORD CARE HOMES LTD.
Adult and Health Services,Head of Adults,Third Party Payments,474101,Purchase of Care,07/07/2020,3757246-2623964,"2,812.04",GAINFORD CARE HOMES LTD.
Adult and Health Services,Head of Adults,Third Party Payments,474101,Purchase of Care,07/07/2020,3757246-2625517,"3,051.84",GAINFORD CARE HOMES LTD.
Adult and Health Services,Head of Adults,Third Party Payments,474101,Purchase of Care,07/07/2020,3757244-2624746,"1,294.72",GAINFORD CARE HOMES LTD.
Adult and Health Services,Head of Adults,Third Party Payments,474101,Purchase of Care,07/07/2020,3757243-2622843,526.56,GAINFORD CARE HOMES LTD.
Adult and Health Services,Head of Adults,Third Party Payments,474101,Purchase of Care,07/07/2020,3757244-2624738,"2,589.44",GAINFORD CARE HOMES LTD.
Adult and Health Services,Head of Adults,Third Party Payments,474101,Purchase of Care,07/07/2020,3757248-2624089,"1,664.64",GAINFORD CARE HOMES LTD.
Adult and Health Services,Head of Adults,Third Party Payments,474101,Purchase of Care,07/07/2020,3757248-2624094,"6,381.12",GAINFORD CARE HOMES LTD.
Adult and Health Services,Head of Adults,Third Party Payments,474101,Purchase of Care,07/07/2020,3757248-2624098,"2,589.44",GAINFORD CARE HOMES LTD.
Adult and Health Services,Head of Adults,Third Party Payments,474101,Purchase of Care,07/07/2020,3757249-2625536,"1,479.68",GAINFORD CARE HOMES LTD.
Adult and Health Services,Head of Adults,Third Party Payments,474101,Purchase of Care,07/07/2020,3757244-2624719,"1,202.24",GAINFORD CARE HOMES LTD.
Adult and Health Services,Head of Adults,Third Party Payments,474101,Purchase of Care,07/07/2020,3757244-2624721,"1,942.08",GAINFORD CARE HOMES LTD.
Adult and Health Services,Head of Adults,Third Party Payments,474101,Purchase of Care,07/07/2020,3757244-2624727,"2,589.44",GAINFORD CARE HOMES LTD.
Adult and Health Services,Head of Adults,Third Party Payments,474101,Purchase of Care,07/07/2020,3757244-2624758,"2,589.44",GAINFORD CARE HOMES LTD.
Adult and Health Services,Head of Adults,Third Party Payments,474101,Purchase of Care,07/07/2020,3757244-2625622,"2,658.22",GAINFORD CARE HOMES LTD.
Adult and Health Services,Head of Adults,Third Party Payments,474101,Purchase of Care,07/07/2020,3757246-2625592,"1,479.68",GAINFORD CARE HOMES LTD.
Adult and Health Services,Head of Adults,Third Party Payments,474101,Purchase of Care,07/07/2020,3757246-2625593,"5,798.40",GAINFORD CARE HOMES LTD.
Adult and Health Services,Head of Adults,Third Party Payments,474101,Purchase of Care,07/07/2020,3757246-2623930,"2,496.96",GAINFORD CARE HOMES LTD.
Adult and Health Services,Head of Adults,Third Party Payments,474101,Purchase of Care,07/07/2020,3757248-2625687,554.88,GAINFORD CARE HOMES LTD.
Adult and Health Services,Head of Adults,Third Party Payments,474101,Purchase of Care,07/07/2020,3757248-2624108,"1,294.72",GAINFORD CARE HOMES LTD.
Adult and Health Services,Head of Adults,Third Party Payments,474101,Purchase of Care,07/07/2020,3757242-2623531,"1,186.00",GAINFORD CARE HOMES LTD.
Adult and Health Services,Head of Adults,Third Party Payments,474101,Purchase of Care,07/07/2020,3757248-2624131,"2,589.44",GAINFORD CARE HOMES LTD.
Adult and Health Services,Head of Adults,Third Party Payments,474101,Purchase of Care,07/07/2020,3756613-ADDITIONALUPLIFT4/126,"6,671.41",GAINFORD CARE HOMES LTD.
Adult and Health Services,Head of Adults,Third Party Payments,474101,Purchase of Care,07/07/2020,3756613-SELFFUNDERCOVID19UPLIFT4-79,"1,274.45",GAINFORD CARE HOMES LTD.
Adult and Health Services,Head of Adults,Third Party Payments,474101,Purchase of Care,07/07/2020,3756615-ADDITIONALUPLIFT4/76,"9,874.84",GAINFORD CARE HOMES LTD.
Adult and Health Services,Head of Adults,Third Party Payments,474101,Purchase of Care,07/07/2020,3756616-SELFFUNDERCOVID19UPLIFT4-12,"1,924.83",GAINFORD CARE HOMES LTD.
Adult and Health Services,Head of Adults,Third Party Payments,474101,Purchase of Care,07/07/2020,3757254-2625621,"2,014.87",HADRIAN HEALTHCARE (WHICKHAM) LTD.
Adult and Health Services,Head of Adults,Third Party Payments,474101,Purchase of Care,07/07/2020,3757254-2624714,"2,672.00",HADRIAN HEALTHCARE (WHICKHAM) LTD.
Adult and Health Services,Head of Adults,Third Party Payments,474101,Purchase of Care,07/07/2020,3757260-2624012,"2,589.44",HC-ONE BEAMISH LTD.
Adult and Health Services,Head of Adults,Third Party Payments,474101,Purchase of Care,07/07/2020,3757260-2624018,"2,589.44",HC-ONE BEAMISH LTD.
Adult and Health Services,Head of Adults,Third Party Payments,474101,Purchase of Care,07/07/2020,3757260-2625322,"2,404.48",HC-ONE BEAMISH LTD.
Adult and Health Services,Head of Adults,Third Party Payments,474101,Purchase of Care,07/07/2020,3757260-2625341,"1,202.24",HC-ONE BEAMISH LTD.
Adult and Health Services,Head of Adults,Third Party Payments,474101,Purchase of Care,07/07/2020,3757265-2623149,"2,589.44",HC-ONE LTD.
Adult and Health Services,Head of Adults,Third Party Payments,474101,Purchase of Care,07/07/2020,3757265-2623133,"2,589.44",HC-ONE LTD.
Adult and Health Services,Head of Adults,Third Party Payments,474101,Purchase of Care,07/07/2020,3757265-2623152,"2,589.44",HC-ONE LTD.
Adult and Health Services,Head of Adults,Third Party Payments,474101,Purchase of Care,07/07/2020,3757265-2623158,"2,589.44",HC-ONE LTD.
Adult and Health Services,Head of Adults,Third Party Payments,474101,Purchase of Care,07/07/2020,3757266-2621533,"2,457.28",HC-ONE LTD.
Adult and Health Services,Head of Adults,Third Party Payments,474101,Purchase of Care,07/07/2020,3757271-2621564,"2,457.28",HC-ONE LTD.
Adult and Health Services,Head of Adults,Third Party Payments,474101,Purchase of Care,07/07/2020,3757271-2621574,"2,457.28",HC-ONE LTD.
Adult and Health Services,Head of Adults,Third Party Payments,474101,Purchase of Care,07/07/2020,3757271-2621577,"2,457.28",HC-ONE LTD.
Adult and Health Services,Head of Adults,Third Party Payments,474101,Purchase of Care,07/07/2020,3757271-2621582,"2,457.28",HC-ONE LTD.
Adult and Health Services,Head of Adults,Third Party Payments,474101,Purchase of Care,07/07/2020,3757271-2625227,677.83,HC-ONE LTD.
Adult and Health Services,Head of Adults,Third Party Payments,474101,Purchase of Care,07/07/2020,3757271-2625607,"1,667.44",HC-ONE LTD.
Adult and Health Services,Head of Adults,Third Party Payments,474101,Purchase of Care,07/07/2020,3757271-2625609,789.84,HC-ONE LTD.
Adult and Health Services,Head of Adults,Third Party Payments,474101,Purchase of Care,07/07/2020,3757272-2623307,"2,812.04",HC-ONE LTD.
Adult and Health Services,Head of Adults,Third Party Payments,474101,Purchase of Care,07/07/2020,3757272-2623309,"1,294.72",HC-ONE LTD.
Adult and Health Services,Head of Adults,Third Party Payments,474101,Purchase of Care,07/07/2020,3757272-2623322,"2,589.44",HC-ONE LTD.
Adult and Health Services,Head of Adults,Third Party Payments,474101,Purchase of Care,07/07/2020,3757272-2623325,"2,589.44",HC-ONE LTD.
Adult and Health Services,Head of Adults,Third Party Payments,474101,Purchase of Care,07/07/2020,3757272-2623327,"2,589.44",HC-ONE LTD.
Adult and Health Services,Head of Adults,Third Party Payments,474101,Purchase of Care,07/07/2020,3757272-2623330,"2,589.44",HC-ONE LTD.
Adult and Health Services,Head of Adults,Third Party Payments,474101,Purchase of Care,07/07/2020,3757272-2623332,"2,589.44",HC-ONE LTD.
Adult and Health Services,Head of Adults,Third Party Payments,474101,Purchase of Care,07/07/2020,3757268-2622257,"2,404.48",HC-ONE LTD.
Adult and Health Services,Head of Adults,Third Party Payments,474101,Purchase of Care,07/07/2020,3757268-2622263,"2,589.44",HC-ONE LTD.
Adult and Health Services,Head of Adults,Third Party Payments,474101,Purchase of Care,07/07/2020,3757268-2622274,"2,589.44",HC-ONE LTD.
Adult and Health Services,Head of Adults,Third Party Payments,474101,Purchase of Care,07/07/2020,3757266-2621527,"2,457.28",HC-ONE LTD.
Adult and Health Services,Head of Adults,Third Party Payments,474101,Purchase of Care,07/07/2020,3757266-2621542,"2,457.28",HC-ONE LTD.
Adult and Health Services,Head of Adults,Third Party Payments,474101,Purchase of Care,07/07/2020,3757265-2623145,"2,589.44",HC-ONE LTD.
Adult and Health Services,Head of Adults,Third Party Payments,474101,Purchase of Care,07/07/2020,3757266-2621524,"5,967.68",HC-ONE LTD.
Adult and Health Services,Head of Adults,Third Party Payments,474101,Purchase of Care,07/07/2020,3757271-2621553,"2,003.34",HC-ONE LTD.
Adult and Health Services,Head of Adults,Third Party Payments,474101,Purchase of Care,07/07/2020,3757271-2621555,"1,140.88",HC-ONE LTD.
Adult and Health Services,Head of Adults,Third Party Payments,474101,Purchase of Care,07/07/2020,3757271-2621560,"2,018.48",HC-ONE LTD.
Adult and Health Services,Head of Adults,Third Party Payments,474101,Purchase of Care,07/07/2020,3757271-2621571,"2,457.28",HC-ONE LTD.
Adult and Health Services,Head of Adults,Third Party Payments,474101,Purchase of Care,07/07/2020,3757272-2623304,"2,589.44",HC-ONE LTD.
Adult and Health Services,Head of Adults,Third Party Payments,474101,Purchase of Care,07/07/2020,3757272-2623317,"2,589.44",HC-ONE LTD.
Adult and Health Services,Head of Adults,Third Party Payments,474101,Purchase of Care,07/07/2020,3757272-2625307,554.88,HC-ONE LTD.
Adult and Health Services,Head of Adults,Third Party Payments,474101,Purchase of Care,07/07/2020,3757272-2625582,"1,202.24",HC-ONE LTD.
Adult and Health Services,Head of Adults,Third Party Payments,474101,Purchase of Care,07/07/2020,3757272-2625584,"1,387.20",HC-ONE LTD.
Adult and Health Services,Head of Adults,Third Party Payments,474101,Purchase of Care,07/07/2020,3757268-2622281,"1,294.72",HC-ONE LTD.
Adult and Health Services,Head of Adults,Third Party Payments,474101,Purchase of Care,07/07/2020,3757268-2622285,"1,294.72",HC-ONE LTD.
Adult and Health Services,Head of Adults,Third Party Payments,474101,Purchase of Care,07/07/2020,3757272-2623319,"1,294.72",HC-ONE LTD.
Adult and Health Services,Head of Adults,Third Party Payments,474101,Purchase of Care,07/07/2020,3757274-2623537,"3,473.16",HC-ONE LTD..
Adult and Health Services,Head of Adults,Third Party Payments,474101,Purchase of Care,07/07/2020,3757274-2623290,"4,400.00",HC-ONE LTD..
Adult and Health Services,Head of Adults,Third Party Payments,474101,Purchase of Care,07/07/2020,3757274-2623286,"2,578.00",HC-ONE LTD..
Adult and Health Services,Head of Adults,Third Party Payments,474101,Purchase of Care,07/07/2020,3757274-2623287,"1,700.00",HC-ONE LTD..
Adult and Health Services,Head of Adults,Third Party Payments,474101,Purchase of Care,07/07/2020,3757274-2623288,"1,874.96",HC-ONE LTD..
Adult and Health Services,Head of Adults,Third Party Payments,474101,Purchase of Care,07/07/2020,3757276-2624855,"1,234.36",HENDON PIF LTD T/A ASHWOOD COURT CARE HOME.
Adult and Health Services,Head of Adults,Third Party Payments,474101,Purchase of Care,07/07/2020,3757281-2622557,"6,432.08",HILL CARE 3 LTD.
Adult and Health Services,Head of Adults,Third Party Payments,474101,Purchase of Care,07/07/2020,3757281-2622559,"2,196.32",HILL CARE 3 LTD.
Adult and Health Services,Head of Adults,Third Party Payments,474101,Purchase of Care,07/07/2020,3757281-2622561,509.86,HILL CARE 3 LTD.
Adult and Health Services,Head of Adults,Third Party Payments,474101,Purchase of Care,07/07/2020,3757281-2622563,549.08,HILL CARE 3 LTD.
Adult and Health Services,Head of Adults,Third Party Payments,474101,Purchase of Care,07/07/2020,3757281-2622574,"1,098.16",HILL CARE 3 LTD.
Adult and Health Services,Head of Adults,Third Party Payments,474101,Purchase of Care,07/07/2020,3757281-2622583,"2,196.32",HILL CARE 3 LTD.
Adult and Health Services,Head of Adults,Third Party Payments,474101,Purchase of Care,07/07/2020,3757281-2622591,"2,196.32",HILL CARE 3 LTD.
Adult and Health Services,Head of Adults,Third Party Payments,474101,Purchase of Care,07/07/2020,3757281-2622594,"2,196.32",HILL CARE 3 LTD.
Adult and Health Services,Head of Adults,Third Party Payments,474101,Purchase of Care,07/07/2020,3757281-2622568,"1,882.56",HILL CARE 3 LTD.
Adult and Health Services,Head of Adults,Third Party Payments,474101,Purchase of Care,07/07/2020,3757281-2622577,"3,529.80",HILL CARE 3 LTD.
Adult and Health Services,Head of Adults,Third Party Payments,474101,Purchase of Care,07/07/2020,3757304-2622002,"1,228.64",KINGSWAY CARE HOME LTD.
Adult and Health Services,Head of Adults,Third Party Payments,474101,Purchase of Care,07/07/2020,3757304-2622022,"2,457.28",KINGSWAY CARE HOME LTD.
Adult and Health Services,Head of Adults,Third Party Payments,474101,Purchase of Care,07/07/2020,3757304-2622027,"1,228.64",KINGSWAY CARE HOME LTD.
Adult and Health Services,Head of Adults,Third Party Payments,474101,Purchase of Care,07/07/2020,3757304-2622007,"2,457.28",KINGSWAY CARE HOME LTD.
Adult and Health Services,Head of Adults,Third Party Payments,474101,Purchase of Care,07/07/2020,3757304-2622019,"1,228.64",KINGSWAY CARE HOME LTD.
Adult and Health Services,Head of Adults,Third Party Payments,474101,Purchase of Care,07/07/2020,3757304-2621992,"1,228.64",KINGSWAY CARE HOME LTD.
Adult and Health Services,Head of Adults,Third Party Payments,474101,Purchase of Care,07/07/2020,3757304-2621995,"1,228.64",KINGSWAY CARE HOME LTD.
Adult and Health Services,Head of Adults,Third Party Payments,474101,Purchase of Care,07/07/2020,3757304-2621997,"1,228.64",KINGSWAY CARE HOME LTD.
Adult and Health Services,Head of Adults,Third Party Payments,474101,Purchase of Care,07/07/2020,3757304-2622005,"1,440.76",KINGSWAY CARE HOME LTD.
Adult and Health Services,Head of Adults,Third Party Payments,474101,Purchase of Care,07/07/2020,3757304-2622009,"1,228.64",KINGSWAY CARE HOME LTD.
Adult and Health Services,Head of Adults,Third Party Payments,474101,Purchase of Care,07/07/2020,3757304-2622011,"2,457.28",KINGSWAY CARE HOME LTD.
Adult and Health Services,Head of Adults,Third Party Payments,474101,Purchase of Care,07/07/2020,3757304-2622014,"1,228.64",KINGSWAY CARE HOME LTD.
Adult and Health Services,Head of Adults,Third Party Payments,474101,Purchase of Care,07/07/2020,3757304-2622029,"1,228.64",KINGSWAY CARE HOME LTD.
Adult and Health Services,Head of Adults,Third Party Payments,474101,Purchase of Care,07/07/2020,3757304-2622000,"1,228.64",KINGSWAY CARE HOME LTD.
Adult and Health Services,Head of Adults,Third Party Payments,474101,Purchase of Care,07/07/2020,3757304-2622016,"1,228.64",KINGSWAY CARE HOME LTD.
Adult and Health Services,Head of Adults,Third Party Payments,474101,Purchase of Care,07/07/2020,3757304-2622024,"1,228.64",KINGSWAY CARE HOME LTD.
Adult and Health Services,Head of Adults,Third Party Payments,474101,Purchase of Care,07/07/2020,3756719-ADDITIONALUPLIFT4/69,"6,929.19",KINGSWAY CARE HOME LTD.
Adult and Health Services,Head of Adults,Third Party Payments,474101,Purchase of Care,07/07/2020,3757307-2621708,"2,457.28",LEAZES HALL CARE HOME LTD.
Adult and Health Services,Head of Adults,Third Party Payments,474101,Purchase of Care,07/07/2020,3757307-2621723,"2,457.28",LEAZES HALL CARE HOME LTD.
Adult and Health Services,Head of Adults,Third Party Payments,474101,Purchase of Care,07/07/2020,3757307-2621737,"2,457.28",LEAZES HALL CARE HOME LTD.
Adult and Health Services,Head of Adults,Third Party Payments,474101,Purchase of Care,07/07/2020,3757307-2625666,"1,579.68",LEAZES HALL CARE HOME LTD.
Adult and Health Services,Head of Adults,Third Party Payments,474101,Purchase of Care,07/07/2020,3757307-2621706,"2,457.28",LEAZES HALL CARE HOME LTD.
Adult and Health Services,Head of Adults,Third Party Payments,474101,Purchase of Care,07/07/2020,3757307-2621721,"1,768.20",LEAZES HALL CARE HOME LTD.
Adult and Health Services,Head of Adults,Third Party Payments,474101,Purchase of Care,07/07/2020,3757307-2621728,"2,457.28",LEAZES HALL CARE HOME LTD.
Adult and Health Services,Head of Adults,Third Party Payments,474101,Purchase of Care,07/07/2020,3757307-2621740,"2,457.28",LEAZES HALL CARE HOME LTD.
Adult and Health Services,Head of Adults,Third Party Payments,474101,Purchase of Care,07/07/2020,3757309-2621651,"2,830.32",LEONARD CHESHIRE DISABILITY.
Adult and Health Services,Head of Adults,Third Party Payments,474101,Purchase of Care,07/07/2020,3757309-2621645,"3,195.96",LEONARD CHESHIRE DISABILITY.
Adult and Health Services,Head of Adults,Third Party Payments,474101,Purchase of Care,07/07/2020,3757309-2621630,"4,665.96",LEONARD CHESHIRE DISABILITY.
Adult and Health Services,Head of Adults,Third Party Payments,474101,Purchase of Care,07/07/2020,3757309-2621636,"4,604.56",LEONARD CHESHIRE DISABILITY.
Adult and Health Services,Head of Adults,Third Party Payments,474101,Purchase of Care,07/07/2020,3757309-2621628,"4,512.24",LEONARD CHESHIRE DISABILITY.
Adult and Health Services,Head of Adults,Third Party Payments,474101,Purchase of Care,07/07/2020,3757309-2621633,"1,914.20",LEONARD CHESHIRE DISABILITY.
Adult and Health Services,Head of Adults,Third Party Payments,474101,Purchase of Care,07/07/2020,3757309-2621634,"3,795.76",LEONARD CHESHIRE DISABILITY.
Adult and Health Services,Head of Adults,Third Party Payments,474101,Purchase of Care,07/07/2020,3757309-2621641,"4,644.36",LEONARD CHESHIRE DISABILITY.
Adult and Health Services,Head of Adults,Third Party Payments,474101,Purchase of Care,07/07/2020,3757309-2621643,"4,355.36",LEONARD CHESHIRE DISABILITY.
Adult and Health Services,Head of Adults,Third Party Payments,474101,Purchase of Care,07/07/2020,3757309-2621646,"3,928.28",LEONARD CHESHIRE DISABILITY.
Adult and Health Services,Head of Adults,Third Party Payments,474101,Purchase of Care,07/07/2020,3757309-2621648,"2,625.28",LEONARD CHESHIRE DISABILITY.
Adult and Health Services,Head of Adults,Third Party Payments,474101,Purchase of Care,07/07/2020,3757309-2621656,"4,756.04",LEONARD CHESHIRE DISABILITY.
Adult and Health Services,Head of Adults,Third Party Payments,474101,Purchase of Care,07/07/2020,3757309-2625471,"4,301.48",LEONARD CHESHIRE DISABILITY.
Adult and Health Services,Head of Adults,Third Party Payments,474101,Purchase of Care,07/07/2020,3757309-2625296,"2,255.24",LEONARD CHESHIRE DISABILITY.
Adult and Health Services,Head of Adults,Third Party Payments,474101,Purchase of Care,07/07/2020,3757309-2621650,"2,280.44",LEONARD CHESHIRE DISABILITY.
Adult and Health Services,Head of Adults,Third Party Payments,474101,Purchase of Care,07/07/2020,3757309-2621653,"3,400.00",LEONARD CHESHIRE DISABILITY.
Adult and Health Services,Head of Adults,Third Party Payments,474101,Purchase of Care,07/07/2020,3756734-ADDITIONALUPLIFT4/137,"7,847.61",LEONARD CHESHIRE DISABILITY.
Adult and Health Services,Head of Adults,Third Party Payments,474101,Purchase of Care,07/07/2020,3757311-2617404,"2,436.00",LIFESTYLE (ABBEY CARE) LTD.
Adult and Health Services,Head of Adults,Third Party Payments,474101,Purchase of Care,07/07/2020,3757311-2622961,"2,436.00",LIFESTYLE (ABBEY CARE) LTD.
Adult and Health Services,Head of Adults,Third Party Payments,474101,Purchase of Care,07/07/2020,3757318-2625459,"1,558.00",MALHOTRA CARE HOMES LTD.
Adult and Health Services,Head of Adults,Third Party Payments,474101,Purchase of Care,07/07/2020,3757318-2625460,"2,464.00",MALHOTRA CARE HOMES LTD.
Adult and Health Services,Head of Adults,Third Party Payments,474101,Purchase of Care,07/07/2020,3757318-2625462,"2,992.00",MALHOTRA CARE HOMES LTD.
Adult and Health Services,Head of Adults,Third Party Payments,474101,Purchase of Care,07/07/2020,3757318-2625463,"3,116.00",MALHOTRA CARE HOMES LTD.
Adult and Health Services,Head of Adults,Third Party Payments,474101,Purchase of Care,07/07/2020,3757318-2625465,"1,558.00",MALHOTRA CARE HOMES LTD.
Adult and Health Services,Head of Adults,Third Party Payments,474101,Purchase of Care,07/07/2020,3757318-2625473,"1,496.00",MALHOTRA CARE HOMES LTD.
Adult and Health Services,Head of Adults,Third Party Payments,474101,Purchase of Care,07/07/2020,3757319-2622314,"1,857.24",MALHOTRA CARE HOMES LTD.
Adult and Health Services,Head of Adults,Third Party Payments,474101,Purchase of Care,07/07/2020,3757319-2622290,"2,589.44",MALHOTRA CARE HOMES LTD.
Adult and Health Services,Head of Adults,Third Party Payments,474101,Purchase of Care,07/07/2020,3757319-2622292,"2,589.44",MALHOTRA CARE HOMES LTD.
Adult and Health Services,Head of Adults,Third Party Payments,474101,Purchase of Care,07/07/2020,3757319-2622294,"3,714.44",MALHOTRA CARE HOMES LTD.
Adult and Health Services,Head of Adults,Third Party Payments,474101,Purchase of Care,07/07/2020,3757319-2622298,"2,589.44",MALHOTRA CARE HOMES LTD.
Adult and Health Services,Head of Adults,Third Party Payments,474101,Purchase of Care,07/07/2020,3757319-2622301,"3,714.44",MALHOTRA CARE HOMES LTD.
Adult and Health Services,Head of Adults,Third Party Payments,474101,Purchase of Care,07/07/2020,3757319-2622305,"2,589.44",MALHOTRA CARE HOMES LTD.
Adult and Health Services,Head of Adults,Third Party Payments,474101,Purchase of Care,07/07/2020,3757319-2622310,"3,714.40",MALHOTRA CARE HOMES LTD.
Adult and Health Services,Head of Adults,Third Party Payments,474101,Purchase of Care,07/07/2020,3757319-2622317,"3,714.40",MALHOTRA CARE HOMES LTD.
Adult and Health Services,Head of Adults,Third Party Payments,474101,Purchase of Care,07/07/2020,3757319-2622321,"2,589.44",MALHOTRA CARE HOMES LTD.
Adult and Health Services,Head of Adults,Third Party Payments,474101,Purchase of Care,07/07/2020,3757319-2622308,"1,857.20",MALHOTRA CARE HOMES LTD.
Adult and Health Services,Head of Adults,Third Party Payments,474101,Purchase of Care,07/07/2020,3757319-2622319,"3,088.76",MALHOTRA CARE HOMES LTD.
Adult and Health Services,Head of Adults,Third Party Payments,474101,Purchase of Care,07/07/2020,3757318-2624827,"6,101.57",MALHOTRA CARE HOMES LTD.
Adult and Health Services,Head of Adults,Third Party Payments,474101,Purchase of Care,07/07/2020,3756747-ADDITIONALUPLIFT4/105,"10,339.25",MALHOTRA CARE HOMES LTD.
Adult and Health Services,Head of Adults,Third Party Payments,474101,Purchase of Care,07/07/2020,3756747-SELFFUNDERCOVID19UPLIFT4-59,507.75,MALHOTRA CARE HOMES LTD.
Adult and Health Services,Head of Adults,Third Party Payments,474101,Purchase of Care,07/07/2020,3757321-2623168,"2,589.44",MARIA MALLABAND NURSING HOMES LTD.
Adult and Health Services,Head of Adults,Third Party Payments,474101,Purchase of Care,07/07/2020,3757321-2623172,"2,589.44",MARIA MALLABAND NURSING HOMES LTD.
Adult and Health Services,Head of Adults,Third Party Payments,474101,Purchase of Care,07/07/2020,3757321-2623174,"2,589.44",MARIA MALLABAND NURSING HOMES LTD.
Adult and Health Services,Head of Adults,Third Party Payments,474101,Purchase of Care,07/07/2020,3757321-2623185,"2,589.44",MARIA MALLABAND NURSING HOMES LTD.
Adult and Health Services,Head of Adults,Third Party Payments,474101,Purchase of Care,07/07/2020,3757321-2623189,"2,589.44",MARIA MALLABAND NURSING HOMES LTD.
Adult and Health Services,Head of Adults,Third Party Payments,474101,Purchase of Care,07/07/2020,3757321-2623194,"2,589.44",MARIA MALLABAND NURSING HOMES LTD.
Adult and Health Services,Head of Adults,Third Party Payments,474101,Purchase of Care,07/07/2020,3757321-2623200,"2,589.44",MARIA MALLABAND NURSING HOMES LTD.
Adult and Health Services,Head of Adults,Third Party Payments,474101,Purchase of Care,07/07/2020,3757321-2625293,"2,589.44",MARIA MALLABAND NURSING HOMES LTD.
Adult and Health Services,Head of Adults,Third Party Payments,474101,Purchase of Care,07/07/2020,3757321-2623196,"2,589.44",MARIA MALLABAND NURSING HOMES LTD.
Adult and Health Services,Head of Adults,Third Party Payments,474101,Purchase of Care,07/07/2020,3756751-ADDITIONALUPLIFT4/60,"8,452.28",MARIA MALLABAND NURSING HOMES LTD.
Adult and Health Services,Head of Adults,Third Party Payments,474101,Purchase of Care,07/07/2020,3757326-2622705,"1,347.80",MARTON CARE HOMES LTD T/A ELIZABETH FLEMING CARE HOME.
Adult and Health Services,Head of Adults,Third Party Payments,474101,Purchase of Care,07/07/2020,3757328-2621493,"1,500.00",MARTON CARE HOMES LTD T/A ST HELENS CARE HOME.
Adult and Health Services,Head of Adults,Third Party Payments,474101,Purchase of Care,07/07/2020,3757328-2621498,"2,457.28",MARTON CARE HOMES LTD T/A ST HELENS CARE HOME.
Adult and Health Services,Head of Adults,Third Party Payments,474101,Purchase of Care,07/07/2020,3757328-2621500,"3,189.76",MARTON CARE HOMES LTD T/A ST HELENS CARE HOME.
Adult and Health Services,Head of Adults,Third Party Payments,474101,Purchase of Care,07/07/2020,3757328-2621502,"1,228.64",MARTON CARE HOMES LTD T/A ST HELENS CARE HOME.
Adult and Health Services,Head of Adults,Third Party Payments,474101,Purchase of Care,07/07/2020,3757328-2621511,"1,926.00",MARTON CARE HOMES LTD T/A ST HELENS CARE HOME.
Adult and Health Services,Head of Adults,Third Party Payments,474101,Purchase of Care,07/07/2020,3757328-2621512,"1,228.64",MARTON CARE HOMES LTD T/A ST HELENS CARE HOME.
Adult and Health Services,Head of Adults,Third Party Payments,474101,Purchase of Care,07/07/2020,3757328-2621515,"3,231.80",MARTON CARE HOMES LTD T/A ST HELENS CARE HOME.
Adult and Health Services,Head of Adults,Third Party Payments,474101,Purchase of Care,07/07/2020,3757328-2621522,"1,866.00",MARTON CARE HOMES LTD T/A ST HELENS CARE HOME.
Adult and Health Services,Head of Adults,Third Party Payments,474101,Purchase of Care,07/07/2020,3757328-2621492,"1,404.16",MARTON CARE HOMES LTD T/A ST HELENS CARE HOME.
Adult and Health Services,Head of Adults,Third Party Payments,474101,Purchase of Care,07/07/2020,3757328-2621495,"1,614.88",MARTON CARE HOMES LTD T/A ST HELENS CARE HOME.
Adult and Health Services,Head of Adults,Third Party Payments,474101,Purchase of Care,07/07/2020,3757328-2621520,"1,866.00",MARTON CARE HOMES LTD T/A ST HELENS CARE HOME.
Adult and Health Services,Head of Adults,Third Party Payments,474101,Purchase of Care,07/07/2020,3756762-ADDITIONALUPLIFT4/79,"5,449.63",MARTON CARE HOMES LTD T/A ST HELENS CARE HOME.
Adult and Health Services,Head of Adults,Third Party Payments,474101,Purchase of Care,07/07/2020,3757332-2623452,"2,810.92",MEMORY LANE CARE HOMES LTD.
Adult and Health Services,Head of Adults,Third Party Payments,474101,Purchase of Care,07/07/2020,3757371-2623498,"2,285.88",NORTHLEA COURT.
Adult and Health Services,Head of Adults,Third Party Payments,474101,Purchase of Care,07/07/2020,3757375-2621691,"2,589.44",OBJECT QUEST LTD.
Adult and Health Services,Head of Adults,Third Party Payments,474101,Purchase of Care,07/07/2020,3757375-2621693,"2,589.44",OBJECT QUEST LTD.
Adult and Health Services,Head of Adults,Third Party Payments,474101,Purchase of Care,07/07/2020,3757375-2621695,"2,589.44",OBJECT QUEST LTD.
Adult and Health Services,Head of Adults,Third Party Payments,474101,Purchase of Care,07/07/2020,3757388-2622079,"2,196.32",PERFECT CARE LTD.
Adult and Health Services,Head of Adults,Third Party Payments,474101,Purchase of Care,07/07/2020,3757388-2622086,"2,196.32",PERFECT CARE LTD.
Adult and Health Services,Head of Adults,Third Party Payments,474101,Purchase of Care,07/07/2020,3757388-2622090,"2,196.32",PERFECT CARE LTD.
Adult and Health Services,Head of Adults,Third Party Payments,474101,Purchase of Care,07/07/2020,3757388-2622096,"2,196.32",PERFECT CARE LTD.
Adult and Health Services,Head of Adults,Third Party Payments,474101,Purchase of Care,07/07/2020,3757388-2625486,"1,098.16",PERFECT CARE LTD.
Adult and Health Services,Head of Adults,Third Party Payments,474101,Purchase of Care,07/07/2020,3757389-2621327,"2,280.00",POPULAR CARE LTD.
Adult and Health Services,Head of Adults,Third Party Payments,474101,Purchase of Care,07/07/2020,3757389-2621328,"2,280.00",POPULAR CARE LTD.
Adult and Health Services,Head of Adults,Third Party Payments,474101,Purchase of Care,07/07/2020,3757389-2621330,"2,280.00",POPULAR CARE LTD.
Adult and Health Services,Head of Adults,Third Party Payments,474101,Purchase of Care,07/07/2020,3757390-2624302,"2,589.44",POPULAR CARE LTD..
Adult and Health Services,Head of Adults,Third Party Payments,474101,Purchase of Care,07/07/2020,3757390-2624306,"2,589.44",POPULAR CARE LTD..
Adult and Health Services,Head of Adults,Third Party Payments,474101,Purchase of Care,07/07/2020,3757390-2624307,"1,657.44",POPULAR CARE LTD..
Adult and Health Services,Head of Adults,Third Party Payments,474101,Purchase of Care,07/07/2020,3757390-2624318,"1,294.72",POPULAR CARE LTD..
Adult and Health Services,Head of Adults,Third Party Payments,474101,Purchase of Care,07/07/2020,3757390-2624320,"2,589.44",POPULAR CARE LTD..
Adult and Health Services,Head of Adults,Third Party Payments,474101,Purchase of Care,07/07/2020,3757390-2624322,"2,589.44",POPULAR CARE LTD..
Adult and Health Services,Head of Adults,Third Party Payments,474101,Purchase of Care,07/07/2020,3757390-2624329,"1,294.72",POPULAR CARE LTD..
Adult and Health Services,Head of Adults,Third Party Payments,474101,Purchase of Care,07/07/2020,3757390-2624331,"2,589.44",POPULAR CARE LTD..
Adult and Health Services,Head of Adults,Third Party Payments,474101,Purchase of Care,07/07/2020,3757390-2624333,"2,589.44",POPULAR CARE LTD..
Adult and Health Services,Head of Adults,Third Party Payments,474101,Purchase of Care,07/07/2020,3757390-2624338,"1,294.72",POPULAR CARE LTD..
Adult and Health Services,Head of Adults,Third Party Payments,474101,Purchase of Care,07/07/2020,3757393-2624810,"2,589.44",PREMIER CARE HOMES LTD.
Adult and Health Services,Head of Adults,Third Party Payments,474101,Purchase of Care,07/07/2020,3757393-2624821,"2,812.04",PREMIER CARE HOMES LTD.
Adult and Health Services,Head of Adults,Third Party Payments,474101,Purchase of Care,07/07/2020,3757393-2624797,"2,589.44",PREMIER CARE HOMES LTD.
Adult and Health Services,Head of Adults,Third Party Payments,474101,Purchase of Care,07/07/2020,3757393-2624799,"2,589.44",PREMIER CARE HOMES LTD.
Adult and Health Services,Head of Adults,Third Party Payments,474101,Purchase of Care,07/07/2020,3757393-2624803,"2,589.44",PREMIER CARE HOMES LTD.
Adult and Health Services,Head of Adults,Third Party Payments,474101,Purchase of Care,07/07/2020,3757393-2624808,"2,589.44",PREMIER CARE HOMES LTD.
Adult and Health Services,Head of Adults,Third Party Payments,474101,Purchase of Care,07/07/2020,3757393-2624817,"2,589.44",PREMIER CARE HOMES LTD.
Adult and Health Services,Head of Adults,Third Party Payments,474101,Purchase of Care,07/07/2020,3757393-2624777,"2,589.44",PREMIER CARE HOMES LTD.
Adult and Health Services,Head of Adults,Third Party Payments,474101,Purchase of Care,07/07/2020,3757396-2625192,"2,412.84",PRESTIGE CARE (YEW TREE) LTD.
Adult and Health Services,Head of Adults,Third Party Payments,474101,Purchase of Care,07/07/2020,3757400-2624500,"1,347.80",QUALIA CARE LTD.
Adult and Health Services,Head of Adults,Third Party Payments,474101,Purchase of Care,07/07/2020,3757404-2621385,"2,589.44",RAYSON HOMES LTD.
Adult and Health Services,Head of Adults,Third Party Payments,474101,Purchase of Care,07/07/2020,3757404-2621389,"2,589.44",RAYSON HOMES LTD.
Adult and Health Services,Head of Adults,Third Party Payments,474101,Purchase of Care,07/07/2020,3757404-2621392,"2,589.44",RAYSON HOMES LTD.
Adult and Health Services,Head of Adults,Third Party Payments,474101,Purchase of Care,07/07/2020,3757404-2621394,"2,589.44",RAYSON HOMES LTD.
Adult and Health Services,Head of Adults,Third Party Payments,474101,Purchase of Care,07/07/2020,3757404-2621397,"2,589.44",RAYSON HOMES LTD.
Adult and Health Services,Head of Adults,Third Party Payments,474101,Purchase of Care,07/07/2020,3757404-2621399,"2,589.44",RAYSON HOMES LTD.
Adult and Health Services,Head of Adults,Third Party Payments,474101,Purchase of Care,07/07/2020,3757404-2621401,"2,589.44",RAYSON HOMES LTD.
Adult and Health Services,Head of Adults,Third Party Payments,474101,Purchase of Care,07/07/2020,3757404-2621403,"1,950.52",RAYSON HOMES LTD.
Adult and Health Services,Head of Adults,Third Party Payments,474101,Purchase of Care,07/07/2020,3756901-ADDITIONALUPLIFT4/55,"4,870.11",RAYSON HOMES LTD.
Adult and Health Services,Head of Adults,Third Party Payments,474101,Purchase of Care,07/07/2020,3757407-2623360,630.00,RENAL HEALTH LTD.
Adult and Health Services,Head of Adults,Third Party Payments,474101,Purchase of Care,07/07/2020,3757410-2623883,690.04,RICHMOND FELLOWSHIP.
Adult and Health Services,Head of Adults,Third Party Payments,474101,Purchase of Care,07/07/2020,3757415-2625121,"1,586.00",ROCHE HEALTH CARE LTD.
Adult and Health Services,Head of Adults,Third Party Payments,474101,Purchase of Care,07/07/2020,3757416-2625024,"2,695.64",ROSEBERRY CARE CENTRES GB LTD T/A ALEXANDRA VIEW CARE CENTRE.
Adult and Health Services,Head of Adults,Third Party Payments,474101,Purchase of Care,07/07/2020,3757422-2623357,"2,620.00",SANCTUARY CARE (ENGLAND) LTD.
Adult and Health Services,Head of Adults,Third Party Payments,474101,Purchase of Care,07/07/2020,3757423-2625160,"2,695.64",SANCTUARY CARE (ENGLAND) LTD.
Adult and Health Services,Head of Adults,Third Party Payments,474101,Purchase of Care,07/07/2020,3757424-2624680,"1,294.72",SANCTUARY CARE (ENGLAND) LTD.
Adult and Health Services,Head of Adults,Third Party Payments,474101,Purchase of Care,07/07/2020,3757424-2624682,"1,294.72",SANCTUARY CARE (ENGLAND) LTD.
Adult and Health Services,Head of Adults,Third Party Payments,474101,Purchase of Care,07/07/2020,3757424-2624687,"1,294.72",SANCTUARY CARE (ENGLAND) LTD.
Adult and Health Services,Head of Adults,Third Party Payments,474101,Purchase of Care,07/07/2020,3757424-2624696,"2,589.44",SANCTUARY CARE (ENGLAND) LTD.
Adult and Health Services,Head of Adults,Third Party Payments,474101,Purchase of Care,07/07/2020,3757424-2624701,"2,589.44",SANCTUARY CARE (ENGLAND) LTD.
Adult and Health Services,Head of Adults,Third Party Payments,474101,Purchase of Care,07/07/2020,3757424-2625254,"6,517.92",SANCTUARY CARE (ENGLAND) LTD.
Adult and Health Services,Head of Adults,Third Party Payments,474101,Purchase of Care,07/07/2020,3757424-2624689,"2,589.44",SANCTUARY CARE (ENGLAND) LTD.
Adult and Health Services,Head of Adults,Third Party Payments,474101,Purchase of Care,07/07/2020,3757424-2624699,"1,294.72",SANCTUARY CARE (ENGLAND) LTD.
Adult and Health Services,Head of Adults,Third Party Payments,474101,Purchase of Care,07/07/2020,3757425-2624560,647.36,SANCTUARY CARE (ENGLAND) LTD.
Adult and Health Services,Head of Adults,Third Party Payments,474101,Purchase of Care,07/07/2020,3757425-2624563,"1,202.24",SANCTUARY CARE (ENGLAND) LTD.
Adult and Health Services,Head of Adults,Third Party Payments,474101,Purchase of Care,07/07/2020,3757425-2624569,"1,294.72",SANCTUARY CARE (ENGLAND) LTD.
Adult and Health Services,Head of Adults,Third Party Payments,474101,Purchase of Care,07/07/2020,3757425-2624573,"2,589.44",SANCTUARY CARE (ENGLAND) LTD.
Adult and Health Services,Head of Adults,Third Party Payments,474101,Purchase of Care,07/07/2020,3757425-2624579,"2,589.44",SANCTUARY CARE (ENGLAND) LTD.
Adult and Health Services,Head of Adults,Third Party Payments,474101,Purchase of Care,07/07/2020,3757425-2624605,"2,589.44",SANCTUARY CARE (ENGLAND) LTD.
Adult and Health Services,Head of Adults,Third Party Payments,474101,Purchase of Care,07/07/2020,3757427-2623389,"2,589.44",SANCTUARY CARE (ENGLAND) LTD.
Adult and Health Services,Head of Adults,Third Party Payments,474101,Purchase of Care,07/07/2020,3757427-2623392,"2,589.44",SANCTUARY CARE (ENGLAND) LTD.
Adult and Health Services,Head of Adults,Third Party Payments,474101,Purchase of Care,07/07/2020,3757427-2623394,"1,202.24",SANCTUARY CARE (ENGLAND) LTD.
Adult and Health Services,Head of Adults,Third Party Payments,474101,Purchase of Care,07/07/2020,3757427-2623401,"2,589.44",SANCTUARY CARE (ENGLAND) LTD.
Adult and Health Services,Head of Adults,Third Party Payments,474101,Purchase of Care,07/07/2020,3757427-2623406,"1,294.72",SANCTUARY CARE (ENGLAND) LTD.
Adult and Health Services,Head of Adults,Third Party Payments,474101,Purchase of Care,07/07/2020,3757427-2623408,"2,589.44",SANCTUARY CARE (ENGLAND) LTD.
Adult and Health Services,Head of Adults,Third Party Payments,474101,Purchase of Care,07/07/2020,3757427-2623412,"2,589.44",SANCTUARY CARE (ENGLAND) LTD.
Adult and Health Services,Head of Adults,Third Party Payments,474101,Purchase of Care,07/07/2020,3757427-2623418,"2,589.44",SANCTUARY CARE (ENGLAND) LTD.
Adult and Health Services,Head of Adults,Third Party Payments,474101,Purchase of Care,07/07/2020,3757427-2623420,"2,589.44",SANCTUARY CARE (ENGLAND) LTD.
Adult and Health Services,Head of Adults,Third Party Payments,474101,Purchase of Care,07/07/2020,3757427-2623422,"2,589.44",SANCTUARY CARE (ENGLAND) LTD.
Adult and Health Services,Head of Adults,Third Party Payments,474101,Purchase of Care,07/07/2020,3757427-2623424,"2,589.44",SANCTUARY CARE (ENGLAND) LTD.
Adult and Health Services,Head of Adults,Third Party Payments,474101,Purchase of Care,07/07/2020,3757427-2623431,"2,589.44",SANCTUARY CARE (ENGLAND) LTD.
Adult and Health Services,Head of Adults,Third Party Payments,474101,Purchase of Care,07/07/2020,3757427-2623437,"1,294.72",SANCTUARY CARE (ENGLAND) LTD.
Adult and Health Services,Head of Adults,Third Party Payments,474101,Purchase of Care,07/07/2020,3757427-2623439,"2,589.44",SANCTUARY CARE (ENGLAND) LTD.
Adult and Health Services,Head of Adults,Third Party Payments,474101,Purchase of Care,07/07/2020,3757427-2623442,"2,589.44",SANCTUARY CARE (ENGLAND) LTD.
Adult and Health Services,Head of Adults,Third Party Payments,474101,Purchase of Care,07/07/2020,3757424-2624685,"1,294.72",SANCTUARY CARE (ENGLAND) LTD.
Adult and Health Services,Head of Adults,Third Party Payments,474101,Purchase of Care,07/07/2020,3757424-2624692,"1,294.72",SANCTUARY CARE (ENGLAND) LTD.
Adult and Health Services,Head of Adults,Third Party Payments,474101,Purchase of Care,07/07/2020,3757424-2624676,"2,589.44",SANCTUARY CARE (ENGLAND) LTD.
Adult and Health Services,Head of Adults,Third Party Payments,474101,Purchase of Care,07/07/2020,3757424-2624666,"3,791.68",SANCTUARY CARE (ENGLAND) LTD.
Adult and Health Services,Head of Adults,Third Party Payments,474101,Purchase of Care,07/07/2020,3757424-2624670,"2,589.44",SANCTUARY CARE (ENGLAND) LTD.
Adult and Health Services,Head of Adults,Third Party Payments,474101,Purchase of Care,07/07/2020,3757424-2624678,"2,589.44",SANCTUARY CARE (ENGLAND) LTD.
Adult and Health Services,Head of Adults,Third Party Payments,474101,Purchase of Care,07/07/2020,3757425-2624576,"2,589.44",SANCTUARY CARE (ENGLAND) LTD.
Adult and Health Services,Head of Adults,Third Party Payments,474101,Purchase of Care,07/07/2020,3757425-2624591,"2,589.44",SANCTUARY CARE (ENGLAND) LTD.
Adult and Health Services,Head of Adults,Third Party Payments,474101,Purchase of Care,07/07/2020,3757425-2625706,591.87,SANCTUARY CARE (ENGLAND) LTD.
Adult and Health Services,Head of Adults,Third Party Payments,474101,Purchase of Care,07/07/2020,3757427-2623396,"2,579.92",SANCTUARY CARE (ENGLAND) LTD.
Adult and Health Services,Head of Adults,Third Party Payments,474101,Purchase of Care,07/07/2020,3756937-SELFFUNDERCOVID19UPLIFT4-37,"1,792.34",SANCTUARY CARE (ENGLAND) LTD.
Adult and Health Services,Head of Adults,Third Party Payments,474101,Purchase of Care,07/07/2020,3756938-ADDITIONALUPLIFT4/75,"5,495.92",SANCTUARY CARE (ENGLAND) LTD.
Adult and Health Services,Head of Adults,Third Party Payments,474101,Purchase of Care,07/07/2020,3756939-ADDITIONALUPLIFT4/2,"12,566.48",SANCTUARY CARE (ENGLAND) LTD.
Adult and Health Services,Head of Adults,Third Party Payments,474101,Purchase of Care,07/07/2020,3757431-2621408,"2,589.44",SEAHAM CARE LTD.
Adult and Health Services,Head of Adults,Third Party Payments,474101,Purchase of Care,07/07/2020,3757431-2621410,"2,589.44",SEAHAM CARE LTD.
Adult and Health Services,Head of Adults,Third Party Payments,474101,Purchase of Care,07/07/2020,3757431-2621414,"2,589.44",SEAHAM CARE LTD.
Adult and Health Services,Head of Adults,Third Party Payments,474101,Purchase of Care,07/07/2020,3757431-2621417,"2,589.44",SEAHAM CARE LTD.
Adult and Health Services,Head of Adults,Third Party Payments,474101,Purchase of Care,07/07/2020,3757431-2621419,"2,589.44",SEAHAM CARE LTD.
Adult and Health Services,Head of Adults,Third Party Payments,474101,Purchase of Care,07/07/2020,3757431-2621422,"2,589.44",SEAHAM CARE LTD.
Adult and Health Services,Head of Adults,Third Party Payments,474101,Purchase of Care,07/07/2020,3757431-2621424,"2,589.44",SEAHAM CARE LTD.
Adult and Health Services,Head of Adults,Third Party Payments,474101,Purchase of Care,07/07/2020,3757431-2621427,"2,589.44",SEAHAM CARE LTD.
Adult and Health Services,Head of Adults,Third Party Payments,474101,Purchase of Care,07/07/2020,3757431-2621429,"1,294.72",SEAHAM CARE LTD.
Adult and Health Services,Head of Adults,Third Party Payments,474101,Purchase of Care,07/07/2020,3757431-2621431,"1,294.72",SEAHAM CARE LTD.
Adult and Health Services,Head of Adults,Third Party Payments,474101,Purchase of Care,07/07/2020,3757431-2621432,"2,352.00",SEAHAM CARE LTD.
Adult and Health Services,Head of Adults,Third Party Payments,474101,Purchase of Care,07/07/2020,3757431-2621434,"2,589.44",SEAHAM CARE LTD.
Adult and Health Services,Head of Adults,Third Party Payments,474101,Purchase of Care,07/07/2020,3757431-2621437,"2,589.44",SEAHAM CARE LTD.
Adult and Health Services,Head of Adults,Third Party Payments,474101,Purchase of Care,07/07/2020,3757431-2621443,"1,294.72",SEAHAM CARE LTD.
Adult and Health Services,Head of Adults,Third Party Payments,474101,Purchase of Care,07/07/2020,3757431-2621445,"1,294.72",SEAHAM CARE LTD.
Adult and Health Services,Head of Adults,Third Party Payments,474101,Purchase of Care,07/07/2020,3757431-2621447,"2,589.44",SEAHAM CARE LTD.
Adult and Health Services,Head of Adults,Third Party Payments,474101,Purchase of Care,07/07/2020,3757431-2625618,"2,127.04",SEAHAM CARE LTD.
Adult and Health Services,Head of Adults,Third Party Payments,474101,Purchase of Care,07/07/2020,3757430-2622334,"2,800.00",SEAHAM CARE LTD.
Adult and Health Services,Head of Adults,Third Party Payments,474101,Purchase of Care,07/07/2020,3757430-2622340,"2,800.00",SEAHAM CARE LTD.
Adult and Health Services,Head of Adults,Third Party Payments,474101,Purchase of Care,07/07/2020,3757430-2622349,"2,457.28",SEAHAM CARE LTD.
Adult and Health Services,Head of Adults,Third Party Payments,474101,Purchase of Care,07/07/2020,3757430-2622351,"2,800.00",SEAHAM CARE LTD.
Adult and Health Services,Head of Adults,Third Party Payments,474101,Purchase of Care,07/07/2020,3757431-2621440,"1,294.72",SEAHAM CARE LTD.
